{"text_format":"1","workbook":"xlsx","n_sheets":4,"sheets":["Cerere de Finantare","Anexa  1","Anexa 2","Anexa 3"],"not_rendered":{"charts":0,"images":1,"macros":1,"external_links":1,"defined_names":2,"comments":0,"pivot_tables":0},"unopened":[],"bounds":{"document_bytes":16777216,"sheet_cells":100000,"rows_first":2000,"rows_last":500,"rows_between":2000,"halvings":0,"cell_chars":16384,"cell_head_chars":4096},"cells_cut":0,"cells_raw":0,"read":"whole","date_system":"1900"}

{"sheet":"Cerere de Finantare","index":0,"n_rows":856,"n_cols":60,"rows_kept":856,"cut":false,"hidden":false,"merged":[[469,0,469,34],[469,44,469,51],[469,52,469,60],[469,35,469,43],[445,0,445,34],[707,3,707,59],[703,3,703,59],[697,0,697,60],[695,0,695,60],[584,0,584,60],[583,7,583,60],[503,0,503,34],[503,35,503,43],[503,44,503,51],[572,4,572,41],[572,0,572,3],[588,51,589,60],[588,42,589,50],[668,42,668,49],[668,0,668,29],[668,30,668,34],[670,0,670,29],[670,42,670,49],[671,0,671,29],[672,0,672,29],[672,30,672,34],[673,0,673,29],[673,30,673,34],[673,35,673,41],[498,0,498,34],[498,35,498,43],[498,44,498,51],[498,52,498,60],[499,0,499,34],[499,35,499,43],[499,44,499,51],[499,52,499,60],[500,0,500,34],[500,35,500,43],[500,44,500,51],[500,52,500,60],[501,0,501,34],[501,35,501,43],[501,44,501,51],[501,52,501,60],[502,0,502,34],[502,35,502,43],[502,44,502,51],[502,52,502,60],[493,0,493,34],[493,35,493,43],[493,44,493,51],[493,52,493,60],[494,0,494,34],[494,35,494,43],[494,44,494,51],[494,52,494,60],[495,0,495,34],[495,35,495,43],[495,44,495,51],[495,52,495,60],[496,0,496,34],[496,35,496,43],[496,44,496,51],[496,52,496,60],[497,0,497,34],[497,35,497,43],[497,44,497,51],[497,52,497,60],[488,0,488,34],[488,35,488,43],[488,44,488,51],[488,52,488,60],[489,0,489,34],[489,35,489,43],[489,44,489,51],[489,52,489,60],[490,0,490,34],[490,35,490,43],[490,44,490,51],[490,52,490,60],[491,0,491,34],[491,35,491,43],[491,44,491,51],[491,52,491,60],[492,0,492,34],[492,35,492,43],[492,44,492,51],[492,52,492,60],[483,0,483,34],[483,35,483,43],[483,44,483,51],[483,52,483,60],[484,0,484,34],[484,35,484,43],[484,44,484,51],[484,52,484,60],[485,0,485,34],[485,35,485,43],[485,44,485,51],[485,52,485,60],[486,0,486,34],[486,35,486,43],[486,44,486,51],[486,52,486,60],[487,0,487,34],[487,35,487,43],[487,44,487,51],[487,52,487,60],[478,0,478,34],[478,35,478,43],[478,44,478,51],[478,52,478,60],[479,0,479,34],[479,35,479,43],[479,44,479,51],[479,52,479,60],[480,0,480,34],[480,35,480,43],[480,44,480,51],[480,52,480,60],[481,0,481,34],[481,35,481,43],[481,44,481,51],[481,52,481,60],[482,0,482,34],[482,35,482,43],[482,44,482,51],[482,52,482,60],[473,52,473,60],[474,0,474,34],[474,35,474,43],[474,44,474,51],[474,52,474,60],[475,0,475,34],[475,35,475,43],[475,44,475,51],[475,52,475,60],[476,0,476,34],[476,35,476,43],[476,44,476,51],[476,52,476,60],[477,0,477,34],[477,35,477,43],[477,44,477,51],[477,52,477,60],[379,0,379,34],[379,35,379,43],[379,44,379,51],[379,52,379,60],[380,0,380,34],[380,35,380,43],[380,44,380,51],[380,52,380,60],[440,35,440,43],[440,44,440,51],[440,52,440,60],[382,0,382,34],[382,35,382,43],[382,44,382,51],[382,52,382,60],[383,0,383,17],[383,35,383,60],[384,0,384,34],[384,35,384,43],[384,44,384,51],[384,52,384,60],[381,0,381,34],[381,35,381,43],[381,44,381,51],[381,52,381,60],[385,0,385,34],[385,35,385,43],[385,44,385,51],[385,52,385,60],[386,0,386,34],[386,35,386,43],[386,44,386,51],[374,0,374,34],[374,35,374,43],[374,44,374,51],[374,52,374,60],[375,0,375,34],[375,35,375,43],[375,44,375,51],[375,52,375,60],[376,0,376,34],[376,35,376,43],[376,44,376,51],[376,52,376,60],[377,0,377,34],[377,35,377,43],[377,44,377,51],[377,52,377,60],[378,0,378,34],[378,35,378,43],[378,44,378,51],[378,52,378,60],[369,0,369,34],[369,35,369,43],[369,44,369,51],[369,52,369,60],[370,0,370,34],[370,35,370,43],[370,44,370,51],[370,52,370,60],[371,0,371,34],[371,35,371,43],[371,44,371,51],[371,52,371,60],[372,0,372,34],[372,35,372,43],[372,44,372,51],[372,52,372,60],[373,0,373,34],[373,35,373,43],[373,44,373,51],[373,52,373,60],[364,0,364,34],[364,35,364,43],[364,44,364,51],[364,52,364,60],[365,0,365,34],[365,35,365,43],[365,44,365,51],[365,52,365,60],[366,0,366,34],[366,35,366,43],[366,44,366,51],[366,52,366,60],[367,0,367,34],[367,35,367,43],[367,44,367,51],[367,52,367,60],[368,0,368,34],[368,35,368,43],[368,44,368,51],[368,52,368,60],[359,0,359,34],[359,35,359,43],[359,44,359,51],[359,52,359,60],[360,0,360,34],[360,35,360,43],[360,44,360,51],[360,52,360,60],[361,0,361,34],[361,35,361,43],[361,44,361,51],[361,52,361,60],[362,0,362,34],[362,35,362,43],[362,44,362,51],[362,52,362,60],[363,0,363,34],[363,35,363,43],[363,44,363,51],[363,52,363,60],[357,0,357,34],[357,35,357,43],[357,44,357,51],[357,52,357,60],[358,0,358,34],[358,35,358,43],[358,44,358,51],[358,52,358,60],[295,0,295,34],[295,35,295,43],[295,44,295,51],[295,52,295,60],[296,0,296,34],[296,35,296,43],[296,44,296,51],[296,52,296,60],[297,0,297,34],[297,35,297,43],[297,44,297,51],[297,52,297,60],[298,0,298,34],[780,50,780,60],[780,17,781,28],[780,29,780,49],[781,29,781,49],[781,50,781,60],[780,0,781,16],[598,42,598,50],[598,51,598,60],[599,0,599,60],[594,0,594,3],[594,4,594,41],[594,42,594,50],[594,51,594,60],[595,0,595,3],[595,4,595,41],[619,4,619,41],[613,7,613,41],[613,42,613,50],[613,51,613,60],[614,7,614,60],[598,4,598,41],[732,0,732,60],[733,1,733,34],[673,42,673,49],[673,50,673,54],[673,55,673,59],[633,0,633,60],[622,42,622,50],[622,51,622,60],[611,7,611,41],[611,42,612,60],[612,7,612,41],[630,4,630,41],[630,42,630,50],[630,51,630,60],[626,51,626,60],[620,4,620,41],[601,42,601,50],[243,1,243,13],[243,14,243,18],[243,19,243,41],[243,42,243,48],[243,49,243,55],[243,56,245,59],[244,1,244,13],[244,14,244,18],[244,19,244,41],[244,42,244,48],[244,49,244,55],[245,1,245,13],[245,14,245,18],[245,19,245,41],[245,42,245,48],[245,49,245,55],[246,4,246,40],[284,52,284,60],[285,0,285,34],[285,35,285,43],[285,44,285,51],[285,52,285,60],[286,0,286,34],[286,35,286,43],[286,44,286,51],[286,52,286,60],[618,0,618,60],[619,0,619,3],[504,0,504,34],[284,0,284,34],[284,35,284,43],[284,44,284,51],[240,14,240,18],[240,19,240,41],[240,42,240,48],[240,49,240,55],[240,56,240,59],[241,1,241,13],[241,14,241,18],[241,19,241,41],[241,42,241,48],[241,49,241,55],[241,56,242,59],[242,1,242,13],[242,14,242,18],[242,19,242,41],[242,42,242,48],[242,49,242,55],[287,0,287,34],[287,35,287,43],[287,44,287,51],[287,52,287,60],[288,0,288,34],[288,35,288,43],[288,44,288,51],[288,52,288,60],[289,0,289,34],[289,35,289,43],[0,49,0,60],[238,19,238,41],[238,42,238,48],[238,49,238,55],[239,1,239,13],[239,14,239,18],[239,19,239,41],[239,42,239,48],[239,49,239,55],[239,56,239,59],[736,0,736,60],[737,1,737,28],[737,31,737,59],[677,0,677,29],[678,0,678,29],[679,0,679,29],[738,0,738,60],[683,42,683,49],[631,0,631,41],[631,42,631,60],[632,0,632,3],[116,19,116,23],[642,0,642,3],[642,4,642,41],[634,51,634,60],[609,0,609,43],[260,0,260,34],[260,35,260,43],[204,1,204,10],[168,36,169,46],[168,47,168,57],[169,47,169,57],[757,0,757,2],[757,5,757,60],[758,0,758,2],[758,5,758,60],[759,0,759,2],[759,5,759,60],[687,0,687,29],[687,30,687,34],[687,35,687,41],[687,42,687,49],[687,50,687,54],[687,55,687,60],[752,0,752,2],[752,5,752,60],[753,5,753,60],[754,5,754,60],[755,0,755,2],[755,5,755,60],[742,3,742,60],[691,30,691,34],[691,35,691,41],[691,42,691,49],[691,50,691,54],[855,1,855,8],[682,0,682,29],[716,0,716,2],[716,5,716,60],[772,50,772,60],[773,17,773,49],[773,50,773,60],[773,0,773,16],[772,0,772,16],[772,17,772,49],[817,15,817,59],[807,0,807,60],[791,0,791,60],[706,3,706,60],[705,3,705,60],[704,3,704,60],[702,3,702,60],[734,0,734,60],[684,0,684,29],[735,1,735,59],[730,0,730,60],[731,0,731,60],[741,3,741,60],[739,3,739,60],[740,3,740,59],[743,3,743,60],[744,3,744,59],[749,3,749,60],[761,0,761,2],[761,5,761,60],[756,0,756,2],[756,5,756,60],[776,17,777,49],[776,50,777,60],[778,17,779,49],[778,50,779,60],[685,0,685,29],[684,50,684,54],[799,0,799,1],[799,2,799,40],[799,41,799,50],[799,51,799,60],[685,30,685,34],[685,35,685,41],[685,42,685,49],[685,50,685,54],[685,55,685,60],[723,0,723,2],[724,0,724,2],[696,1,696,34],[698,1,698,59],[700,1,700,28],[688,0,688,29],[689,0,689,29],[690,0,690,29],[753,0,753,2],[691,0,691,29],[754,0,754,2],[684,35,684,41],[684,42,684,49],[770,0,770,60],[771,0,771,60],[766,1,766,31],[766,41,766,50],[683,0,683,29],[683,30,683,34],[683,35,683,41],[774,0,775,16],[760,0,760,2],[760,5,760,60],[745,3,745,60],[746,3,746,60],[747,3,747,60],[748,3,748,60],[750,0,750,2],[750,5,750,60],[751,0,751,2],[751,5,751,60],[680,0,680,29],[681,0,681,29],[676,30,676,34],[676,35,676,41],[676,42,676,49],[676,50,676,54],[676,55,676,60],[677,30,677,34],[677,35,677,41],[774,17,775,49],[774,50,775,60],[762,0,762,3],[762,5,762,59],[763,0,763,4],[763,5,763,58],[764,3,764,60],[765,0,765,30],[765,41,765,52],[199,1,199,37],[171,16,171,23],[171,26,171,34],[676,0,676,29],[229,0,229,60],[230,2,230,60],[231,2,231,60],[625,0,625,3],[625,4,625,41],[625,42,625,50],[629,4,629,41],[629,42,629,50],[183,10,183,15],[181,18,181,20],[181,21,181,26],[615,0,615,60],[616,0,616,60],[620,42,620,50],[620,51,620,60],[621,0,621,3],[621,4,621,41],[621,42,621,50],[621,51,621,60],[235,1,236,13],[235,14,235,55],[235,56,236,59],[665,0,665,29],[665,30,665,34],[665,35,665,41],[665,42,665,49],[665,50,665,54],[665,55,665,60],[236,14,236,18],[236,19,236,41],[236,42,236,48],[236,49,236,55],[237,1,237,13],[237,14,237,18],[237,19,237,41],[237,42,237,48],[237,49,237,55],[237,56,238,59],[238,1,238,13],[238,14,238,18],[629,51,629,60],[595,42,595,50],[595,51,595,60],[240,1,240,13],[157,1,157,19],[157,22,157,39],[157,42,157,58],[158,1,158,19],[158,22,158,39],[158,42,158,58],[629,0,629,3],[200,1,200,19],[177,3,177,10],[178,3,178,16],[177,24,177,49],[181,4,181,15],[182,4,182,6],[626,0,626,3],[626,4,626,41],[626,42,626,50],[116,37,116,41],[135,21,135,58],[116,27,116,36],[118,1,118,20],[118,21,118,58],[10,36,11,60],[27,10,27,59],[99,7,107,22],[202,12,202,27],[203,30,203,33],[203,36,203,45],[202,54,202,58],[202,48,202,51],[203,48,203,51],[639,0,639,3],[639,4,639,41],[639,42,639,50],[639,51,639,60],[636,0,636,3],[636,4,636,41],[636,42,636,50],[636,51,636,60],[637,0,637,3],[637,4,637,41],[637,42,637,50],[637,51,637,60],[638,0,638,3],[634,0,634,3],[634,4,634,41],[634,42,634,50],[638,4,638,41],[638,42,638,50],[623,51,623,60],[617,0,617,60],[624,0,624,3],[624,4,624,41],[624,42,624,50],[624,51,624,60],[620,0,620,3],[623,0,623,3],[623,4,623,41],[623,42,623,50],[619,42,619,50],[619,51,619,60],[622,0,622,3],[622,4,622,41],[6,36,7,60],[25,9,25,18],[26,10,26,20],[26,21,26,59],[28,1,28,33],[28,37,28,47],[29,37,29,47],[37,1,40,59],[36,1,36,31],[182,28,183,35],[207,0,228,59],[8,36,9,60],[14,36,22,60],[28,48,28,59],[29,48,29,59],[156,1,156,41],[120,1,120,34],[120,35,120,58],[625,51,625,60],[647,42,647,50],[647,51,647,60],[645,0,645,3],[645,4,645,41],[645,42,645,50],[645,51,645,60],[644,0,644,3],[644,4,644,41],[644,42,644,50],[644,51,644,60],[640,0,640,3],[640,4,640,41],[640,42,640,50],[640,51,640,60],[641,0,641,3],[641,4,641,41],[641,42,641,50],[641,51,641,60],[643,0,643,3],[643,4,643,41],[643,42,643,50],[643,51,643,60],[647,0,647,3],[647,4,647,41],[627,42,627,50],[627,51,627,60],[638,51,638,60],[632,4,632,41],[632,42,632,50],[632,51,632,60],[630,0,630,3],[596,0,596,60],[607,0,607,41],[607,42,607,60],[604,0,604,3],[604,4,604,41],[604,42,604,50],[604,51,604,60],[605,0,605,41],[605,42,605,50],[605,51,605,60],[600,0,600,3],[600,4,600,41],[600,42,600,50],[600,51,600,60],[606,0,606,41],[606,42,606,50],[606,51,606,60],[601,0,601,3],[601,4,601,41],[601,51,601,60],[602,0,602,3],[602,4,602,41],[602,42,602,50],[602,51,602,60],[603,0,603,3],[603,4,603,41],[603,42,603,50],[603,51,603,60],[591,4,591,41],[591,42,591,50],[554,0,554,3],[555,0,555,3],[556,0,556,3],[557,0,557,3],[558,0,558,3],[552,4,552,41],[553,4,553,41],[554,4,554,41],[558,4,558,41],[552,0,552,3],[552,42,552,50],[561,0,561,3],[561,42,561,50],[561,51,561,60],[592,0,592,3],[592,4,592,41],[592,42,592,50],[592,51,592,60],[570,4,570,41],[569,42,569,50],[570,42,570,50],[569,51,569,60],[553,0,553,3],[555,4,555,41],[556,4,556,41],[557,4,557,41],[565,4,565,41],[571,4,571,41],[571,51,571,60],[566,0,566,3],[538,42,538,50],[530,7,530,41],[530,42,530,50],[530,51,530,60],[531,7,531,60],[532,0,532,60],[533,0,533,60],[536,0,536,3],[536,4,536,41],[536,42,536,50],[536,51,536,60],[534,0,534,60],[535,0,535,3],[535,4,535,41],[535,42,535,50],[535,51,535,60],[537,0,537,3],[537,4,537,41],[537,42,537,50],[537,51,537,60],[538,51,538,60],[538,0,538,3],[538,4,538,41],[540,0,540,3],[540,4,540,41],[540,42,540,50],[540,51,540,60],[550,0,550,3],[550,4,550,41],[550,42,550,50],[551,0,551,3],[551,4,551,41],[550,51,550,60],[551,42,551,50],[551,51,551,60],[543,4,543,41],[549,42,549,50],[549,51,549,60],[549,4,549,41],[543,42,543,50],[543,51,543,60],[544,4,544,41],[544,42,544,50],[544,51,544,60],[541,0,541,3],[541,4,541,41],[541,42,541,50],[547,4,547,41],[547,42,547,50],[547,51,547,60],[548,4,548,41],[548,42,548,50],[548,51,548,60],[545,4,545,41],[541,51,541,60],[546,51,546,60],[564,0,564,3],[564,42,564,50],[564,51,564,60],[549,0,549,3],[561,4,561,41],[564,4,564,41],[542,4,542,41],[542,42,542,50],[542,51,542,60],[553,42,553,50],[554,42,554,50],[555,42,555,50],[556,42,556,50],[557,42,557,50],[558,42,558,50],[552,51,552,60],[553,51,553,60],[554,51,554,60],[555,51,555,60],[556,51,556,60],[557,51,557,60],[558,51,558,60],[545,42,545,50],[590,4,590,41],[590,42,590,50],[590,51,590,60],[591,0,591,3],[587,4,587,41],[587,42,587,60],[588,0,588,41],[539,0,539,3],[539,4,539,41],[539,42,539,50],[539,51,539,60],[559,0,559,3],[559,4,559,41],[559,42,559,50],[559,51,559,60],[560,0,560,3],[560,4,560,41],[560,42,560,50],[560,51,560,60],[573,0,573,3],[573,4,573,41],[573,42,573,50],[573,51,573,60],[562,4,562,41],[562,42,562,50],[562,51,562,60],[571,0,571,3],[571,42,571,50],[545,51,545,60],[546,0,546,3],[546,4,546,41],[546,42,546,50],[829,11,829,21],[829,23,829,25],[829,26,829,36],[829,38,829,42],[829,43,829,59],[827,0,827,2],[827,3,827,6],[827,8,827,9],[566,42,566,50],[566,51,566,60],[567,0,567,3],[567,42,567,50],[567,51,567,60],[566,4,566,41],[567,4,567,41],[568,4,568,41],[569,4,569,41],[593,0,593,3],[591,51,591,60],[577,0,577,42],[579,7,579,41],[580,7,580,41],[580,42,581,60],[581,7,581,41],[582,7,582,41],[582,42,582,50],[582,51,582,60],[575,42,575,60],[593,4,593,41],[593,42,593,50],[593,51,593,60],[590,0,590,3],[782,0,784,16],[782,17,782,49],[782,50,782,60],[627,0,627,3],[627,4,627,41],[91,1,95,13],[83,1,87,13],[831,0,831,38],[831,40,831,59],[833,0,833,5],[835,0,835,19],[835,20,835,30],[792,41,792,50],[792,0,792,40],[833,6,833,30],[837,0,837,51],[837,52,837,59],[563,4,563,41],[563,42,563,50],[563,51,563,60],[574,4,574,41],[574,42,574,50],[574,51,574,60],[575,0,575,41],[570,51,570,60],[568,0,568,3],[568,42,568,50],[568,51,568,60],[565,0,565,3],[565,42,565,50],[565,51,565,60],[794,41,794,50],[857,0,857,7],[841,12,841,59],[843,12,843,59],[853,13,853,22],[853,23,853,34],[853,0,853,12],[851,43,851,46],[851,47,851,56],[849,0,849,60],[851,0,851,10],[851,12,851,27],[827,10,827,12],[827,14,827,15],[827,16,827,17],[845,21,845,59],[794,2,794,25],[794,26,794,40],[795,0,795,1],[794,51,794,60],[794,0,794,1],[839,0,839,5],[839,6,839,59],[847,0,847,3],[847,4,847,14],[847,15,847,59],[827,19,827,20],[827,21,827,23],[827,25,827,28],[827,30,827,36],[827,38,827,45],[827,47,827,56],[829,0,829,10],[825,5,825,18],[825,21,825,23],[825,25,825,37],[825,39,825,42],[825,44,825,59],[819,15,819,59],[785,0,785,60],[786,0,786,60],[787,0,787,60],[788,0,788,60],[789,0,789,60],[810,0,810,60],[811,0,811,60],[812,0,812,60],[813,0,813,60],[814,0,814,60],[815,0,815,60],[816,0,816,60],[817,0,817,14],[792,51,792,60],[793,51,793,60],[803,0,803,1],[818,0,818,14],[825,0,825,4],[793,41,793,50],[793,2,793,25],[793,0,793,1],[793,26,793,40],[802,51,802,60],[795,2,795,25],[257,0,257,34],[663,0,663,29],[821,0,821,14],[823,0,823,4],[823,5,823,12],[823,14,823,17],[823,18,823,31],[823,33,823,37],[823,38,823,57],[795,26,795,40],[803,41,803,50],[803,51,803,60],[797,51,797,60],[798,0,798,1],[800,0,800,1],[806,0,806,40],[776,0,777,16]],"merged_total":2164,"flags":["merged_cut"]}
[null,null,null,null,null,null,null,null,null,null,null,null,null,null,null,null,null,null,null,null,null,null,null,null,null,null,null,null,null,null,null,null,null,null,null,null,null,null,null,null,null,null,null,null,null,null,null,null,null,"ANEXA NR. 1"]
[null,null,null,null,null,null,"MINISTERUL AGRICULTURII ŞI DEZVOLTĂRII RURALE"]
[null,null,null,null,null,null,"AGENŢIA PENTRU FINANŢAREA INVESTIŢIILOR RURALE"]
[]
[null,null,null,null,null,null,null,null,null,null,null,null,null,null,null,null,null,null,null,null,null,null,null,null,null,null,null,null,null,null,null,null,null,null,null,null,null,null,null,null,null,null,"SECŢIUNE GENERALĂ"]
[]
["DATE DE ÎNREGISTRARE",null,null,null,null,null,null,null,null,null,null,null,null,null,null,null,null,null,null,null,null,null,null,null,null,null,null,null,null,null,null,null,null,null,null,null,"NUME ŞI PRENUME DIRECTOR OJFIR/ DIRECTOR GENERAL ADJUNCT CRFIR"]
[]
["Se completează de către Agenția pentru Finanțarea Investițiilor Rurale -Oficiul "]
["Judetean / Centrul Regional- Programul FEADR pentru cereri de finanțare"]
[null,null,null,null,null,null,null,null,null,null,null,null,null,null,null,null,null,null,null,null,null,null,null,null,null,null,null,null,null,null,null,null,null,null,null,null,"Semnătura Director OJFIR/ Director General Adjunct CRFIR"]
["CRFIR"]
[null,null,null,null,null,null,null,null,null,null,null,null,null,null,null,null,null,null,null,null,null,null,null,null,null,null,null,null,null,null,null,null,null,null,null,null,"Ştampila OJFIR/CRFIR"]
["Număr "]
["înregistrare"]
[]
[]
[]
[]
["Data Înregistrării"]
["Numele şi prenumele persoanei care înregistrează"]
["Semnătura:"]
["Data primirii cererii de finanţare la Contractare:"]
["Se completează de către solicitant"]
["A PREZENTARE GENERALĂ"]
[]
[null,"A1 Măsura",null,null,null,null,null,null,null,null," - Sub-masura: 19.2"]
[null,null,null,null,null,null,null,null,null,null," M7/6A Sprijinirea inițiativelor de cooperare în teritoriul GAL ATBN"]
[null,"Conţinutul cadru al documentaţiei tehnico-economice conform : "]
[null,"A2  Denumire lider de proiect:",null,null,null,null,null,null,null,null,null,null,null,null,null,null,null,null,null,null,null,null,null,null,null,null,null,null,null,null,null,null,null,null,null,null,null,"H.G. nr. 907/2016"]
[]
[null,"A3 Titlu proiect:"]
[]
[]
[]
[]
[null,"A4 Scopul si obiectivele acordului de cooperare:"]
[]
[]
[]
[]
[null,"A5 Descrierea succintă a proiectului:"]
[]
[]
[]
[]
[]
[]
[]
[]
[]
[]
[]
[null,null,"A6 Amplasarea proiectului:"]
[]
["Regiunea de dezvoltare:",null,null,null,null,null,null,null,null,null,null,null,null,null,null,null,null,null,null,null,null,null,null,null,null,null,null,"Judeţ:"]
[]
[null,"Obiectivele investiţiei",null,null,null,null,null,null,null,null,null,null,null,null,null,"Judeţ",null,null,null,null,null,null,null,null,null,null,null,"Comună/Oraş",null,null,null,null,null,null,null,null,null,null,null,"Sat/Sector",null,null,null,null,null,null,null,null,null,null,"Sat/Sector"]
[]
[]
[]
[]
[]
[]
[]
[]
[]
[]
[]
[]
[]
[]
[]
[]
[]
[]
[]
[]
[]
[]
[]
[]
[]
[]
[]
[]
[]
[]
[]
[]
[]
[]
[]
[]
[]
[]
[]
[]
[null,"A7 Date despre tipul de proiect şi beneficiar:"]
[null,null,"A7.1  ",null,null,null,null,"Cooperarea între micii operatori în ceea ce privește organizarea de procese de lucru comune și partajarea echipamentelor și resurselor pentru dezvoltarea și/sau comercializarea de servicii turistice aferente turismului rural",null,null,null,null,null,null,null,null,null,null,null,null,null,null,null,"  A 7.2 Parteneriat format din:",null,null,null,null,null,null,null,null,null,null,null,null,null,null,null,null,null,null,null,"A7.3",null,null,"Prescorare"]
[null,null,null,null,null,null,null,null,null,null,null,null,null,null,null,null,null,null,null,null,null,null,null,null,null,null,null,null,null,null,"PFA"]
[null,null,null,null,null,null,null,null,null,null,null,null,null,null,null,null,null,null,null,null,null,null,null,null,null,null,null,null,null,null,null,null,null,null,null,null,null,null,null,null,null,null,null,"A7.4",null,null,"Sectoare finanţate:"]
[null,null,null,null,null,null,null,null,null,null,null,null,null,null,null,null,null,null,null,null,null,null,null,null,null,null,null,null,null,null,"IF",null,null,null,null,null,null,null,null,null,null,null,null,null,null,null,"turism rural"]
[]
[null,null,null,null,null,null,null,null,null,null,null,null,null,null,null,null,null,null,null,null,null,null,null,null,null,null,null,null,null,null,"II"]
[]
[null,null,null,null,null,null,null,null,null,null,null,null,null,null,null,null,null,null,null,null,null,null,null,null,null,null,null,null,null,null,"SRL"]
[]
[]
[null,"A7.5  Tip proiect",null,null,null,null,null,null,null,null,null,null,null,null,null,"Proiecte mixte",null,null,null,null,null,null,null,null,null,null,null,null,"  A 7.6 Tip investiție"]
[null,null,null,null,null,null,null,null,null,null,null,null,null,null,null,null,null,null,null,null,null,null,null,null,null,null,null,null,null,null,null,null,null,null,null,"Investiţie nouă "]
[null,null,null,null,null,null,null,null,null,null,null,null,null,null,"Cu montaj",null,null,null,null,null,null,null,null,null,null,null,null,null,null,null,null,null,null,null,null,"Modernizare /Extindere "]
[null,null,null,null,null,null,null,null,null,null,null,null,null,null,"Fără montaj"]
[]
[null,null,null,null,null,null,null,null,null,null,null,null,null,null,null,null,null,null,null,null,null,null,null,null,null,null,null,null,null,null,null,null,null,null,null,"Investiție specifică măsurii M7/6A Sprijinirea inițiativelor de cooperare în teritoriul GAL ATBN"]
[]
[null,"A7.7 Acordul de cooperare numărul :",null,null,null,null,null,null,null,null,null,null,null,null,null,null,null,null,null,null,null,null,null,null,null,null,null,"încheiat la data de :"]
[]
[null,"A7.8 Acordul de cooperare încheiat între :"]
[]
[null,"A7.9 Aria de aplicabilitate (județ, oraș și comune) :"]
[]
[null,"Denumire consultant:"]
[null,null,null,null,null,null,null,null,null,null,null,null,null,null,null,null,null,null,null,null,null,null,null,null,null,null,null,null,null,null,null,null,null,"CUI"]
[]
[null,null,null,null,null,null,null,null,null,null,null,null,null,null,null,null,null,null,null,null,null,null,null,null,null,null,null,null,null,null,null,null,null,"Nr. Înreg. ONRC"]
[]
[null,"Denumire proiectant:"]
[null,null,null,null,null,null,null,null,null,null,null,null,null,null,null,null,null,null,null,null,null,null,null,null,null,null,null,null,null,null,null,null,null,"CUI"]
[]
[null,null,null,null,null,null,null,null,null,null,null,null,null,null,null,null,null,null,null,null,null,null,null,null,null,null,null,null,null,null,null,null,null,"Nr. Înreg. ONRC"]
[]
[]
[]
[null,"Detaliere criterii de selectie îndeplinite"]
[]
[]
[]
[]
[]
[]
["B INFORMAŢII PRIVIND LIDERUL DE PROIECT"]
["B1 Descrierea liderului de proiect"]
[null,"B1.1 Informaţii privind liderul de proiect"]
[null,"Data de înființare",null,null,null,null,null,null,null,null,null,null,null,null,null,null,null,null,null,"Cod Unic de Înregistrare / Codul de",null,null,null,null,null,null,null,null,null,null,null,null,null,null,null,null,null,null,null,null,null,null,null,"Statut juridic al solicitantului"]
[null,null,null,null,null,null,null,null,null,null,null,null,null,null,null,null,null,null,null,"Înregistrare Fiscală / CNP"]
[]
[]
[null,"Număr de înregistrare în registrul comerțului/Registrul asociațiilor și fundațiilor"]
[]
[null,"Codul CAEN al activităţii/activităţilor finanţate prin proiect:"]
[]
[]
[]
[null,"Codul unic de înregistrare APIA \n",null,null,null,null,null,null,null,null,null,null,null,null,null,null,null,null,null,null,null,null,null,null,null,null,null,null,null,null,null,null,null,null,null,null,"Anul atribuirii codului"]
[]
[null,"B1.2 Sediul social"]
[null,"Judeţ",null,null,null,null,null,null,null,null,null,null,null,null,null,null,null,null,null,null,null,null,"Localitate",null,null,null,null,null,null,null,null,null,null,null,null,null,null,null,null,null,null,null,"Sat"]
[]
[null,"Cod Poştal",null,null,null,null,null,null,null,null,null,null,null,null,null,"Strada",null,null,null,null,null,null,null,null,null,null,null,null,null,null,null,null,null,null,null,null,null,null,null,null,null,null,null,null,null,null,null,null,null,null,null,null,"Nr."]
[]
[null,"Bloc",null,null,null,null,null,null,null,null,null,null,null,null,null,null,null,"Scara",null,null,null,null,null,null,null,null,null,null,null,null,null,"Etaj",null,null,null,null,null,null,null,null,null,null,null,null,null,null,null,"Apartament"]
[]
[null,"Telefon fix",null,null,null,null,null,null,null,null,null,null,null,"Telefon mobil",null,null,null,null,null,null,null,null,null,null,"Fax",null,null,null,null,null,null,null,null,null,null,null,"E-mail"]
[]
[]
[null,"B1.3 Numele şi prenumele reprezentantului legal, funcţia şi specimenul de semnatură:"]
[]
[null,null,null,"Numele",null,null,null,null,null,null,null,null,null,null,"Prenumele",null,null,null,null,null,null,null,null,null,null,"Funcţia",null,null,null,null,null,null,null,null,null,null,"Reprezentant legal",null,null,null,null,null,null,null,null,null,null,"Specimen de"]
[null,null,null,null,null,null,null,null,null,null,null,null,null,null,null,null,null,null,null,null,null,null,null,null,null,null,null,null,null,null,null,null,null,null,null,null,null,null,null,null,null,null,null,null,null,null,null,"semnătură"]
[]
[null,null,null,null,null,null,null,null,null,null,null,null,null,null,null,null,null,null,null,null,null,null,null,null,null,null,null,null,null,null,null,null,null,null,null,null,"LEGAL"]
[]
[]
["B2 Informaţii referitoare la reprezentantul legal"]
[null,"B2.1 Date de identitate ale reprezentantului legal"]
[]
[null,null,null,"Data naşterii",null,null,null,null,null,null,null,null,null,null,null,null,null,null,null,null,null,null,null,null,"Cod numeric personal"]
[]
[]
[]
[null,null,null,null,"Act de identitate",null,null,null,null,null,null,null,null,null,null,null,null,null,"Seria",null,null,"Nr.",null,null,null,null,null,null,"Eliberat la data de",null,null,null,null,null,null,null,null,"de:",null,null,null,null,null,null,null,null,null,null,null,null,null,"Valabil până la:"]
[null,null,null,null,"B.I.",null,null,"C.I.",null,null,"Paşaport"]
[]
[]
[]
[null,null,null,"Studii şi coordonate:"]
[]
[]
[]
[]
[]
[]
[]
[]
[]
[]
[]
[]
[null,"B2.2 Domiciliul stabil al reprezentantului legal"]
[null,"Judeţ",null,null,null,null,null,null,null,null,null,null,null,null,null,null,null,null,null,null,null,null,"Localitate",null,null,null,null,null,null,null,null,null,null,null,null,null,null,null,null,null,null,null,"Sat"]
[]
[null,"Cod Poştal",null,null,null,null,null,null,null,null,null,null,"Strada",null,null,null,null,null,null,null,null,null,null,null,null,null,null,null,null,null,"Nr.",null,null,null,null,null,"Bloc",null,null,null,null,null,null,null,null,null,null,null,"Scara",null,null,null,null,null,"Ap."]
[]
[null,"Telefon fix",null,null,null,null,null,null,null,null,null,null,null,"Telefon mobil",null,null,null,null,null,null,null,null,null,null,"Fax",null,null,null,null,null,null,null,null,null,null,null,"E-mail"]
[]
[]
["  REGULI DE COMPLETARE\n\nCâmpurile \"Numele şi prenumele persoanei care înregistrează. Semnătura\", se vor completa după data primirii în format\nletric a acesteia împreună cu documentele justificative.\nCompletaţi devizele aferente capitolelor de cheltuieli, defalcat pe cheltuieli eligibile şi neeligibile prin completarea\ntabelurilor incluse în acest document, respectiv:\n1. Tabelul \"Deviz financiar cap3\" cuprinde cheltuielile aferente capitolului 3 - Cheltuieli pentru proiectare şi asistenţă\ntehnică, cheltuieli care trebuie să se regăsească atât în Bugetul Indicativ (Tabel \"Buget indicativ\" din cererea de finanţare, partea specifică) cât şi în Devizul General din Studiul de Fezabilitate/Memoriul Justificativ.\n2. Tabelul \"Devize obiect\" cuprinde formatul cadru al devizului pe obiect, iar solicitantul va completa atâtea devize pe\nobiect câte obiecte de investiţie sunt incluse în proiect. Suma tuturor devizelor pe obiect trebuie să se regăseasca atat in\nBugetul Indicativ (tabelul \"Buget indicativ\" din cererea de finanţare, partea specifică) cât şi în Devizul General din Studiul\nde Fezabilitate/Memoriul Justificativ.\nÎn cazul în care proiectul de investiţii presupune mai multe devize pe obiect, solicitantul va crea în documentul curent\ncâte o copie a tabelului \"Devize obiect\" pentru fiecare deviz pe obiect şi va detalia cheltuielile eligibile şi neeligibile pe\nfiecare în parte.\n3. Tabelul \"cap.2+cap.5\" cuprinde cheltuieli aferente capitolelor 2 şi 5 şi trebuie să se regăsească atât în Bugetul Indicativ\n(tabel \"Buget indicativ\" din cererea de finanţare, partea specifică) cât şi Devizul General din Studiul de Fezabilitate/Memoriul justificativ.\n4. Câmpul \"Prescorare\" de la secţiunea A6 este obligatoriu.\n5. Trebuie bifate toate documentele de pe coloana “Obligatoriu pentru toate proiectele” din secțiunea E - Lista\ndocumentelor anexate.\n6. În cadrul Bugetului Indicativ poate fi completat TVA eligibil dar și TVA neeligibil.\n"]
[]
[]
[]
[]
[]
[]
[]
[]
[]
[]
[]
[]
[]
[]
[]
[]
[]
[]
[]
[]
[]
["C FINANȚĂRI NERAMBURSABILE OBȚINUTE SAU SOLICITATE ?"]
[null,null,"Dacă au fost obținute finanțări nerambursabile sau au fost solicitate și au fost obținute parțial, se vor detalia prin completarea"]
[null,null,"tabelului de mai jos."]
[]
[null,null,null,null,null,null,null,null,null,null,"DA",null,null,null,null,null,null,null,"NU"]
[]
[null,"DENUMIRE PROGRAM FINANȚARE",null,null,null,null,null,null,null,null,null,null,null,null,"DA",null,null,null,null,null,null,null,null,null,null,null,null,null,null,null,null,null,null,null,null,null,null,null,null,null,null,null,null,null,null,null,null,null,null,null,null,null,null,null,null,null,"NU"]
[null,null,null,null,null,null,null,null,null,null,null,null,null,null,"Număr proiecte",null,null,null,null,"Titlul Proiectului și numărul contractului de finanțare ",null,null,null,null,null,null,null,null,null,null,null,null,null,null,null,null,null,null,null,null,null,null,"Data finalizării\nll/zz/aaaa",null,null,null,null,null,null,"Valoarea\nsprijinului\n(EUR)"]
[null,"Program Naţional*"]
[null,"Program Naţional*"]
[null,"FEADR *"]
[null,"SAPARD"]
[null,"Alte programe europene*"]
[null,"Alte programe europene*"]
[null,"Alte programe internaționale*"]
[null,"Alte programe internaționale*"]
[null,"Alte programe internaționale*"]
[null,null,null,null,"* se completează de către solicitant cu denumirea programului"]
[]
[]
[]
[null,"Buget Indicativ (EURO) pentru INVESTIŢII în activitatea turistică - HG 907/2016"]
["MINISTERUL AGRICULTURII ŞI DEZVOLTĂRII RURALE"]
["AGENŢIA PENTRU FINANŢAREA INVESTIŢIILOR RURALE"]
[]
[]
[null,"Procentul aferent intensităţii",null,null,null,null,null,null,null,null,null,null,null,null,null,0.9,null,null,null,null,null,"Curs EURO",null,null,null,null,null,null,null,null,null,null,null,null,"Data întocmirii Studiului de Fezabilitate/Memoriului Justificativ"]
[]
["Submăsura",null,null,null,null,null,null,null,null,null,null,null,null,null,null,null,null,null,null,null,null,null,null,null,null,null,null,null,null,null,null,null,null,null,null,"M7/6A"]
["Denumirea capitolelor de cheltuieli",null,null,null,null,null,null,null,null,null,null,null,null,null,null,null,null,null,null,null,null,null,null,null,null,null,null,null,null,null,null,null,null,null,null,"Cheltuieli eligibile",null,null,null,null,null,null,null,null,"Cheltuieli neeligibile",null,null,null,null,null,null,null,"Total"]
[null,null,null,null,null,null,null,null,null,null,null,null,null,null,null,null,null,null,null,null,null,null,null,null,null,null,null,null,null,null,null,null,null,null,null,"EURO",null,null,null,null,null,null,null,null,"EURO",null,null,null,null,null,null,null,"EURO"]
[1,null,null,null,null,null,null,null,null,null,null,null,null,null,null,null,null,null,null,null,null,null,null,null,null,null,null,null,null,null,null,null,null,null,null,2,null,null,null,null,null,null,null,null,3,null,null,null,null,null,null,null,4]
["Capitolul 1 Cheltuieli pentru obtinerea şi amenajarea terenului - total, din care:",null,null,null,null,null,null,null,null,null,null,null,null,null,null,null,null,null,null,null,null,null,null,null,null,null,null,null,null,null,null,null,null,null,null,0,null,null,null,null,null,null,null,null,{"$f":"SUM(AS263:AS266)","v":0},null,null,null,null,null,null,null,{"$f":"SUM(AJ262:AZ262)","v":0}]
["1.1 Obţinerea terenului",null,null,null,null,null,null,null,null,null,null,null,null,null,null,null,null,null,null,null,null,null,null,null,null,null,null,null,null,null,null,null,null,null,null,null,null,null,null,null,null,null,null,null,null,null,null,null,null,null,null,null,{"$f":"AS263","v":0}]
["1.2 Amenajarea terenului",null,null,null,null,null,null,null,null,null,null,null,null,null,null,null,null,null,null,null,null,null,null,null,null,null,null,null,null,null,null,null,null,null,null,null,null,null,null,null,null,null,null,null,null,null,null,null,null,null,null,null,{"$f":"SUM(AJ264:AZ264)","v":0}]
["1.3 Amenajari pentru protecţia mediului şi aducerea terenului la starea iniţială",null,null,null,null,null,null,null,null,null,null,null,null,null,null,null,null,null,null,null,null,null,null,null,null,null,null,null,null,null,null,null,null,null,null,null,null,null,null,null,null,null,null,null,null,null,null,null,null,null,null,null,0]
["1.4 Cheltuieli pentru relocarea/protecţia utilităţilor",null,null,null,null,null,null,null,null,null,null,null,null,null,null,null,null,null,null,null,null,null,null,null,null,null,null,null,null,null,null,null,null,null,null,null,null,null,null,null,null,null,null,null,null,null,null,null,null,null,null,null,0]
["Capitolul 2 Cheltuieli pentru asigurarea utilităţilor necesare obiectivului de investiții",null,null,null,null,null,null,null,null,null,null,null,null,null,null,null,null,null,null,null,null,null,null,null,null,null,null,null,null,null,null,null,null,null,null,null,null,null,null,null,null,null,null,null,null,null,null,null,null,null,null,null,0]
["Capitolul 3 Cheltuieli pentru proiectare şi asistenţă tehnică - total, din care: NU SE VA COMPLETA AICI, CI ÎN BUGETUL INDICATIV 100%",null,null,null,null,null,null,null,null,null,null,null,null,null,null,null,null,null,null,null,null,null,null,null,null,null,null,null,null,null,null,null,null,null,null,{"$f":"AJ269+AJ273+AJ274+AJ275+AJ276+AJ284+AJ287","v":0},null,null,null,null,null,null,null,null,{"$f":"AS269+AS273+AS274+AS283+AS275+AS276+AS284+AS287","v":0},null,null,null,null,null,null,null,0]
["3.1 Studii",null,null,null,null,null,null,null,null,null,null,null,null,null,null,null,null,null,null,null,null,null,null,null,null,null,null,null,null,null,null,null,null,null,null,{"$f":"SUM(AJ270:AJ272)","v":0},null,null,null,null,null,null,null,null,{"$f":"SUM(AS270:AS272)","v":0},null,null,null,null,null,null,null,{"$f":"SUM(AJ269:AZ269)","v":0}]
["      3.1.1 Studii de teren",null,null,null,null,null,null,null,null,null,null,null,null,null,null,null,null,null,null,null,null,null,null,null,null,null,null,null,null,null,null,null,null,null,null,null,null,null,null,null,null,null,null,null,null,null,null,null,null,null,null,null,0]
["      3.1.2 Raport privind impactul asupra mediului",null,null,null,null,null,null,null,null,null,null,null,null,null,null,null,null,null,null,null,null,null,null,null,null,null,null,null,null,null,null,null,null,null,null,null,null,null,null,null,null,null,null,null,null,null,null,null,null,null,null,null,0]
["      3.1.3 Alte studii specifice (studii, planuri, analize de piață etc.)",null,null,null,null,null,null,null,null,null,null,null,null,null,null,null,null,null,null,null,null,null,null,null,null,null,null,null,null,null,null,null,null,null,null,null,null,null,null,null,null,null,null,null,null,null,null,null,null,null,null,null,0]
["3.2 Documentații-suport și cheltuieli pentru obţinerea de avize, acorduri şi autorizaţii",null,null,null,null,null,null,null,null,null,null,null,null,null,null,null,null,null,null,null,null,null,null,null,null,null,null,null,null,null,null,null,null,null,null,null,null,null,null,null,null,null,null,null,null,null,null,null,null,null,null,null,0]
["3.3 Expertizare tehnică",null,null,null,null,null,null,null,null,null,null,null,null,null,null,null,null,null,null,null,null,null,null,null,null,null,null,null,null,null,null,null,null,null,null,null,null,null,null,null,null,null,null,null,null,null,null,null,null,null,null,null,0]
["3.4 Certificarea performanței energetice și auditul energetic al clădirilor",null,null,null,null,null,null,null,null,null,null,null,null,null,null,null,null,null,null,null,null,null,null,null,null,null,null,null,null,null,null,null,null,null,null,null,null,null,null,null,null,null,null,null,null,null,null,null,null,null,null,null,0]
["3.5 Proiectare",null,null,null,null,null,null,null,null,null,null,null,null,null,null,null,null,null,null,null,null,null,null,null,null,null,null,null,null,null,null,null,null,null,null,{"$f":"SUM(AJ277:AJ282)","v":0},null,null,null,null,null,null,null,null,{"$f":"SUM(AS277:AS282)","v":0},null,null,null,null,null,null,null,0]
["      3.5.1 Temă de proiectare",null,null,null,null,null,null,null,null,null,null,null,null,null,null,null,null,null,null,null,null,null,null,null,null,null,null,null,null,null,null,null,null,null,null,null,null,null,null,null,null,null,null,null,null,null,null,null,null,null,null,null,0]
["      3.5.2 Studiu de prefezabilitate",null,null,null,null,null,null,null,null,null,null,null,null,null,null,null,null,null,null,null,null,null,null,null,null,null,null,null,null,null,null,null,null,null,null,null,null,null,null,null,null,null,null,null,null,null,null,null,null,null,null,null,0]
["      3.5.3 Studiu de fezabilitate/documentație de avizare a lucrărilor de intervenții și deviz general",null,null,null,null,null,null,null,null,null,null,null,null,null,null,null,null,null,null,null,null,null,null,null,null,null,null,null,null,null,null,null,null,null,null,null,null,null,null,null,null,null,null,null,null,null,null,null,null,null,null,null,0]
["      3.5.4 Documentațiile tehnice necesare în vederea obținerii avizelor/acordurilor/ autorizațiilor",null,null,null,null,null,null,null,null,null,null,null,null,null,null,null,null,null,null,null,null,null,null,null,null,null,null,null,null,null,null,null,null,null,null,null,null,null,null,null,null,null,null,null,null,null,null,null,null,null,null,null,0]
["      3.5.5 Verificarea tehnică de calitate a proiectului tehnic și a detaliilor de execuție",null,null,null,null,null,null,null,null,null,null,null,null,null,null,null,null,null,null,null,null,null,null,null,null,null,null,null,null,null,null,null,null,null,null,null,null,null,null,null,null,null,null,null,null,null,null,null,null,null,null,null,0]
["      3.5.6 Proiect tehnic și detalii de execuție",null,null,null,null,null,null,null,null,null,null,null,null,null,null,null,null,null,null,null,null,null,null,null,null,null,null,null,null,null,null,null,null,null,null,null,null,null,null,null,null,null,null,null,null,null,null,null,null,null,null,null,0]
["3.6 Organizarea procedurilor de achiziţie",null,null,null,null,null,null,null,null,null,null,null,null,null,null,null,null,null,null,null,null,null,null,null,null,null,null,null,null,null,null,null,null,null,null,null,null,null,null,null,null,null,null,null,null,null,null,null,null,null,null,null,{"$f":"AS283","v":0}]
["3.7 Consultanță",null,null,null,null,null,null,null,null,null,null,null,null,null,null,null,null,null,null,null,null,null,null,null,null,null,null,null,null,null,null,null,null,null,null,0,null,null,null,null,null,null,null,null,{"$f":"SUM(AS285:AS286)","v":0},null,null,null,null,null,null,null,{"$f":"SUM(AJ284:AZ284)","v":0}]
["      3.7.1 Managementul de proiect pentru obiectivul de investiții",null,null,null,null,null,null,null,null,null,null,null,null,null,null,null,null,null,null,null,null,null,null,null,null,null,null,null,null,null,null,null,null,null,null,0,null,null,null,null,null,null,null,null,null,null,null,null,null,null,null,null,0]
["      3.7.2 Auditul financiar",null,null,null,null,null,null,null,null,null,null,null,null,null,null,null,null,null,null,null,null,null,null,null,null,null,null,null,null,null,null,null,null,null,null,null,null,null,null,null,null,null,null,null,null,null,null,null,null,null,null,null,{"$f":"AS286","v":0}]
["3.8 Asistența tehnică",null,null,null,null,null,null,null,null,null,null,null,null,null,null,null,null,null,null,null,null,null,null,null,null,null,null,null,null,null,null,null,null,null,null,{"$f":"AJ288+AJ291","v":0},null,null,null,null,null,null,null,null,{"$f":"AS288+AS291","v":0},null,null,null,null,null,null,null,{"$f":"SUM(AJ287:AZ287)","v":0}]
["     3.8.1 Asistență tehnică din partea proiectantului",null,null,null,null,null,null,null,null,null,null,null,null,null,null,null,null,null,null,null,null,null,null,null,null,null,null,null,null,null,null,null,null,null,null,{"$f":"SUM(AJ289:AJ290)","v":0},null,null,null,null,null,null,null,null,{"$f":"SUM(AS289:AS290)","v":0},null,null,null,null,null,null,null,0]
["            3.8.1.1 pe perioada de execuție a lucrărilor",null,null,null,null,null,null,null,null,null,null,null,null,null,null,null,null,null,null,null,null,null,null,null,null,null,null,null,null,null,null,null,null,null,null,null,null,null,null,null,null,null,null,null,null,null,null,null,null,null,null,null,0]
["            3.8.1.2 pentru participarea proiectantului la fazele incluse în programul de control al lucrărilor de execuție, avizat de către Inspectoratul de Stat în Construcții",null,null,null,null,null,null,null,null,null,null,null,null,null,null,null,null,null,null,null,null,null,null,null,null,null,null,null,null,null,null,null,null,null,null,null,null,null,null,null,null,null,null,null,null,null,null,null,null,null,null,null,0]
["      3.8.2 Dirigenție de șantier",null,null,null,null,null,null,null,null,null,null,null,null,null,null,null,null,null,null,null,null,null,null,null,null,null,null,null,null,null,null,null,null,null,null,null,null,null,null,null,null,null,null,null,null,null,null,null,null,null,null,null,0]
["Capitolul 4 Cheltuieli pentru investiţia de bază - total, din care:",null,null,null,null,null,null,null,null,null,null,null,null,null,null,null,null,null,null,null,null,null,null,null,null,null,null,null,null,null,null,null,null,null,null,0,null,null,null,null,null,null,null,null,{"$f":"SUM(AS293:AS298)","v":0},null,null,null,null,null,null,null,{"$f":"SUM(AJ292:AZ292)","v":0}]
["4.1 Construcţii şi instalaţii",null,null,null,null,null,null,null,null,null,null,null,null,null,null,null,null,null,null,null,null,null,null,null,null,null,null,null,null,null,null,null,null,null,null,null,null,null,null,null,null,null,null,null,null,null,null,null,null,null,null,null,0]
["4.2 Montaj utilaje, echipamente tehnologice şi funcţionale",null,null,null,null,null,null,null,null,null,null,null,null,null,null,null,null,null,null,null,null,null,null,null,null,null,null,null,null,null,null,null,null,null,null,null,null,null,null,null,null,null,null,null,null,null,null,null,null,null,null,null,0]
["4.3 Utilaje, echipamente tehnologice şi funcţionale care necesită montaj",null,null,null,null,null,null,null,null,null,null,null,null,null,null,null,null,null,null,null,null,null,null,null,null,null,null,null,null,null,null,null,null,null,null,null,null,null,null,null,null,null,null,null,null,null,null,null,null,null,null,null,0]
["4.4 Utilaje, echipamente tehnologice şi funcţionale care nu necesită montaj şi echipamente de transport",null,null,null,null,null,null,null,null,null,null,null,null,null,null,null,null,null,null,null,null,null,null,null,null,null,null,null,null,null,null,null,null,null,null,null,null,null,null,null,null,null,null,null,null,null,null,null,null,null,null,null,0]
["4.5 Dotări",null,null,null,null,null,null,null,null,null,null,null,null,null,null,null,null,null,null,null,null,null,null,null,null,null,null,null,null,null,null,null,null,null,null,0,null,null,null,null,null,null,null,null,null,null,null,null,null,null,null,null,0]
["4.6 Active necorporale",null,null,null,null,null,null,null,null,null,null,null,null,null,null,null,null,null,null,null,null,null,null,null,null,null,null,null,null,null,null,null,null,null,null,null,null,null,null,null,null,null,null,null,null,null,null,null,null,null,null,null,0]
["Capitolul 5 Alte cheltuieli - total, din care:",null,null,null,null,null,null,null,null,null,null,null,null,null,null,null,null,null,null,null,null,null,null,null,null,null,null,null,null,null,null,null,null,null,null,0,null,null,null,null,null,null,null,null,{"$f":"AS300+AS303+AS309+AS310","v":0},null,null,null,null,null,null,null,0]
["5.1 Organizare de şantier",null,null,null,null,null,null,null,null,null,null,null,null,null,null,null,null,null,null,null,null,null,null,null,null,null,null,null,null,null,null,null,null,null,null,0,null,null,null,null,null,null,null,null,{"$f":"SUM(AS301:AZ302)","v":0},null,null,null,null,null,null,null,0]
["      5.1.1 Lucrări de construcţii şi instalaţii aferente organizării de şantier",null,null,null,null,null,null,null,null,null,null,null,null,null,null,null,null,null,null,null,null,null,null,null,null,null,null,null,null,null,null,null,null,null,null,null,null,null,null,null,null,null,null,null,null,null,null,null,null,null,null,null,0]
["      5.1.2 Cheltuieli conexe orgănizării şantierului",null,null,null,null,null,null,null,null,null,null,null,null,null,null,null,null,null,null,null,null,null,null,null,null,null,null,null,null,null,null,null,null,null,null,null,null,null,null,null,null,null,null,null,null,null,null,null,null,null,null,null,0]
["4.2 Comisioane, cote, taxe, costul creditului",null,null,null,null,null,null,null,null,null,null,null,null,null,null,null,null,null,null,null,null,null,null,null,null,null,null,null,null,null,null,null,null,null,null,{"$f":"SUM(AJ305:AR308)-AJ307","v":0},null,null,null,null,null,null,null,null,{"$f":"SUM(AS304:AZ308)","v":0},null,null,null,null,null,null,null,{"$f":"SUM(AJ303:AZ303)","v":0}]
["      5.2.1 Comisioanele și dobânzile aferente creditului băncii finanțatoare",null,null,null,null,null,null,null,null,null,null,null,null,null,null,null,null,null,null,null,null,null,null,null,null,null,null,null,null,null,null,null,null,null,null,null,null,null,null,null,null,null,null,null,null,null,null,null,null,null,null,null,{"$f":"AS304","v":0}]
["      5.2.2 Cota aferentă ISC pentru controlul calității lucrărilor de construcții",null,null,null,null,null,null,null,null,null,null,null,null,null,null,null,null,null,null,null,null,null,null,null,null,null,null,null,null,null,null,null,null,null,null,null,null,null,null,null,null,null,null,null,null,null,null,null,null,null,null,null,0]
["      5.2.3 Cota aferentă ISC pentru controlul statului în amenajarea teritoriului, urbanism și pentru autorizarea lucrărilor de construcţii",null,null,null,null,null,null,null,null,null,null,null,null,null,null,null,null,null,null,null,null,null,null,null,null,null,null,null,null,null,null,null,null,null,null,null,null,null,null,null,null,null,null,null,null,null,null,null,null,null,null,null,0]
["      5.2.4 Cota aferentă Casei Sociale a Constructorilor - CSC",null,null,null,null,null,null,null,null,null,null,null,null,null,null,null,null,null,null,null,null,null,null,null,null,null,null,null,null,null,null,null,null,null,null,null,null,null,null,null,null,null,null,null,null,null,null,null,null,null,null,null,{"$f":"AS307","v":0}]
["      5.2.5 Taxe pentru acorduri, avize conforme și autorizația de construire/desființare",null,null,null,null,null,null,null,null,null,null,null,null,null,null,null,null,null,null,null,null,null,null,null,null,null,null,null,null,null,null,null,null,null,null,null,null,null,null,null,null,null,null,null,null,null,null,null,null,null,null,null,0]
["5.3 Cheltuieli diverse şi neprevăzute",null,null,null,null,null,null,null,null,null,null,null,null,null,null,null,null,null,null,null,null,null,null,null,null,null,null,null,null,null,null,null,null,null,null,null,null,null,null,null,null,null,null,null,null,null,null,null,null,null,null,null,{"$f":"SUM(AJ309:AZ309)","v":0}]
["5.4 Cheltuieli pentru informare și publicitate",null,null,null,null,null,null,null,null,null,null,null,null,null,null,null,null,null,null,null,null,null,null,null,null,null,null,null,null,null,null,null,null,null,null,null,null,null,null,null,null,null,null,null,null,null,null,null,null,null,null,null,{"$f":"AS310","v":0}]
["Procent cheltuieli diverse şi neprevăzute",null,null,null,null,null,null,null,null,null,null,null,null,null,null,null,null,null,null,null,null,null,null,null,null,null,null,null,null,null,null,null,null,null,null,{"$f":"IF((AJ264+AJ265+AJ10084+AJ267+AJ292)=0,0,(AJ309/(AJ264+AJ265+AJ10084+AJ267+#REF!+#REF!+AJ292)*100))","v":0},null,null,null,null,null,null,null,null,null,null,null,null,null,null,null,null,null,null,null,null,null,null,null,"%"]
["Capitolul 6 Cheltuieli pentru probe tehnologice şi teste - total, din care:",null,null,null,null,null,null,null,null,null,null,null,null,null,null,null,null,null,null,null,null,null,null,null,null,null,null,null,null,null,null,null,null,null,null,0,null,null,null,null,null,null,null,null,{"$f":"SUM(AS313:AS314)","v":0},null,null,null,null,null,null,null,{"$f":"SUM(AJ312:AZ312)","v":0}]
["6.1 Pregătirea personalului de exploatare",null,null,null,null,null,null,null,null,null,null,null,null,null,null,null,null,null,null,null,null,null,null,null,null,null,null,null,null,null,null,null,null,null,null,null,null,null,null,null,null,null,null,null,null,null,null,null,null,null,null,null,{"$f":"AS313","v":0}]
["6.2 Probe tehnologice şi teste",null,null,null,null,null,null,null,null,null,null,null,null,null,null,null,null,null,null,null,null,null,null,null,null,null,null,null,null,null,null,null,null,null,null,null,null,null,null,null,null,null,null,null,null,null,null,null,null,null,null,null,0]
["TOTAL GENERAL",null,null,null,null,null,null,null,null,null,null,null,null,null,null,null,null,null,null,null,null,null,null,null,null,null,null,null,null,null,null,null,null,null,null,{"$f":"AJ262+AJ267+AJ292+AJ299+AJ312","v":0},null,null,null,null,null,null,null,null,{"$f":"AS262+AS267+AS292+AS299+AS312","v":0},null,null,null,null,null,null,null,0]
["Verificare actualizare",null,null,null,null,null,null,null,null,null,null,null,null,null,null,null,null,null,null,null,null,null,null,null,null,null,null,null,null,null,null,{"$f":"AJ317*100/AJ315","v":{"$error":"#DIV/0!"}},null,null,{"$f":"IF(AJ315=0,0,AF316)","v":0},{"$f":"IF(AI316<=5,\"actualizare mai mică de 5% din valoarea eligibila\",\"actualizare mai mare de 5% din valoarea eligibila\")","v":"actualizare mai mică de 5% din valoarea eligibila"}]
["ACTUALIZARE Cheltuieli Eligibile (max 5%)",null,null,null,null,null,null,null,null,null,null,null,null,null,null,null,null,null,null,null,null,null,null,null,null,null,null,null,null,null,null,null,null,null,null,null,null,null,null,null,null,null,null,null,null,null,null,null,null,null,null,null,{"$f":"AJ317","v":0}]
["TOTAL GENERAL CU ACTUALIZARE",null,null,null,null,null,null,null,null,null,null,null,null,null,null,null,null,null,null,null,null,null,null,null,null,null,null,null,null,null,null,null,null,null,null,{"$f":"AJ315+AJ317","v":0},null,null,null,null,null,null,null,null,{"$f":"AS315","v":0},null,null,null,null,null,null,null,{"$f":"SUM(AJ318:AZ318)","v":0}]
["Valoare TVA",null,null,null,null,null,null,null,null,null,null,null,null,null,null,null,null,null,null,null,null,null,null,null,null,null,null,null,null,null,null,null,null,null,null,null,null,null,null,null,null,null,null,null,null,null,null,null,null,null,null,null,0]
[]
["TOTAL GENERAL inclusiv TVA",null,null,null,null,null,null,null,null,null,null,null,null,null,null,null,null,null,null,null,null,null,null,null,null,null,null,null,null,null,null,null,null,null,null,{"$f":"BA318+BA319","v":0}]
[null,null,null,null,null,null,null,null,null,null,null,null,null,null,null,null,null,null,null,null,null,null,null,null,null,null,null,null,null,null,null,null,null,null,null,"LEI",null,null,null,null,null,null,null,null,"EURO"]
["VALOARE TOTALĂ",null,null,null,null,null,null,null,null,null,null,null,null,null,null,null,null,null,null,null,null,null,null,null,null,null,null,null,null,null,null,null,null,null,null,{"$f":"AS323*AB256","v":0},null,null,null,null,null,null,null,null,{"$f":"AJ321","v":0}]
["VALOARE ELIGIBILĂ",null,null,null,null,null,null,null,null,null,null,null,null,null,null,null,null,null,null,null,null,null,null,null,null,null,null,null,null,null,null,null,null,null,null,{"$f":"AS324*AB256","v":0},null,null,null,null,null,null,null,null,{"$f":"AJ318+AJ319","v":0}]
["VALOARE NEELIGIBILĂ",null,null,null,null,null,null,null,null,null,null,null,null,null,null,null,null,null,null,null,null,null,null,null,null,null,null,null,null,null,null,null,null,null,null,{"$f":"AS325*AB256","v":0},null,null,null,null,null,null,null,null,{"$f":"AS318+AS319","v":0}]
[]
["Plan Financiar",null,null,null,null,null,null,null,null,null,null,null,null,null,null,null,null,null,null,null,null,null,null,null,null,null,null,null,null,null,null,null,null,null,null,"Cheltuieli eligibile EURO",null,null,null,null,null,null,null,null,"Cheltuieli neeligibile EURO",null,null,null,null,null,null,null,"Total"]
["Ajutor public nerambursabil (contribuţie UE şi cofinanţare naţională)",null,null,null,null,null,null,null,null,null,null,null,null,null,null,null,null,null,null,null,null,null,null,null,null,null,null,null,null,null,null,null,null,null,null,null,null,null,null,null,null,null,null,null,null,null,null,null,null,null,null,null,{"$f":"AJ328","v":0}]
["Cofinantare privata, din care:",null,null,null,null,null,null,null,null,null,null,null,null,null,null,null,null,null,null,null,null,null,null,null,null,null,null,null,null,null,null,null,null,null,null,{"$f":"SUM(AJ330:AJ331)","v":0},null,null,null,null,null,null,null,null,{"$f":"SUM(AS330:AS331)","v":0},null,null,null,null,null,null,null,{"$f":"SUM(AJ329:AZ329)","v":0}]
[null,null,null,null,null,null,null,null,null,null,null,null,null,null,null,"- autofinantare",null,null,null,null,null,null,null,null,null,null,null,null,null,null,null,null,null,null,null,null,null,null,null,null,null,null,null,null,null,null,null,null,null,null,null,null,0]
[null,null,null,null,null,null,null,null,null,null,null,null,null,null,null,"- imprumuturi",null,null,null,null,null,null,null,null,null,null,null,null,null,null,null,null,null,null,null,null,null,null,null,null,null,null,null,null,null,null,null,null,null,null,null,null,0]
["TOTAL PROIECT",null,null,null,null,null,null,null,null,null,null,null,null,null,null,null,null,null,null,null,null,null,null,null,null,null,null,null,null,null,null,null,null,null,null,{"$f":"AJ328+AJ329","v":0},null,null,null,null,null,null,null,null,{"$f":"AS329","v":0},null,null,null,null,null,null,null,0]
["Procent contribuţie publică",null,null,null,null,null,null,null,null,null,null,null,null,null,null,null,null,null,null,null,null,null,null,null,null,null,null,null,null,null,null,null,null,{"$f":"AJ328*100/AJ332","v":{"$error":"#DIV/0!"}},{"$f":"IF(AJ332=0,0,AH333)","v":0},{"$f":"AI333","v":0},null,null,null,null,null,null,null,"%"]
["Avans solicitat"]
["Procent avans solicitat ca procent din ajutorul public nerambursabil",null,null,null,null,null,null,null,null,null,null,null,null,null,null,null,null,null,null,null,null,null,null,null,null,null,null,null,null,null,null,null,null,null,{"$f":"AJ334*100/AJ328","v":{"$error":"#DIV/0!"}},{"$f":"IF(AJ328=0,0,AI335)","v":0},null,null,null,null,null,null,null,null,{"$f":"IF(AJ335<=50,\"Suma avans mai mica de 50% din ajutorul public\",\"Suma avans mai mare de 50% din ajutorul public\")","v":"Suma avans mai mica de 50% din ajutorul public"}]
[]
[]
[null,"Buget Indicativ (EURO) pentru INVESTIŢII SPECIFICE cu intensitatea de 100% - HG907/2016"]
["MINISTERUL AGRICULTURII ŞI DEZVOLTĂRII RURALE"]
["AGENŢIA PENTRU FINANŢAREA INVESTIŢIILOR RURALE"]
[]
[]
[null,"Procentul aferent intensităţi",null,null,null,null,null,null,null,null,null,null,null,null,null,100,null,null,null,null,null,"Curs EURO",null,null,null,null,null,null,null,null,null,null,null,null,"Data întocmirii Studiului de Fezabilitate/Memoriului justificativ"]
[]
["Submăsura",null,null,null,null,null,null,null,null,null,null,null,null,null,null,null,null,null,null,null,null,null,null,null,null,null,null,null,null,null,null,null,null,null,null,"M7/6A"]
["Denumirea capitolelor de cheltuieli",null,null,null,null,null,null,null,null,null,null,null,null,null,null,null,null,null,null,null,null,null,null,null,null,null,null,null,null,null,null,null,null,null,null,"Cheltuieli eligibile",null,null,null,null,null,null,null,null,"Cheltuieli neeligibile",null,null,null,null,null,null,null,"Total"]
[null,null,null,null,null,null,null,null,null,null,null,null,null,null,null,null,null,null,null,null,null,null,null,null,null,null,null,null,null,null,null,null,null,null,null,"EURO",null,null,null,null,null,null,null,null,"EURO",null,null,null,null,null,null,null,"EURO"]
[1,null,null,null,null,null,null,null,null,null,null,null,null,null,null,null,null,null,null,null,null,null,null,null,null,null,null,null,null,null,null,null,null,null,null,2,null,null,null,null,null,null,null,null,3,null,null,null,null,null,null,null,4]
["Capitolul 1 Costurile de funcţionare a cooperării",null,null,null,null,null,null,null,null,null,null,null,null,null,null,null,null,null,null,null,null,null,null,null,null,null,null,null,null,null,null,null,null,null,null,{"$f":"SUM(AJ350:AJ352)","v":0},null,null,null,null,null,null,null,null,{"$f":"SUM(AS350:AS352)","v":0},null,null,null,null,null,null,null,{"$f":"SUM(AJ349:AZ349)","v":0}]
["2.1 Cheltuieli de transport și de subzistență ale coordonatorului și partenerilor (diurna), legate de activitățile parteneriatului, conform legislatiei nationale",null,null,null,null,null,null,null,null,null,null,null,null,null,null,null,null,null,null,null,null,null,null,null,null,null,null,null,null,null,null,null,null,null,null,null,null,null,null,null,null,null,null,null,null,null,null,null,null,null,null,null,0]
["2.2 Onorarii/salarii ale personalului (de exemplu angajat salariat în vederea asigurării costurilor de secretariat, etc.)",null,null,null,null,null,null,null,null,null,null,null,null,null,null,null,null,null,null,null,null,null,null,null,null,null,null,null,null,null,null,null,null,null,null,null,null,null,null,null,null,null,null,null,null,null,null,null,null,null,null,null,0]
["2.3 Cheltuieli legate de închirierea spațiilor de desfășurare a întâlnirilor parteneriatului, inchiriere sediu, achizitie echipamente IT si alte dotari necesare desfasurarii cooperari",null,null,null,null,null,null,null,null,null,null,null,null,null,null,null,null,null,null,null,null,null,null,null,null,null,null,null,null,null,null,null,null,null,null,null,null,null,null,null,null,null,null,null,null,null,null,null,null,null,null,null,0]
["Capitolul 2 Costuri directe ale proiectelor specifice corelate cu planul proiectului, inclusiv costuri de promovare",null,null,null,null,null,null,null,null,null,null,null,null,null,null,null,null,null,null,null,null,null,null,null,null,null,null,null,null,null,null,null,null,null,null,{"$f":"SUM(AJ354:AJ357)","v":0},null,null,null,null,null,null,null,null,{"$f":"SUM(AS354:AZ357)","v":0},null,null,null,null,null,null,null,0]
["2.1 Cheltuieli de promovare inclusiv pagina web, broșuri, pliante, bannere, promovare platita prin social media si alte retele de publicitate, radio si televiziune, chirii standuri de prezentare, personalizare echipamente, personalizare auto",null,null,null,null,null,null,null,null,null,null,null,null,null,null,null,null,null,null,null,null,null,null,null,null,null,null,null,null,null,null,null,null,null,null,null,null,null,null,null,null,null,null,null,null,null,null,null,null,null,null,null,0]
["2.2 Cheltuieli legate de chirii pentru: echipamente, utilaje, mijloace transport marfă, standuri de comercializare, imobile necesare desfășurării activității descrise în proiect (altele decât sediu) etc.",null,null,null,null,null,null,null,null,null,null,null,null,null,null,null,null,null,null,null,null,null,null,null,null,null,null,null,null,null,null,null,null,null,null,null,null,null,null,null,null,null,null,null,null,null,null,null,null,null,null,null,0]
["2.3 Cheltuieli cu onorarii ale partenerilor, colaboratorilor externi, aferente activităților descrise în proiect și prestări servicii de către aceștia sau alte persoane/entități,  Inclusiv cheltuielile aferente salariului/onorariului coordonatorului de proiect",null,null,null,null,null,null,null,null,null,null,null,null,null,null,null,null,null,null,null,null,null,null,null,null,null,null,null,null,null,null,null,null,null,null,null,null,null,null,null,null,null,null,null,null,null,null,null,null,null,null,null,0]
["2.4 Alte cheltuieli ce nu pot fi incluse în categoriile de mai sus",null,null,null,null,null,null,null,null,null,null,null,null,null,null,null,null,null,null,null,null,null,null,null,null,null,null,null,null,null,null,null,null,null,null,null,null,null,null,null,null,null,null,null,null,null,null,null,null,null,null,null,0]
["Capitolul 3 Cheltuieli pentru proiectare şi asistenţă tehnică - total, din care: ",null,null,null,null,null,null,null,null,null,null,null,null,null,null,null,null,null,null,null,null,null,null,null,null,null,null,null,null,null,null,null,null,null,null,{"$f":"AJ359+AJ363+AJ364+AJ365+AJ366+AJ374+AJ377","v":0},null,null,null,null,null,null,null,null,{"$f":"AS359+AS363+AS364+AS373+AS365+AS366+AS374+AS377","v":0},null,null,null,null,null,null,null,0]
["3.1 Studii",null,null,null,null,null,null,null,null,null,null,null,null,null,null,null,null,null,null,null,null,null,null,null,null,null,null,null,null,null,null,null,null,null,null,{"$f":"SUM(AJ360:AJ362)","v":0},null,null,null,null,null,null,null,null,{"$f":"SUM(AS360:AS362)","v":0},null,null,null,null,null,null,null,{"$f":"SUM(AJ359:AZ359)","v":0}]
["      3.1.1 Studii de teren",null,null,null,null,null,null,null,null,null,null,null,null,null,null,null,null,null,null,null,null,null,null,null,null,null,null,null,null,null,null,null,null,null,null,null,null,null,null,null,null,null,null,null,null,null,null,null,null,null,null,null,0]
["      3.1.2 Raport privind impactul asupra mediului",null,null,null,null,null,null,null,null,null,null,null,null,null,null,null,null,null,null,null,null,null,null,null,null,null,null,null,null,null,null,null,null,null,null,null,null,null,null,null,null,null,null,null,null,null,null,null,null,null,null,null,0]
["      3.1.3 Alte studii specifice ",null,null,null,null,null,null,null,null,null,null,null,null,null,null,null,null,null,null,null,null,null,null,null,null,null,null,null,null,null,null,null,null,null,null,null,null,null,null,null,null,null,null,null,null,null,null,null,null,null,null,null,0]
["3.2 Documentații-suport și cheltuieli pentru obţinerea de avize, acorduri şi autorizaţii",null,null,null,null,null,null,null,null,null,null,null,null,null,null,null,null,null,null,null,null,null,null,null,null,null,null,null,null,null,null,null,null,null,null,null,null,null,null,null,null,null,null,null,null,null,null,null,null,null,null,null,0]
["3.3 Expertizare tehnică",null,null,null,null,null,null,null,null,null,null,null,null,null,null,null,null,null,null,null,null,null,null,null,null,null,null,null,null,null,null,null,null,null,null,null,null,null,null,null,null,null,null,null,null,null,null,null,null,null,null,null,0]
["3.4 Certificarea performanței energetice și auditul energetic al clădirilor",null,null,null,null,null,null,null,null,null,null,null,null,null,null,null,null,null,null,null,null,null,null,null,null,null,null,null,null,null,null,null,null,null,null,null,null,null,null,null,null,null,null,null,null,null,null,null,null,null,null,null,0]
["3.5 Proiectare",null,null,null,null,null,null,null,null,null,null,null,null,null,null,null,null,null,null,null,null,null,null,null,null,null,null,null,null,null,null,null,null,null,null,{"$f":"SUM(AJ367:AJ372)","v":0},null,null,null,null,null,null,null,null,{"$f":"SUM(AS367:AS372)","v":0},null,null,null,null,null,null,null,0]
["      3.5.1 Temă de proiectare",null,null,null,null,null,null,null,null,null,null,null,null,null,null,null,null,null,null,null,null,null,null,null,null,null,null,null,null,null,null,null,null,null,null,null,null,null,null,null,null,null,null,null,null,null,null,null,null,null,null,null,0]
["      3.5.2 Studiu de prefezabilitate",null,null,null,null,null,null,null,null,null,null,null,null,null,null,null,null,null,null,null,null,null,null,null,null,null,null,null,null,null,null,null,null,null,null,null,null,null,null,null,null,null,null,null,null,null,null,null,null,null,null,null,0]
["      3.5.3 Studiu de fezabilitate/documentație de avizare a lucrărilor de intervenții și deviz general",null,null,null,null,null,null,null,null,null,null,null,null,null,null,null,null,null,null,null,null,null,null,null,null,null,null,null,null,null,null,null,null,null,null,null,null,null,null,null,null,null,null,null,null,null,null,null,null,null,null,null,0]
["      3.5.4 Documentațiile tehnice necesare în vederea obținerii avizelor/acordurilor/ autorizațiilor",null,null,null,null,null,null,null,null,null,null,null,null,null,null,null,null,null,null,null,null,null,null,null,null,null,null,null,null,null,null,null,null,null,null,null,null,null,null,null,null,null,null,null,null,null,null,null,null,null,null,null,0]
["      3.5.5 Verificarea tehnică de calitate a proiectului tehnic și a detaliilor de execuție",null,null,null,null,null,null,null,null,null,null,null,null,null,null,null,null,null,null,null,null,null,null,null,null,null,null,null,null,null,null,null,null,null,null,null,null,null,null,null,null,null,null,null,null,null,null,null,null,null,null,null,0]
["      3.5.6 Proiect tehnic și detalii de execuție",null,null,null,null,null,null,null,null,null,null,null,null,null,null,null,null,null,null,null,null,null,null,null,null,null,null,null,null,null,null,null,null,null,null,null,null,null,null,null,null,null,null,null,null,null,null,null,null,null,null,null,0]
["3.6 Organizarea procedurilor de achiziţie",null,null,null,null,null,null,null,null,null,null,null,null,null,null,null,null,null,null,null,null,null,null,null,null,null,null,null,null,null,null,null,null,null,null,null,null,null,null,null,null,null,null,null,null,null,null,null,null,null,null,null,{"$f":"AS373","v":0}]
["3.7 Consultanță",null,null,null,null,null,null,null,null,null,null,null,null,null,null,null,null,null,null,null,null,null,null,null,null,null,null,null,null,null,null,null,null,null,null,0,null,null,null,null,null,null,null,null,{"$f":"SUM(AS375:AS376)","v":0},null,null,null,null,null,null,null,{"$f":"SUM(AJ374:AZ374)","v":0}]
["      3.7.1 Managementul de proiect pentru obiectivul de investiții",null,null,null,null,null,null,null,null,null,null,null,null,null,null,null,null,null,null,null,null,null,null,null,null,null,null,null,null,null,null,null,null,null,null,0,null,null,null,null,null,null,null,null,null,null,null,null,null,null,null,null,0]
["      3.7.2 Auditul financiar",null,null,null,null,null,null,null,null,null,null,null,null,null,null,null,null,null,null,null,null,null,null,null,null,null,null,null,null,null,null,null,null,null,null,null,null,null,null,null,null,null,null,null,null,null,null,null,null,null,null,null,{"$f":"AS376","v":0}]
["3.8 Asistența tehnică",null,null,null,null,null,null,null,null,null,null,null,null,null,null,null,null,null,null,null,null,null,null,null,null,null,null,null,null,null,null,null,null,null,null,{"$f":"AJ378+AJ381","v":0},null,null,null,null,null,null,null,null,{"$f":"AS378+AS381","v":0},null,null,null,null,null,null,null,{"$f":"SUM(AJ377:AZ377)","v":0}]
["     3.8.1 Asistență tehnică din partea proiectantului",null,null,null,null,null,null,null,null,null,null,null,null,null,null,null,null,null,null,null,null,null,null,null,null,null,null,null,null,null,null,null,null,null,null,{"$f":"SUM(AJ379:AJ380)","v":0},null,null,null,null,null,null,null,null,{"$f":"SUM(AS379:AS380)","v":0},null,null,null,null,null,null,null,0]
["            3.8.1.1 pe perioada de execuție a lucrărilor",null,null,null,null,null,null,null,null,null,null,null,null,null,null,null,null,null,null,null,null,null,null,null,null,null,null,null,null,null,null,null,null,null,null,null,null,null,null,null,null,null,null,null,null,null,null,null,null,null,null,null,0]
["            3.8.1.2 pentru participarea proiectantului la fazele incluse în programul de control al lucrărilor de execuție, avizat de către Inspectoratul de Stat în Construcții",null,null,null,null,null,null,null,null,null,null,null,null,null,null,null,null,null,null,null,null,null,null,null,null,null,null,null,null,null,null,null,null,null,null,null,null,null,null,null,null,null,null,null,null,null,null,null,null,null,null,null,0]
["      3.8.2 Dirigenție de șantier",null,null,null,null,null,null,null,null,null,null,null,null,null,null,null,null,null,null,null,null,null,null,null,null,null,null,null,null,null,null,null,null,null,null,null,null,null,null,null,null,null,null,null,null,null,null,null,null,null,null,null,0]
["3.9. Elaborare de planuri, studii, analize de piață "]
["TOTAL GENERAL",null,null,null,null,null,null,null,null,null,null,null,null,null,null,null,null,null,null,null,null,null,null,null,null,null,null,null,null,null,null,null,null,null,null,{"$f":"AJ349+AJ353+AJ358","v":0},null,null,null,null,null,null,null,null,{"$f":"AS349+AS353+AS358","v":0},null,null,null,null,null,null,null,{"$f":"SUM(AJ383:AZ383)","v":0}]
["Verificare actualizare",null,null,null,null,null,null,null,null,null,null,null,null,null,null,null,null,null,null,null,null,null,null,null,null,null,null,null,null,null,null,{"$f":"AJ385*100/AJ383","v":{"$error":"#DIV/0!"}},null,null,{"$f":"IF(AJ383=0,0,AF384)","v":0},{"$f":"IF(AI384<=5,\"actualizare mai mică de 5% din valoarea eligibila\",\"actualizare mai mare de 5% din valoarea eligibila\")","v":"actualizare mai mică de 5% din valoarea eligibila"}]
["ACTUALIZARE Cheltuieli Eligibile (max 5%)",null,null,null,null,null,null,null,null,null,null,null,null,null,null,null,null,null,null,null,null,null,null,null,null,null,null,null,null,null,null,null,null,null,null,null,null,null,null,null,null,null,null,null,null,null,null,null,null,null,null,null,{"$f":"AJ385","v":0}]
["TOTAL GENERAL CU ACTUALIZARE",null,null,null,null,null,null,null,null,null,null,null,null,null,null,null,null,null,null,null,null,null,null,null,null,null,null,null,null,null,null,null,null,null,null,{"$f":"AJ383+AJ385","v":0},null,null,null,null,null,null,null,null,{"$f":"AS383","v":0},null,null,null,null,null,null,null,{"$f":"SUM(AJ386:AZ386)","v":0}]
["Valoare TVA",null,null,null,null,null,null,null,null,null,null,null,null,null,null,null,null,null,null,null,null,null,null,null,null,null,null,null,null,null,null,null,null,null,null,null,null,null,null,null,null,null,null,null,null,null,null,null,null,null,null,null,{"$f":"SUM(AJ387:AZ387)","v":0}]
[null,null,null,null,null,null,null,null,null,null,null,null,null,null,null,null,null,null,null,null,null,null,null,null,null,null,null,null,null,null,null,null,null,null,null,{"$f":"SUM(AJ386:AR387)","v":0},null,null,null,null,null,null,null,null,{"$f":"SUM(AS386:AZ387)","v":0},null,null,null,null,null,null,null,0]
["TOTAL GENERAL inclusiv TVA",null,null,null,null,null,null,null,null,null,null,null,null,null,null,null,null,null,null,null,null,null,null,null,null,null,null,null,null,null,null,null,null,null,null,{"$f":"BA386+BA387","v":0}]
[null,null,null,null,null,null,null,null,null,null,null,null,null,null,null,null,null,null,null,null,null,null,null,null,null,null,null,null,null,null,null,null,null,null,null,"LEI",null,null,null,null,null,null,null,null,"EURO"]
["VALOARE TOTALĂ",null,null,null,null,null,null,null,null,null,null,null,null,null,null,null,null,null,null,null,null,null,null,null,null,null,null,null,null,null,null,null,null,null,null,{"$f":"AS391*AB343","v":0},null,null,null,null,null,null,null,null,{"$f":"AJ389","v":0}]
["VALOARE ELIGIBILĂ",null,null,null,null,null,null,null,null,null,null,null,null,null,null,null,null,null,null,null,null,null,null,null,null,null,null,null,null,null,null,null,null,null,null,{"$f":"AS392*AB343","v":0},null,null,null,null,null,null,null,null,{"$f":"AJ386+AJ387","v":0}]
["VALOARE NEELIGIBILĂ",null,null,null,null,null,null,null,null,null,null,null,null,null,null,null,null,null,null,null,null,null,null,null,null,null,null,null,null,null,null,null,null,null,null,{"$f":"AS393*AB343","v":0},null,null,null,null,null,null,null,null,{"$f":"AS386+AS387","v":0}]
[]
["Plan Financiar",null,null,null,null,null,null,null,null,null,null,null,null,null,null,null,null,null,null,null,null,null,null,null,null,null,null,null,null,null,null,null,null,null,null,"Cheltuieli eligibile EURO",null,null,null,null,null,null,null,null,"Cheltuieli neeligibile EURO",null,null,null,null,null,null,null,"Total"]
["Ajutor public nerambursabil (contribuţie UE şi cofinanţare naţională)",null,null,null,null,null,null,null,null,null,null,null,null,null,null,null,null,null,null,null,null,null,null,null,null,null,null,null,null,null,null,null,null,null,null,null,null,null,null,null,null,null,null,null,null,null,null,null,null,null,null,null,{"$f":"AJ396","v":0}]
["Cofinantare privata, din care:",null,null,null,null,null,null,null,null,null,null,null,null,null,null,null,null,null,null,null,null,null,null,null,null,null,null,null,null,null,null,null,null,null,null,0,null,null,null,null,null,null,null,null,{"$f":"SUM(AS398:AZ399)","v":0},null,null,null,null,null,null,null,{"$f":"SUM(AJ397:AZ397)","v":0}]
[null,null,null,null,null,null,null,null,null,null,null,null,null,null,null,"- autofinantare",null,null,null,null,null,null,null,null,null,null,null,null,null,null,null,null,null,null,null,null,null,null,null,null,null,null,null,null,null,null,null,null,null,null,null,null,0]
[null,null,null,null,null,null,null,null,null,null,null,null,null,null,null,"- imprumuturi",null,null,null,null,null,null,null,null,null,null,null,null,null,null,null,null,null,null,null,null,null,null,null,null,null,null,null,null,null,null,null,null,null,null,null,null,0]
["TOTAL PROIECT",null,null,null,null,null,null,null,null,null,null,null,null,null,null,null,null,null,null,null,null,null,null,null,null,null,null,null,null,null,null,null,null,null,null,{"$f":"AJ396+AJ397","v":0},null,null,null,null,null,null,null,null,{"$f":"AS397","v":0},null,null,null,null,null,null,null,{"$f":"SUM(AJ400:AZ400)","v":0}]
["Procent contribuţie publică",null,null,null,null,null,null,null,null,null,null,null,null,null,null,null,null,null,null,null,null,null,null,null,null,null,null,null,null,null,null,null,null,{"$f":"AJ396*100/AJ400","v":{"$error":"#DIV/0!"}},{"$f":"IF(AJ400=0,0,AH401)","v":0},{"$f":"AI401","v":0},null,null,null,null,null,null,null,"%"]
["Avans solicitat"]
["Procent avans solicitat ca procent din ajutorul public nerambursabil",null,null,null,null,null,null,null,null,null,null,null,null,null,null,null,null,null,null,null,null,null,null,null,null,null,null,null,null,null,null,null,null,null,{"$f":"AJ402*100/AJ396","v":{"$error":"#DIV/0!"}},{"$f":"IF(AJ396=0,0,AI403)","v":0},null,null,null,null,null,null,null,null,{"$f":"IF(AJ403<=50,\"Suma avans mai mica de 50% din ajutorul public\",\"Suma avans mai mare de 50% din ajutorul public\")","v":"Suma avans mai mica de 50% din ajutorul public"}]
[null,"Sectiunea C: BUGET INDICATIV TOTALIZATOR (EURO) - HG907/2016"]
["MINISTERUL AGRICULTURII ŞI DEZVOLTĂRII RURALE"]
["AGENŢIA PENTRU FINANŢAREA INVESTIŢIILOR RURALE"]
["Buget Indicativ Totalizator al Proiectului (Valori fara TVA )"]
[]
[null,"Curs EURO",null,null,null,null,null,null,null,null,null,null,null,null,null,null,null,null,"Data întocmirii devizului general din SF/DALI/MJ"]
[]
["Buget Indicativ Totalizator al Proiectului (Valori fara TVA )"]
["Submăsura",null,null,null,null,null,null,null,null,null,null,null,null,null,null,null,null,null,null,null,null,null,null,null,null,null,null,null,null,null,null,null,null,null,null,"M7/6A"]
["Denumirea capitolelor de cheltuieli",null,null,null,null,null,null,null,null,null,null,null,null,null,null,null,null,null,null,null,null,null,null,null,null,null,null,null,null,null,null,null,null,null,null,"Cheltuieli eligibile",null,null,null,null,null,null,null,null,"Cheltuieli neeligibile",null,null,null,null,null,null,null,"Total"]
[null,null,null,null,null,null,null,null,null,null,null,null,null,null,null,null,null,null,null,null,null,null,null,null,null,null,null,null,null,null,null,null,null,null,null,"EURO",null,null,null,null,null,null,null,null,"EURO",null,null,null,null,null,null,null,"EURO"]
[1,null,null,null,null,null,null,null,null,null,null,null,null,null,null,null,null,null,null,null,null,null,null,null,null,null,null,null,null,null,null,null,null,null,null,2,null,null,null,null,null,null,null,null,3,null,null,null,null,null,null,null,4]
["Capitolul 1 Cheltuieli pentru obtinerea şi amenajarea terenului - total, din care:",null,null,null,null,null,null,null,null,null,null,null,null,null,null,null,null,null,null,null,null,null,null,null,null,null,null,null,null,null,null,null,null,null,null,0,null,null,null,null,null,null,null,null,{"$f":"SUM(AS417:AS420)","v":0},null,null,null,null,null,null,null,{"$f":"SUM(AJ416:AZ416)","v":0}]
["1.1 Obţinerea terenului",null,null,null,null,null,null,null,null,null,null,null,null,null,null,null,null,null,null,null,null,null,null,null,null,null,null,null,null,null,null,null,null,null,null,null,null,null,null,null,null,null,null,null,null,null,null,null,null,null,null,null,{"$f":"AS417","v":0}]
["1.2 Amenajarea terenului",null,null,null,null,null,null,null,null,null,null,null,null,null,null,null,null,null,null,null,null,null,null,null,null,null,null,null,null,null,null,null,null,null,null,null,null,null,null,null,null,null,null,null,null,null,null,null,null,null,null,null,{"$f":"SUM(AJ418:AZ418)","v":0}]
["1.3 Amenajari pentru protecţia mediului şi aducerea terenului la starea iniţială",null,null,null,null,null,null,null,null,null,null,null,null,null,null,null,null,null,null,null,null,null,null,null,null,null,null,null,null,null,null,null,null,null,null,null,null,null,null,null,null,null,null,null,null,null,null,null,null,null,null,null,0]
["1.4 Cheltuieli pentru relocarea/protecţia utilităţilor",null,null,null,null,null,null,null,null,null,null,null,null,null,null,null,null,null,null,null,null,null,null,null,null,null,null,null,null,null,null,null,null,null,null,null,null,null,null,null,null,null,null,null,null,null,null,null,null,null,null,null,0]
["Capitolul 2 Cheltuieli pentru asigurarea utilităţilor necesare obiectivului de investiții",null,null,null,null,null,null,null,null,null,null,null,null,null,null,null,null,null,null,null,null,null,null,null,null,null,null,null,null,null,null,null,null,null,null,null,null,null,null,null,null,null,null,null,null,null,null,null,null,null,null,null,0]
["Capitolul 3 Cheltuieli pentru proiectare şi asistenţă tehnică - total, din care: NU SE VA COMPLETA AICI, CI LA CAPITOLUL 7 (INTENSITATE 100%)",null,null,null,null,null,null,null,null,null,null,null,null,null,null,null,null,null,null,null,null,null,null,null,null,null,null,null,null,null,null,null,null,null,null,{"$f":"AJ423+AJ427+AJ428+AJ429+AJ430+AJ438+AJ441","v":0},null,null,null,null,null,null,null,null,{"$f":"AS423+AS427+AS428+AS437+AS429+AS430+AS438+AS441","v":0},null,null,null,null,null,null,null,0]
["3.1 Studii",null,null,null,null,null,null,null,null,null,null,null,null,null,null,null,null,null,null,null,null,null,null,null,null,null,null,null,null,null,null,null,null,null,null,{"$f":"SUM(AJ424:AJ426)","v":0},null,null,null,null,null,null,null,null,{"$f":"SUM(AS424:AS426)","v":0},null,null,null,null,null,null,null,{"$f":"SUM(AJ423:AZ423)","v":0}]
["      3.1.1 Studii de teren",null,null,null,null,null,null,null,null,null,null,null,null,null,null,null,null,null,null,null,null,null,null,null,null,null,null,null,null,null,null,null,null,null,null,null,null,null,null,null,null,null,null,null,null,null,null,null,null,null,null,null,0]
["      3.1.2 Raport privind impactul asupra mediului",null,null,null,null,null,null,null,null,null,null,null,null,null,null,null,null,null,null,null,null,null,null,null,null,null,null,null,null,null,null,null,null,null,null,null,null,null,null,null,null,null,null,null,null,null,null,null,null,null,null,null,0]
["      3.1.3 Alte studii specifice ",null,null,null,null,null,null,null,null,null,null,null,null,null,null,null,null,null,null,null,null,null,null,null,null,null,null,null,null,null,null,null,null,null,null,null,null,null,null,null,null,null,null,null,null,null,null,null,null,null,null,null,0]
["3.2 Documentații-suport și cheltuieli pentru obţinerea de avize, acorduri şi autorizaţii",null,null,null,null,null,null,null,null,null,null,null,null,null,null,null,null,null,null,null,null,null,null,null,null,null,null,null,null,null,null,null,null,null,null,null,null,null,null,null,null,null,null,null,null,null,null,null,null,null,null,null,0]
["3.3 Expertizare tehnică",null,null,null,null,null,null,null,null,null,null,null,null,null,null,null,null,null,null,null,null,null,null,null,null,null,null,null,null,null,null,null,null,null,null,null,null,null,null,null,null,null,null,null,null,null,null,null,null,null,null,null,0]
["3.4 Certificarea performanței energetice și auditul energetic al clădirilor",null,null,null,null,null,null,null,null,null,null,null,null,null,null,null,null,null,null,null,null,null,null,null,null,null,null,null,null,null,null,null,null,null,null,null,null,null,null,null,null,null,null,null,null,null,null,null,null,null,null,null,0]
["3.5 Proiectare",null,null,null,null,null,null,null,null,null,null,null,null,null,null,null,null,null,null,null,null,null,null,null,null,null,null,null,null,null,null,null,null,null,null,{"$f":"SUM(AJ431:AJ436)","v":0},null,null,null,null,null,null,null,null,{"$f":"SUM(AS431:AS436)","v":0},null,null,null,null,null,null,null,0]
["      3.5.1 Temă de proiectare",null,null,null,null,null,null,null,null,null,null,null,null,null,null,null,null,null,null,null,null,null,null,null,null,null,null,null,null,null,null,null,null,null,null,null,null,null,null,null,null,null,null,null,null,null,null,null,null,null,null,null,0]
["      3.5.2 Studiu de prefezabilitate",null,null,null,null,null,null,null,null,null,null,null,null,null,null,null,null,null,null,null,null,null,null,null,null,null,null,null,null,null,null,null,null,null,null,null,null,null,null,null,null,null,null,null,null,null,null,null,null,null,null,null,0]
["      3.5.3 Studiu de fezabilitate/documentație de avizare a lucrărilor de intervenții și deviz general",null,null,null,null,null,null,null,null,null,null,null,null,null,null,null,null,null,null,null,null,null,null,null,null,null,null,null,null,null,null,null,null,null,null,null,null,null,null,null,null,null,null,null,null,null,null,null,null,null,null,null,0]
["      3.5.4 Documentațiile tehnice necesare în vederea obținerii avizelor/acordurilor/ autorizațiilor",null,null,null,null,null,null,null,null,null,null,null,null,null,null,null,null,null,null,null,null,null,null,null,null,null,null,null,null,null,null,null,null,null,null,null,null,null,null,null,null,null,null,null,null,null,null,null,null,null,null,null,0]
["      3.5.5 Verificarea tehnică de calitate a proiectului tehnic și a detaliilor de execuție",null,null,null,null,null,null,null,null,null,null,null,null,null,null,null,null,null,null,null,null,null,null,null,null,null,null,null,null,null,null,null,null,null,null,null,null,null,null,null,null,null,null,null,null,null,null,null,null,null,null,null,0]
["      3.5.6 Proiect tehnic și detalii de execuție",null,null,null,null,null,null,null,null,null,null,null,null,null,null,null,null,null,null,null,null,null,null,null,null,null,null,null,null,null,null,null,null,null,null,null,null,null,null,null,null,null,null,null,null,null,null,null,null,null,null,null,0]
["3.6 Organizarea procedurilor de achiziţie",null,null,null,null,null,null,null,null,null,null,null,null,null,null,null,null,null,null,null,null,null,null,null,null,null,null,null,null,null,null,null,null,null,null,null,null,null,null,null,null,null,null,null,null,null,null,null,null,null,null,null,{"$f":"AS437","v":0}]
["3.7 Consultanță",null,null,null,null,null,null,null,null,null,null,null,null,null,null,null,null,null,null,null,null,null,null,null,null,null,null,null,null,null,null,null,null,null,null,0,null,null,null,null,null,null,null,null,{"$f":"SUM(AS439:AS440)","v":0},null,null,null,null,null,null,null,{"$f":"SUM(AJ438:AZ438)","v":0}]
["      3.7.1 Managementul de proiect pentru obiectivul de investiții",null,null,null,null,null,null,null,null,null,null,null,null,null,null,null,null,null,null,null,null,null,null,null,null,null,null,null,null,null,null,null,null,null,null,0,null,null,null,null,null,null,null,null,null,null,null,null,null,null,null,null,0]
["      3.7.2 Auditul financiar",null,null,null,null,null,null,null,null,null,null,null,null,null,null,null,null,null,null,null,null,null,null,null,null,null,null,null,null,null,null,null,null,null,null,null,null,null,null,null,null,null,null,null,null,null,null,null,null,null,null,null,{"$f":"AS440","v":0}]
["3.8 Asistența tehnică",null,null,null,null,null,null,null,null,null,null,null,null,null,null,null,null,null,null,null,null,null,null,null,null,null,null,null,null,null,null,null,null,null,null,{"$f":"AJ442+AJ445","v":0},null,null,null,null,null,null,null,null,{"$f":"AS442+AS445","v":0},null,null,null,null,null,null,null,{"$f":"SUM(AJ441:AZ441)","v":0}]
["     3.8.1 Asistență tehnică din partea proiectantului",null,null,null,null,null,null,null,null,null,null,null,null,null,null,null,null,null,null,null,null,null,null,null,null,null,null,null,null,null,null,null,null,null,null,{"$f":"SUM(AJ443:AJ444)","v":0},null,null,null,null,null,null,null,null,{"$f":"SUM(AS443:AS444)","v":0},null,null,null,null,null,null,null,0]
["            3.8.1.1 pe perioada de execuție a lucrărilor",null,null,null,null,null,null,null,null,null,null,null,null,null,null,null,null,null,null,null,null,null,null,null,null,null,null,null,null,null,null,null,null,null,null,null,null,null,null,null,null,null,null,null,null,null,null,null,null,null,null,null,0]
["            3.8.1.2 pentru participarea proiectantului la fazele incluse în programul de control al lucrărilor de execuție, avizat de către Inspectoratul de Stat în Construcții",null,null,null,null,null,null,null,null,null,null,null,null,null,null,null,null,null,null,null,null,null,null,null,null,null,null,null,null,null,null,null,null,null,null,null,null,null,null,null,null,null,null,null,null,null,null,null,null,null,null,null,0]
["      3.8.2 Dirigenție de șantier",null,null,null,null,null,null,null,null,null,null,null,null,null,null,null,null,null,null,null,null,null,null,null,null,null,null,null,null,null,null,null,null,null,null,null,null,null,null,null,null,null,null,null,null,null,null,null,null,null,null,null,0]
["3.9. Elaborare de planuri, studii, analize de piață"]
["Capitolul 4 Cheltuieli pentru investiţia de bază - total, din care:",null,null,null,null,null,null,null,null,null,null,null,null,null,null,null,null,null,null,null,null,null,null,null,null,null,null,null,null,null,null,null,null,null,null,0,null,null,null,null,null,null,null,null,{"$f":"SUM(AS448:AS453)","v":0},null,null,null,null,null,null,null,0]
["4.1 Construcţii şi instalaţii",null,null,null,null,null,null,null,null,null,null,null,null,null,null,null,null,null,null,null,null,null,null,null,null,null,null,null,null,null,null,null,null,null,null,null,null,null,null,null,null,null,null,null,null,null,null,null,null,null,null,null,0]
["4.2 Montaj utilaje, echipamente tehnologice şi funcţionale",null,null,null,null,null,null,null,null,null,null,null,null,null,null,null,null,null,null,null,null,null,null,null,null,null,null,null,null,null,null,null,null,null,null,null,null,null,null,null,null,null,null,null,null,null,null,null,null,null,null,null,0]
["4.3 Utilaje, echipamente tehnologice şi funcţionale care necesită montaj",null,null,null,null,null,null,null,null,null,null,null,null,null,null,null,null,null,null,null,null,null,null,null,null,null,null,null,null,null,null,null,null,null,null,null,null,null,null,null,null,null,null,null,null,null,null,null,null,null,null,null,0]
["4.4 Utilaje, echipamente tehnologice şi funcţionale care nu necesită montaj şi echipamente de transport",null,null,null,null,null,null,null,null,null,null,null,null,null,null,null,null,null,null,null,null,null,null,null,null,null,null,null,null,null,null,null,null,null,null,null,null,null,null,null,null,null,null,null,null,null,null,null,null,null,null,null,0]
["4.5 Dotări",null,null,null,null,null,null,null,null,null,null,null,null,null,null,null,null,null,null,null,null,null,null,null,null,null,null,null,null,null,null,null,null,null,null,0,null,null,null,null,null,null,null,null,null,null,null,null,null,null,null,null,0]
["4.6 Active necorporale",null,null,null,null,null,null,null,null,null,null,null,null,null,null,null,null,null,null,null,null,null,null,null,null,null,null,null,null,null,null,null,null,null,null,null,null,null,null,null,null,null,null,null,null,null,null,null,null,null,null,null,0]
["Capitolul 5 Alte cheltuieli - total, din care:",null,null,null,null,null,null,null,null,null,null,null,null,null,null,null,null,null,null,null,null,null,null,null,null,null,null,null,null,null,null,null,null,null,null,0,null,null,null,null,null,null,null,null,{"$f":"AS455+AS458+AS464+AS465","v":0},null,null,null,null,null,null,null,0]
["5.1 Organizare de şantier",null,null,null,null,null,null,null,null,null,null,null,null,null,null,null,null,null,null,null,null,null,null,null,null,null,null,null,null,null,null,null,null,null,null,0,null,null,null,null,null,null,null,null,{"$f":"SUM(AS456:AZ457)","v":0},null,null,null,null,null,null,null,0]
["      5.1.1 Lucrări de construcţii şi instalaţii aferente organizării de şantier",null,null,null,null,null,null,null,null,null,null,null,null,null,null,null,null,null,null,null,null,null,null,null,null,null,null,null,null,null,null,null,null,null,null,null,null,null,null,null,null,null,null,null,null,null,null,null,null,null,null,null,0]
["      5.1.2 Cheltuieli conexe orgănizării şantierului",null,null,null,null,null,null,null,null,null,null,null,null,null,null,null,null,null,null,null,null,null,null,null,null,null,null,null,null,null,null,null,null,null,null,null,null,null,null,null,null,null,null,null,null,null,null,null,null,null,null,null,0]
["4.2 Comisioane, cote, taxe, costul creditului",null,null,null,null,null,null,null,null,null,null,null,null,null,null,null,null,null,null,null,null,null,null,null,null,null,null,null,null,null,null,null,null,null,null,{"$f":"SUM(AJ460:AR463)-AJ462","v":0},null,null,null,null,null,null,null,null,{"$f":"SUM(AS459:AZ463)","v":0},null,null,null,null,null,null,null,{"$f":"SUM(AJ458:AZ458)","v":0}]
["      5.2.1 Comisioanele și dobânzile aferente creditului băncii finanțatoare",null,null,null,null,null,null,null,null,null,null,null,null,null,null,null,null,null,null,null,null,null,null,null,null,null,null,null,null,null,null,null,null,null,null,null,null,null,null,null,null,null,null,null,null,null,null,null,null,null,null,null,{"$f":"AS459","v":0}]
["      5.2.2 Cota aferentă ISC pentru controlul calității lucrărilor de construcții",null,null,null,null,null,null,null,null,null,null,null,null,null,null,null,null,null,null,null,null,null,null,null,null,null,null,null,null,null,null,null,null,null,null,null,null,null,null,null,null,null,null,null,null,null,null,null,null,null,null,null,{"$f":"SUM(AJ460:AZ460)","v":0}]
["      5.2.3 Cota aferentă ISC pentru controlul statului în amenajarea teritoriului, urbanism și pentru autorizarea lucrărilor de construcţii",null,null,null,null,null,null,null,null,null,null,null,null,null,null,null,null,null,null,null,null,null,null,null,null,null,null,null,null,null,null,null,null,null,null,null,null,null,null,null,null,null,null,null,null,null,null,null,null,null,null,null,0]
["      5.2.4 Cota aferentă Casei Sociale a Constructorilor - CSC",null,null,null,null,null,null,null,null,null,null,null,null,null,null,null,null,null,null,null,null,null,null,null,null,null,null,null,null,null,null,null,null,null,null,null,null,null,null,null,null,null,null,null,null,null,null,null,null,null,null,null,{"$f":"AS462","v":0}]
["      5.2.5 Taxe pentru acorduri, avize conforme și autorizația de construire/desființare",null,null,null,null,null,null,null,null,null,null,null,null,null,null,null,null,null,null,null,null,null,null,null,null,null,null,null,null,null,null,null,null,null,null,null,null,null,null,null,null,null,null,null,null,null,null,null,null,null,null,null,{"$f":"SUM(AJ463:AZ463)","v":0}]
["5.3 Cheltuieli diverse şi neprevăzute",null,null,null,null,null,null,null,null,null,null,null,null,null,null,null,null,null,null,null,null,null,null,null,null,null,null,null,null,null,null,null,null,null,null,null,null,null,null,null,null,null,null,null,null,null,null,null,null,null,null,null,0]
["5.4 Cheltuieli pentru informare și publicitate",null,null,null,null,null,null,null,null,null,null,null,null,null,null,null,null,null,null,null,null,null,null,null,null,null,null,null,null,null,null,null,null,null,null,null,null,null,null,null,null,null,null,null,null,null,null,null,null,null,null,null,{"$f":"AS465","v":0}]
["Procent cheltuieli diverse şi neprevăzute",null,null,null,null,null,null,null,null,null,null,null,null,null,null,null,null,null,null,null,null,null,null,null,null,null,null,null,null,null,null,null,null,null,null,{"$f":"IF((AJ418+AJ419+AJ10237+AJ421+AJ447)=0,0,(AJ464/(AJ418+AJ419+AJ10237+AJ421+#REF!+#REF!+AJ447)*100))","v":0},null,null,null,null,null,null,null,null,null,null,null,null,null,null,null,null,null,null,null,null,null,null,null,"%"]
["Capitolul 6 Cheltuieli pentru probe tehnologice şi teste - total, din care:",null,null,null,null,null,null,null,null,null,null,null,null,null,null,null,null,null,null,null,null,null,null,null,null,null,null,null,null,null,null,null,null,null,null,0,null,null,null,null,null,null,null,null,{"$f":"SUM(AS468:AS469)","v":0},null,null,null,null,null,null,null,{"$f":"SUM(AJ467:AZ467)","v":0}]
["6.1 Pregătirea personalului de exploatare",null,null,null,null,null,null,null,null,null,null,null,null,null,null,null,null,null,null,null,null,null,null,null,null,null,null,null,null,null,null,null,null,null,null,null,null,null,null,null,null,null,null,null,null,null,null,null,null,null,null,null,{"$f":"AS468","v":0}]
["6.2 Probe tehnologice şi teste",null,null,null,null,null,null,null,null,null,null,null,null,null,null,null,null,null,null,null,null,null,null,null,null,null,null,null,null,null,null,null,null,null,null,null,null,null,null,null,null,null,null,null,null,null,null,null,null,null,null,null,{"$f":"SUM(AJ469:AZ469)","v":0}]
["Capitolul 7 Cheltuieli specifice cu intensitatea de 100%"]
[" 7.1 Costurile de funcţionare a cooperării",null,null,null,null,null,null,null,null,null,null,null,null,null,null,null,null,null,null,null,null,null,null,null,null,null,null,null,null,null,null,null,null,null,null,{"$f":"SUM(AJ472:AR474)","v":0},null,null,null,null,null,null,null,null,{"$f":"SUM(AS472:AZ474)","v":0},null,null,null,null,null,null,null,{"$f":"SUM(AJ471:AZ471)","v":0}]
["7.1.1 Cheltuieli de transport și de subzistență ale coordonatorului și partenerilor (diurna), legate de activitățile parteneriatului, conform legislatiei nationale",null,null,null,null,null,null,null,null,null,null,null,null,null,null,null,null,null,null,null,null,null,null,null,null,null,null,null,null,null,null,null,null,null,null,null,null,null,null,null,null,null,null,null,null,null,null,null,null,null,null,null,{"$f":"SUM(AJ472:AZ472)","v":0}]
["7.1.2 Onorarii/salarii ale personalului (de exemplu angajat salariat în vederea asigurării costurilor de secretariat, etc.)",null,null,null,null,null,null,null,null,null,null,null,null,null,null,null,null,null,null,null,null,null,null,null,null,null,null,null,null,null,null,null,null,null,null,null,null,null,null,null,null,null,null,null,null,null,null,null,null,null,null,null,0]
["7.1.3 Cheltuieli legate de închirierea spațiilor de desfășurare a întâlnirilor parteneriatului, inchiriere sediu, achizitie echipamente IT si alte dotari necesare desfasurarii cooperari",null,null,null,null,null,null,null,null,null,null,null,null,null,null,null,null,null,null,null,null,null,null,null,null,null,null,null,null,null,null,null,null,null,null,null,null,null,null,null,null,null,null,null,null,null,null,null,null,null,null,null,0]
["7.2 Costuri directe ale proiectelor specifice corelate cu planul proiectului, inclusiv costuri de promovare",null,null,null,null,null,null,null,null,null,null,null,null,null,null,null,null,null,null,null,null,null,null,null,null,null,null,null,null,null,null,null,null,null,null,{"$f":"SUM(AJ476:AJ479)","v":0},null,null,null,null,null,null,null,null,{"$f":"SUM(AS476:AZ479)","v":0},null,null,null,null,null,null,null,0]
["7.2.1 Cheltuieli de promovare inclusiv pagina web, broșuri, pliante, bannere, promovare platita prin social media si alte retele de publicitate, radio si televiziune, chirii standuri de prezentare, personalizare echipamente, personalizare auto",null,null,null,null,null,null,null,null,null,null,null,null,null,null,null,null,null,null,null,null,null,null,null,null,null,null,null,null,null,null,null,null,null,null,null,null,null,null,null,null,null,null,null,null,null,null,null,null,null,null,null,0]
["7.2.2 Cheltuieli legate de chirii pentru: echipamente, utilaje, mijloace transport marfă, standuri de comercializare, imobile necesare desfășurării activității descrise în proiect (altele decât sediu) etc.",null,null,null,null,null,null,null,null,null,null,null,null,null,null,null,null,null,null,null,null,null,null,null,null,null,null,null,null,null,null,null,null,null,null,null,null,null,null,null,null,null,null,null,null,null,null,null,null,null,null,null,0]
["7.2.3 Cheltuieli cu onorarii ale partenerilor, colaboratorilor externi, aferente activităților descrise în proiect și prestări servicii de către aceștia sau alte persoane/entități,  Inclusiv cheltuielile aferente salariului/onorariului coordonatorului de proiect",null,null,null,null,null,null,null,null,null,null,null,null,null,null,null,null,null,null,null,null,null,null,null,null,null,null,null,null,null,null,null,null,null,null,null,null,null,null,null,null,null,null,null,null,null,null,null,null,null,null,null,0]
["7.2.4 Alte cheltuieli ce nu pot fi incluse în categoriile de mai sus",null,null,null,null,null,null,null,null,null,null,null,null,null,null,null,null,null,null,null,null,null,null,null,null,null,null,null,null,null,null,null,null,null,null,null,null,null,null,null,null,null,null,null,null,null,null,null,null,null,null,null,0]
["7.3 Cheltuieli pentru proiectare şi asistenţă tehnică - total, din care: ",null,null,null,null,null,null,null,null,null,null,null,null,null,null,null,null,null,null,null,null,null,null,null,null,null,null,null,null,null,null,null,null,null,null,{"$f":"AJ481+AJ485+AJ486+AJ487+AJ488+AJ496+AJ499","v":0},null,null,null,null,null,null,null,null,{"$f":"AS481+AS485+AS486+AS495+AS487+AS488+AS496+AS499","v":0},null,null,null,null,null,null,null,0]
["7.3.1 Studii",null,null,null,null,null,null,null,null,null,null,null,null,null,null,null,null,null,null,null,null,null,null,null,null,null,null,null,null,null,null,null,null,null,null,{"$f":"SUM(AJ482:AJ484)","v":0},null,null,null,null,null,null,null,null,{"$f":"SUM(AS482:AS484)","v":0},null,null,null,null,null,null,null,{"$f":"SUM(AJ481:AZ481)","v":0}]
["    7.3.1.1 Studii de teren",null,null,null,null,null,null,null,null,null,null,null,null,null,null,null,null,null,null,null,null,null,null,null,null,null,null,null,null,null,null,null,null,null,null,null,null,null,null,null,null,null,null,null,null,null,null,null,null,null,null,null,0]
["      7.3.1.2 Raport privind impactul asupra mediului",null,null,null,null,null,null,null,null,null,null,null,null,null,null,null,null,null,null,null,null,null,null,null,null,null,null,null,null,null,null,null,null,null,null,null,null,null,null,null,null,null,null,null,null,null,null,null,null,null,null,null,0]
["      7.3.1.3 Alte studii specifice (studii, planuri, analize de piață etc.)",null,null,null,null,null,null,null,null,null,null,null,null,null,null,null,null,null,null,null,null,null,null,null,null,null,null,null,null,null,null,null,null,null,null,null,null,null,null,null,null,null,null,null,null,null,null,null,null,null,null,null,0]
["7.3.2 Documentații-suport și cheltuieli pentru obţinerea de avize, acorduri şi autorizaţii",null,null,null,null,null,null,null,null,null,null,null,null,null,null,null,null,null,null,null,null,null,null,null,null,null,null,null,null,null,null,null,null,null,null,null,null,null,null,null,null,null,null,null,null,null,null,null,null,null,null,null,0]
["7.3.3 Expertizare tehnică",null,null,null,null,null,null,null,null,null,null,null,null,null,null,null,null,null,null,null,null,null,null,null,null,null,null,null,null,null,null,null,null,null,null,null,null,null,null,null,null,null,null,null,null,null,null,null,null,null,null,null,0]
["7.3.4 Certificarea performanței energetice și auditul energetic al clădirilor",null,null,null,null,null,null,null,null,null,null,null,null,null,null,null,null,null,null,null,null,null,null,null,null,null,null,null,null,null,null,null,null,null,null,null,null,null,null,null,null,null,null,null,null,null,null,null,null,null,null,null,0]
["7.3.5 Proiectare",null,null,null,null,null,null,null,null,null,null,null,null,null,null,null,null,null,null,null,null,null,null,null,null,null,null,null,null,null,null,null,null,null,null,{"$f":"SUM(AJ489:AJ494)","v":0},null,null,null,null,null,null,null,null,{"$f":"SUM(AS489:AS494)","v":0},null,null,null,null,null,null,null,0]
["      7.3.5.1 Temă de proiectare",null,null,null,null,null,null,null,null,null,null,null,null,null,null,null,null,null,null,null,null,null,null,null,null,null,null,null,null,null,null,null,null,null,null,null,null,null,null,null,null,null,null,null,null,null,null,null,null,null,null,null,0]
["      7.3.5.2 Studiu de prefezabilitate",null,null,null,null,null,null,null,null,null,null,null,null,null,null,null,null,null,null,null,null,null,null,null,null,null,null,null,null,null,null,null,null,null,null,null,null,null,null,null,null,null,null,null,null,null,null,null,null,null,null,null,0]
["      7.3.5.3 Studiu de fezabilitate/documentație de avizare a lucrărilor de intervenții și deviz general",null,null,null,null,null,null,null,null,null,null,null,null,null,null,null,null,null,null,null,null,null,null,null,null,null,null,null,null,null,null,null,null,null,null,null,null,null,null,null,null,null,null,null,null,null,null,null,null,null,null,null,0]
["     7.3.5.4 Documentațiile tehnice necesare în vederea obținerii avizelor/acordurilor/ autorizațiilor",null,null,null,null,null,null,null,null,null,null,null,null,null,null,null,null,null,null,null,null,null,null,null,null,null,null,null,null,null,null,null,null,null,null,null,null,null,null,null,null,null,null,null,null,null,null,null,null,null,null,null,0]
["      7.3.5.5 Verificarea tehnică de calitate a proiectului tehnic și a detaliilor de execuție",null,null,null,null,null,null,null,null,null,null,null,null,null,null,null,null,null,null,null,null,null,null,null,null,null,null,null,null,null,null,null,null,null,null,null,null,null,null,null,null,null,null,null,null,null,null,null,null,null,null,null,0]
["      7.3.5.6 Proiect tehnic și detalii de execuție",null,null,null,null,null,null,null,null,null,null,null,null,null,null,null,null,null,null,null,null,null,null,null,null,null,null,null,null,null,null,null,null,null,null,null,null,null,null,null,null,null,null,null,null,null,null,null,null,null,null,null,0]
["7.3.6 Organizarea procedurilor de achiziţie",null,null,null,null,null,null,null,null,null,null,null,null,null,null,null,null,null,null,null,null,null,null,null,null,null,null,null,null,null,null,null,null,null,null,null,null,null,null,null,null,null,null,null,null,null,null,null,null,null,null,null,{"$f":"AS495","v":0}]
["7.3.7 Consultanță",null,null,null,null,null,null,null,null,null,null,null,null,null,null,null,null,null,null,null,null,null,null,null,null,null,null,null,null,null,null,null,null,null,null,0,null,null,null,null,null,null,null,null,{"$f":"SUM(AS497:AS498)","v":0},null,null,null,null,null,null,null,{"$f":"SUM(AJ496:AZ496)","v":0}]
["      7.3.7.1 Managementul de proiect pentru obiectivul de investiții",null,null,null,null,null,null,null,null,null,null,null,null,null,null,null,null,null,null,null,null,null,null,null,null,null,null,null,null,null,null,null,null,null,null,0,null,null,null,null,null,null,null,null,null,null,null,null,null,null,null,null,0]
["      7.3.7.2 Auditul financiar",null,null,null,null,null,null,null,null,null,null,null,null,null,null,null,null,null,null,null,null,null,null,null,null,null,null,null,null,null,null,null,null,null,null,null,null,null,null,null,null,null,null,null,null,null,null,null,null,null,null,null,{"$f":"AS498","v":0}]
["7.3.8 Asistența tehnică",null,null,null,null,null,null,null,null,null,null,null,null,null,null,null,null,null,null,null,null,null,null,null,null,null,null,null,null,null,null,null,null,null,null,{"$f":"AJ500+AJ503","v":0},null,null,null,null,null,null,null,null,{"$f":"AS500+AS503","v":0},null,null,null,null,null,null,null,{"$f":"SUM(AJ499:AZ499)","v":0}]
["     7.3.8.1 Asistență tehnică din partea proiectantului",null,null,null,null,null,null,null,null,null,null,null,null,null,null,null,null,null,null,null,null,null,null,null,null,null,null,null,null,null,null,null,null,null,null,{"$f":"SUM(AJ501:AJ502)","v":0},null,null,null,null,null,null,null,null,{"$f":"SUM(AS501:AS502)","v":0},null,null,null,null,null,null,null,0]
["           7.3.8.1.1 pe perioada de execuție a lucrărilor",null,null,null,null,null,null,null,null,null,null,null,null,null,null,null,null,null,null,null,null,null,null,null,null,null,null,null,null,null,null,null,null,null,null,null,null,null,null,null,null,null,null,null,null,null,null,null,null,null,null,null,0]
["            7.3.8.1.2 pentru participarea proiectantului la fazele incluse în programul de control al lucrărilor de execuție, avizat de către Inspectoratul de Stat în Construcții",null,null,null,null,null,null,null,null,null,null,null,null,null,null,null,null,null,null,null,null,null,null,null,null,null,null,null,null,null,null,null,null,null,null,null,null,null,null,null,null,null,null,null,null,null,null,null,null,null,null,null,0]
["      7.3.8.2 Dirigenție de șantier",null,null,null,null,null,null,null,null,null,null,null,null,null,null,null,null,null,null,null,null,null,null,null,null,null,null,null,null,null,null,null,null,null,null,null,null,null,null,null,null,null,null,null,null,null,null,null,null,null,null,null,0]
["7.3.9. Elaborare de planuri, studii, analize de piață"]
["Verificare încadrare cheltuieli capitolul 7.3 - din valoarea totală eligibilă a proiectului (5%; 10%)",null,null,null,null,null,null,null,null,null,null,null,null,null,null,null,null,null,null,null,null,null,null,null,null,null,null,null,null,null,null,null,null,null,null,{"$f":"IF(AJ422=0,IF(AH505<=5,\"cheltuieli capitol 3 se incadreaza in limita de 5%\",\"cheltuieli capitol 3 nu se incadreaza in limita de 5%\"),IF(AH505<=10,\"cheltuieli capitol 3 se incadreaza in limita de 10%\",\"cheltuieli capitol 3 nu se incadreaza in limita de 10%\"))","v":"cheltuieli capitol 3 se incadreaza in limita de 5%"}]
["TOTAL GENERAL",null,null,null,null,null,null,null,null,null,null,null,null,null,null,null,null,null,null,null,null,null,null,null,null,null,null,null,null,null,null,null,null,null,null,{"$f":"AJ416+AJ421+AJ456+AJ422+AJ429+AJ442+AJ445","v":0},null,null,null,null,null,null,null,null,{"$f":"AS416+AS421+AS456+AS422+AS429+AS442+AS445","v":0},null,null,null,null,null,null,null,{"$f":"SUM(AJ506:AZ506)","v":0}]
["Verificare actualizare",null,null,null,null,null,null,null,null,null,null,null,null,null,null,null,null,null,null,null,null,null,null,null,null,null,null,null,null,null,null,{"$f":"AJ508*100/AJ506","v":{"$error":"#DIV/0!"}},null,null,{"$f":"IF(AJ506=0,0,AF507)","v":0},{"$f":"IF(AI507<=5,\"actualizare mai mică de 5% din valoarea eligibila\",\"actualizare mai mare de 5% din valoarea eligibila\")","v":"actualizare mai mică de 5% din valoarea eligibila"}]
["ACTUALIZARE Cheltuieli Eligibile (max 5%)",null,null,null,null,null,null,null,null,null,null,null,null,null,null,null,null,null,null,null,null,null,null,null,null,null,null,null,null,null,null,null,null,null,null,{"$f":"AJ385","v":0},null,null,null,null,null,null,null,null,null,null,null,null,null,null,null,null,{"$f":"AJ508","v":0}]
["TOTAL GENERAL CU ACTUALIZARE",null,null,null,null,null,null,null,null,null,null,null,null,null,null,null,null,null,null,null,null,null,null,null,null,null,null,null,null,null,null,null,null,null,null,{"$f":"AJ506+AJ508","v":0},null,null,null,null,null,null,null,null,{"$f":"AS506","v":0},null,null,null,null,null,null,null,{"$f":"SUM(AJ509:AZ509)","v":0}]
["Valoare TVA",null,null,null,null,null,null,null,null,null,null,null,null,null,null,null,null,null,null,null,null,null,null,null,null,null,null,null,null,null,null,null,null,null,null,{"$f":"AJ319+AJ387","v":0},null,null,null,null,null,null,null,null,{"$f":"AS319+AS387","v":0},null,null,null,null,null,null,null,0]
[null,null,null,null,null,null,null,null,null,null,null,null,null,null,null,null,null,null,null,null,null,null,null,null,null,null,null,null,null,null,null,null,null,null,null,{"$f":"SUM(AJ509:AR510)","v":0},null,null,null,null,null,null,null,null,{"$f":"SUM(AS509:AZ510)","v":0},null,null,null,null,null,null,null,0]
["TOTAL GENERAL inclusiv TVA",null,null,null,null,null,null,null,null,null,null,null,null,null,null,null,null,null,null,null,null,null,null,null,null,null,null,null,null,null,null,null,null,null,null,{"$f":"BA509+BA510","v":0}]
[null,null,null,null,null,null,null,null,null,null,null,null,null,null,null,null,null,null,null,null,null,null,null,null,null,null,null,null,null,null,null,null,null,null,null,"LEI",null,null,null,null,null,null,null,null,"EURO"]
["VALOARE TOTALĂ",null,null,null,null,null,null,null,null,null,null,null,null,null,null,null,null,null,null,null,null,null,null,null,null,null,null,null,null,null,null,null,null,null,null,{"$f":"AS514*H409","v":0},null,null,null,null,null,null,null,null,{"$f":"AJ512","v":0}]
["VALOARE ELIGIBILĂ",null,null,null,null,null,null,null,null,null,null,null,null,null,null,null,null,null,null,null,null,null,null,null,null,null,null,null,null,null,null,null,null,null,null,{"$f":"AS515*H409","v":0},null,null,null,null,null,null,null,null,{"$f":"AJ509+AJ510","v":0}]
["VALOARE NEELIGIBILĂ",null,null,null,null,null,null,null,null,null,null,null,null,null,null,null,null,null,null,null,null,null,null,null,null,null,null,null,null,null,null,null,null,null,null,{"$f":"AS516*H409","v":0},null,null,null,null,null,null,null,null,{"$f":"AS509+AS510","v":0}]
[]
["Plan Financiar",null,null,null,null,null,null,null,null,null,null,null,null,null,null,null,null,null,null,null,null,null,null,null,null,null,null,null,null,null,null,null,null,null,null,"Cheltuieli eligibile EURO",null,null,null,null,null,null,null,null,"Cheltuieli neeligibile EURO",null,null,null,null,null,null,null,"Total"]
["Ajutor public nerambursabil (contribuţie UE şi cofinanţare naţională)",null,null,null,null,null,null,null,null,null,null,null,null,null,null,null,null,null,null,null,null,null,null,null,null,null,null,null,null,null,null,null,null,null,null,{"$f":"AJ328+AJ396","v":0},null,null,null,null,null,null,null,null,null,null,null,null,null,null,null,null,{"$f":"AJ519","v":0}]
["Cofinantare privata, din care:",null,null,null,null,null,null,null,null,null,null,null,null,null,null,null,null,null,null,null,null,null,null,null,null,null,null,null,null,null,null,null,null,null,null,{"$f":"SUM(AJ521:AR522)","v":0},null,null,null,null,null,null,null,null,{"$f":"SUM(AS521:AZ522)","v":0},null,null,null,null,null,null,null,{"$f":"SUM(AJ520:AZ520)","v":0}]
[null,null,null,null,null,null,null,null,null,null,null,null,null,null,null,"- autofinantare",null,null,null,null,null,null,null,null,null,null,null,null,null,null,null,null,null,null,null,{"$f":"AJ330","v":0},null,null,null,null,null,null,null,null,{"$f":"AS330+AS398","v":0},null,null,null,null,null,null,null,0]
[null,null,null,null,null,null,null,null,null,null,null,null,null,null,null,"- imprumuturi",null,null,null,null,null,null,null,null,null,null,null,null,null,null,null,null,null,null,null,{"$f":"AJ331","v":0},null,null,null,null,null,null,null,null,{"$f":"AS331+AS399","v":0},null,null,null,null,null,null,null,0]
["TOTAL PROIECT",null,null,null,null,null,null,null,null,null,null,null,null,null,null,null,null,null,null,null,null,null,null,null,null,null,null,null,null,null,null,null,null,null,null,{"$f":"AJ519+AJ520","v":0},null,null,null,null,null,null,null,null,{"$f":"AS520","v":0},null,null,null,null,null,null,null,0]
["Avans solicitat",null,null,null,null,null,null,null,null,null,null,null,null,null,null,null,null,null,null,null,null,null,null,null,null,null,null,null,null,null,null,null,null,null,null,{"$f":"AJ334+AJ402","v":0}]
["Procent avans solicitat ca procent din ajutorul public nerambursabil",null,null,null,null,null,null,null,null,null,null,null,null,null,null,null,null,null,null,null,null,null,null,null,null,null,null,null,null,null,null,null,null,null,{"$f":"AJ524*100/AJ519","v":{"$error":"#DIV/0!"}},{"$f":"IF(AJ519=0,0,AI525)","v":0},null,null,null,null,null,null,null,null,{"$f":"IF(AJ525<=50,\"Suma avans mai mica de 50% din ajutorul public\",\"Suma avans mai mare de 50% din ajutorul public\")","v":"Suma avans mai mica de 50% din ajutorul public"}]
[]
[]
[null,null,null,null,null,null,null,"MINISTERUL AGRICULTURII ŞI DEZVOLTĂRII RURALE"]
[null,null,null,null,null,null,null,null,null,null,null,null,null,null,null,null,null,null,null,null,null,null,null,null,null,null,null,null,null,null,null,null,null,null,null,null,null,null,null,null,null,null,"Anexa A1\nHG 907/2016"]
[null,null,null,null,null,null,null,"AGENŢIA PENTRU FINANŢAREA INVESTIŢIILOR RURALE"]
[]
[null,null,null,null,null,null,null,"Deviz financiar- Capitolul 7.3 - Cheltuieli pentru proiectare şi asistenţa tehnică - EURO - cu intensitatea de 100%"]
[]
[]
["(Titlu deviz)"]
["Nr.crt",null,null,null,"Specificaţie",null,null,null,null,null,null,null,null,null,null,null,null,null,null,null,null,null,null,null,null,null,null,null,null,null,null,null,null,null,null,null,null,null,null,null,null,null,"Valoare eligibilă",null,null,null,null,null,null,null,null,"Valoare\nneeligibilă"]
["7.3.1",null,null,null,"Cheltuieli pentru studii - total din care:",null,null,null,null,null,null,null,null,null,null,null,null,null,null,null,null,null,null,null,null,null,null,null,null,null,null,null,null,null,null,null,null,null,null,null,null,null,{"$f":"SUM(AQ538:AQ540)","v":0},null,null,null,null,null,null,null,null,{"$f":"SUM(AZ538:AZ540)","v":0}]
[null,null,null,null,"7.3.1.1 Studii de teren: studii geotehnice, geologice, hidrologice, hidrogeotehnice,\nfotogrammetrice, topografica şi de stabilitate ale terenului pe care se amplasează obiectivul de investiţie "]
[null,null,null,null,"7.3.1.2 Raport privind impactul asupra mediului"]
[null,null,null,null,"7.3.1.3 Studii de specialitate necesare în funcţie de specificul investiţiei"]
["7.3.2",null,null,null,"Documentaţii-suport şi cheltuieli pentru obţinerea de avize, acorduri şi\nautorizaţii ",null,null,null,null,null,null,null,null,null,null,null,null,null,null,null,null,null,null,null,null,null,null,null,null,null,null,null,null,null,null,null,null,null,null,null,null,null,{"$f":"SUM(AQ542:AQ544)+SUM(AQ547:AQ550)","v":0},null,null,null,null,null,null,null,null,{"$f":"SUM(AZ542:AZ550)","v":0}]
[null,null,null,null,"1. obţinerea/prelungirea valabilităţii ceritificatului de urbanism"]
[null,null,null,null,"2. obţinerea/prelungirea valabilităţii autorizaţiei de construire/desfiinţare"]
[null,null,null,null,"3. obţinerea avizelor şi acordurilor pentru racorduri şi branşamente la reţele publice\nde alimentare cu apă, canalizare, alimentare cu gaze, alimentare cu agent termic,\nenergie electrică, telefonie"]
[null,null,null,null,"4. obţinerea certificatului de nomenclatură stradală şi adresă"]
[null,null,null,null,"5. întocmirea documentaţiei, obţinerea numărului cadastral provizoriu şi\nînregistrarea terenului în cartea funciară"]
[null,null,null,null,"6. obţinerea actului administrativ al autorităţii competente pentru protecţia mediului"]
[null,null,null,null,"7. obţinerea avizului de protecţie civilă"]
[null,null,null,null,"8. avizul de specialitate în cazul obiectivelor de patrimoniu"]
[null,null,null,null,"9. alte avize, acorduri şi autorizaţii"]
["7.3.3",null,null,null,"Cheltuieli pentru expertizarea tehnică a construcţiilor existente, a structurilor şi/sau, după caz, a proiectelor tehnice, inclusiv întocmirea de către expertul tehnic a raportului de expertiză tehnică",null,null,null,null,null,null,null,null,null,null,null,null,null,null,null,null,null,null,null,null,null,null,null,null,null,null,null,null,null,null,null,null,null,null,null,null,null,0,null,null,null,null,null,null,null,null,0]
["7.3.4",null,null,null,"Cheltuieli pentru certificarea performanţei energetice şi auditul energetic al clădirilor",null,null,null,null,null,null,null,null,null,null,null,null,null,null,null,null,null,null,null,null,null,null,null,null,null,null,null,null,null,null,null,null,null,null,null,null,null,0,null,null,null,null,null,null,null,null,0]
["7.3.5",null,null,null,"Cheltuieli pentru proiectare",null,null,null,null,null,null,null,null,null,null,null,null,null,null,null,null,null,null,null,null,null,null,null,null,null,null,null,null,null,null,null,null,null,null,null,null,null,{"$f":"AQ554+AQ555+AQ556+AQ557+AQ558+AQ559","v":0},null,null,null,null,null,null,null,null,{"$f":"AZ554+AZ555+AZ556+AZ557+AZ558+AZ559","v":0}]
[null,null,null,null,"7.3.5.1 Temă de proiectare"]
[null,null,null,null,"7.3.5.2 Studiu de prefezabilitate"]
[null,null,null,null,"7.3.5.3 Studiu de fezabilitate/documentaţie de avizare a lucrărilor de intervenţii şi deviz general"]
[null,null,null,null,"7.3.5.4 Documentaţiile tehnice necesare în vederea obţinerii avizelor/acordurilor/autorizaţiilor"]
[null,null,null,null,"7.3.5.5 Verificarea tehnică de calitate a proiectului tehnic şi a detaliilor de execuţie"]
[null,null,null,null,"7.3.5.6 Proiect tehnic şi detalii de execuţie"]
["7.3.6",null,null,null,"Cheltuieli aferente organizării şi derulării procedurilor de achiziţii publice",null,null,null,null,null,null,null,null,null,null,null,null,null,null,null,null,null,null,null,null,null,null,null,null,null,null,null,null,null,null,null,null,null,null,null,null,null,null,null,null,null,null,null,null,null,null,{"$f":"SUM(AZ561:AZ564)","v":0}]
[null,null,null,null,"1. Cheltuieli aferente întocmirii documentaţiei de atribuire şi multiplicării acesteia (exclusiv cele cumpărate de ofertanţi)"]
[null,null,null,null,"2. Cheltuieli cu onorariile, transportul, cazarea şi diurna membrilor desemnaţi în comisiile de evaluare"]
[null,null,null,null,"3. Anunţuri de intenţie, de participare şi de atribuire a contractelor, corespondenţă\nprin poştă, fax, poştă electronică în legătură cu procedurile de achiziţie publică"]
[null,null,null,null,"4. Cheltuieli aferente organizării şi derulării procedurilor de achiziţii publice"]
["7.3.7",null,null,null,"Cheltuieli pentru consultanţă",null,null,null,null,null,null,null,null,null,null,null,null,null,null,null,null,null,null,null,null,null,null,null,null,null,null,null,null,null,null,null,null,null,null,null,null,null,{"$f":"AQ566","v":0},null,null,null,null,null,null,null,null,{"$f":"AZ566+AZ567","v":0}]
[null,null,null,null,"7.3.7.1 Managementul de proiect pentru obiectivul de investiţii"]
[null,null,null,null,"7.3.7.2 Auditul financiar"]
["7.3.8",null,null,null,"Cheltuieli pentru asistenţă tehnică",null,null,null,null,null,null,null,null,null,null,null,null,null,null,null,null,null,null,null,null,null,null,null,null,null,null,null,null,null,null,null,null,null,null,null,null,null,{"$f":"AQ569+AQ572","v":0},null,null,null,null,null,null,null,null,{"$f":"AZ569+AZ572","v":0}]
[null,null,null,null,"7.3.8.1. Asistenţă tehnică din partea proiectantului",null,null,null,null,null,null,null,null,null,null,null,null,null,null,null,null,null,null,null,null,null,null,null,null,null,null,null,null,null,null,null,null,null,null,null,null,null,{"$f":"AQ570+AQ571","v":0},null,null,null,null,null,null,null,null,{"$f":"AZ570+AZ571","v":0}]
[null,null,null,null,"   7.3.8.1.1. pe perioada de execuţie a lucrărilor"]
[null,null,null,null,"   7.3.8.1.2. pentru participarea proiectantului la fazele incluse în programul de control al\nlucrărilor de execuţie, avizat de către Inspectoratul de Stat în Construcţii"]
[null,null,null,null,"7.3.8.2 Dirigenţie de şantier, asigurată de personal tehnic de specialitate, autorizat"]
["7.3.9.",null,null,null," Elaborare de planuri, studii, analize de piață"]
[null,null,null,null,"Total valoare fără TVA",null,null,null,null,null,null,null,null,null,null,null,null,null,null,null,null,null,null,null,null,null,null,null,null,null,null,null,null,null,null,null,null,null,null,null,null,null,{"$f":"AQ568+AQ565+AQ553+AQ552+AQ551+AQ541+AQ537","v":0},null,null,null,null,null,null,null,null,{"$f":"AZ568+AZ565+AZ560+AZ553+AZ552+AZ551+AZ541+AZ537","v":0}]
[null,null,null,null,"Valoare TVA (aferentă cheltuielilor eligibile şi neeligibile)"]
["TOTAL DEVIZ FINANCIAR 1 (inclusiv TVA)",null,null,null,null,null,null,null,null,null,null,null,null,null,null,null,null,null,null,null,null,null,null,null,null,null,null,null,null,null,null,null,null,null,null,null,null,null,null,null,null,null,{"$f":"AQ574+AZ574+AQ575+AZ575","v":0}]
[]
["Notă: Pentru a adăuga o nouă anexă accesaţi foaia (sheet) corespunzătoare sau click aici"]
[]
[null,null,null,null,null,null,null,"MINISTERUL AGRICULTURII ŞI DEZVOLTĂRII RURALE"]
[null,null,null,null,null,null,null,null,null,null,null,null,null,null,null,null,null,null,null,null,null,null,null,null,null,null,null,null,null,null,null,null,null,null,null,null,null,null,null,null,null,null,"Anexa A2\nHG 907/2016"]
[null,null,null,null,null,null,null,"AGENŢIA PENTRU FINANŢAREA INVESTIŢIILOR RURALE"]
[]
[null,null,null,null,null,null,null,"DEVIZ PE OBIECT * "]
[]
[]
["(Descriere obiect de construcţie)"]
["Nr. crt.",null,null,null,"Denumire",null,null,null,null,null,null,null,null,null,null,null,null,null,null,null,null,null,null,null,null,null,null,null,null,null,null,null,null,null,null,null,null,null,null,null,null,null,"Valoarea pe categorii de lucrări, fară TVA - EURO"]
["Cap. 4 + Cheltuieli pentru investiţia de bază",null,null,null,null,null,null,null,null,null,null,null,null,null,null,null,null,null,null,null,null,null,null,null,null,null,null,null,null,null,null,null,null,null,null,null,null,null,null,null,null,null,"Valoare eligibilă",null,null,null,null,null,null,null,null,"Valoare\nneeligibilă"]
["   I - LUCRĂRI DE CONSTRUCŢII ŞI INSTALAŢII"]
["4.1",null,null,null,"Construcţii şi instalaţii"]
[null,null,null,null,"4.1.1 Terasamente, sistematizare pe verticală şi amenajări exterioare"]
[null,null,null,null,"4.1.2 Rezistenţă"]
[null,null,null,null,"4.1.3 Arhitectură"]
[null,null,null,null,"4.1.4 Instalaţii"]
[null,null,null,null,"TOTAL I ( fără TVA)",null,null,null,null,null,null,null,null,null,null,null,null,null,null,null,null,null,null,null,null,null,null,null,null,null,null,null,null,null,null,null,null,null,null,null,null,null,{"$f":"SUM(AQ592:AY595)","v":0},null,null,null,null,null,null,null,null,{"$f":"SUM(AZ592:BI595)","v":0}]
["   II - MONTAJ"]
["4.2",null,null,null,"Montaj utilaje şi echipamente tehnologice şi funcţionale"]
[null,null,null,null,"TOTAL II ( fără TVA)",null,null,null,null,null,null,null,null,null,null,null,null,null,null,null,null,null,null,null,null,null,null,null,null,null,null,null,null,null,null,null,null,null,null,null,null,null,{"$f":"SUM(AQ598)","v":0},null,null,null,null,null,null,null,null,{"$f":"SUM(AZ598)","v":0}]
["   III - PROCURARE"]
["4.3",null,null,null,"Utilaje, echipamente tehnologice şi funcţionale care necesită montaj"]
["4.4",null,null,null,"Utilaje, echipamente tehnologice şi funcţionale care nu necesită\nmontaj şi echipamente de transport"]
["4.5",null,null,null,"Dotări"]
["4.6",null,null,null,"Active necorporale"]
[null,null,null,null,"TOTAL III ( fără TVA)",null,null,null,null,null,null,null,null,null,null,null,null,null,null,null,null,null,null,null,null,null,null,null,null,null,null,null,null,null,null,null,null,null,null,null,null,null,{"$f":"SUM(AQ601:AY604)","v":0},null,null,null,null,null,null,null,null,{"$f":"SUM(AZ601:BI604)","v":0}]
["TOTAL ( TOTAL I + TOTAL II +TOTAL III) fără TVA",null,null,null,null,null,null,null,null,null,null,null,null,null,null,null,null,null,null,null,null,null,null,null,null,null,null,null,null,null,null,null,null,null,null,null,null,null,null,null,null,null,{"$f":"AQ605+AQ599+AQ596","v":0},null,null,null,null,null,null,null,null,{"$f":"AZ605+AZ599+AZ596","v":0}]
["TVA aferent cheltuielilor eligibile şi neeligibile"]
["TOTAL DEVIZ PE OBIECT (inclusiv TVA)",null,null,null,null,null,null,null,null,null,null,null,null,null,null,null,null,null,null,null,null,null,null,null,null,null,null,null,null,null,null,null,null,null,null,null,null,null,null,null,null,null,{"$f":"AQ606+AZ606+AQ607+AZ607","v":0}]
[]
["Notă: Pentru a adăuga o nouă anexă accesaţi foaia (sheet) corespunzătoare sau click aici"]
[]
[null,null,null,null,null,null,null,"MINISTERUL AGRICULTURII ŞI DEZVOLTĂRII RURALE",null,null,null,null,null,null,null,null,null,null,null,null,null,null,null,null,null,null,null,null,null,null,null,null,null,null,null,null,null,null,null,null,null,null,"Anexa A3\nHG 907/2016"]
[]
[null,null,null,null,null,null,null,"AGENŢIA PENTRU FINANŢAREA INVESTIŢIILOR RURALE"]
[]
[]
[]
["(Titlu deviz)"]
["Deviz capitolul 2- Cheltuieli pentru asigurarea utilităţilor necesare obiectivului - EURO"]
["Nr.crt",null,null,null,"Specificaţie",null,null,null,null,null,null,null,null,null,null,null,null,null,null,null,null,null,null,null,null,null,null,null,null,null,null,null,null,null,null,null,null,null,null,null,null,null,"Valoare eligibilă",null,null,null,null,null,null,null,null,"Valoare\nneeligibilă"]
[1,null,null,null,"Alimentare cu apă"]
[2,null,null,null,"Canalizare"]
[3,null,null,null,"Alimentare cu gaze naturale"]
[4,null,null,null,"Alimentare cu agent termic"]
[5,null,null,null,"Alimentare cu energie electrică"]
[6,null,null,null,"Telecomunicaţii (telefonie, radio-tv,etc)"]
[7,null,null,null,"Drumuri de acces"]
[8,null,null,null,"Căi ferate industriale"]
[9,null,null,null,"Alte utilități"]
[null,null,null,null,"TOTAL DEVIZ CAPITOLUL 2",null,null,null,null,null,null,null,null,null,null,null,null,null,null,null,null,null,null,null,null,null,null,null,null,null,null,null,null,null,null,null,null,null,null,null,null,null,{"$f":"SUM(AQ621:AY629)","v":0},null,null,null,null,null,null,null,null,{"$f":"SUM(AZ621:BI629)","v":0}]
[null,null,null,null,"Valoare TVA aferentă cheltuielilor eligibile şi neeligibile"]
["TOTAL DEVIZ CAPITOLUL 2 (inclusiv TVA)",null,null,null,null,null,null,null,null,null,null,null,null,null,null,null,null,null,null,null,null,null,null,null,null,null,null,null,null,null,null,null,null,null,null,null,null,null,null,null,null,null,{"$f":"AQ630+AZ630+AQ631+AZ631","v":0}]
[]
[" Deviz capitolul 5 - Alte cheltuieli - EURO"]
["Nr.crt",null,null,null,"Specificaţie",null,null,null,null,null,null,null,null,null,null,null,null,null,null,null,null,null,null,null,null,null,null,null,null,null,null,null,null,null,null,null,null,null,null,null,null,null,"Valoare eligibilă",null,null,null,null,null,null,null,null,"Valoare\nneeligibilă"]
[]
["5.1 ",null,null,null,"Organizare de şantier",null,null,null,null,null,null,null,null,null,null,null,null,null,null,null,null,null,null,null,null,null,null,null,null,null,null,null,null,null,null,null,null,null,null,null,null,null,{"$f":"SUM(AQ638:AY639)","v":0},null,null,null,null,null,null,null,null,{"$f":"SUM(AZ638:BI639)","v":0}]
[null,null,null,null,"5.1.1 Lucrări de construcţii şi instalaţii aferente organizării de şantier"]
[null,null,null,null,"5.1.2 Cheltuieli conexe organizării de şantier"]
["5.2",null,null,null,"Comisioane, cote, taxe, costul creditului",null,null,null,null,null,null,null,null,null,null,null,null,null,null,null,null,null,null,null,null,null,null,null,null,null,null,null,null,null,null,null,null,null,null,null,null,null,{"$f":"SUM(AQ642:AY645)","v":0},null,null,null,null,null,null,null,null,{"$f":"SUM(AZ641:BI645)","v":0}]
[null,null,null,null,"5.2.1. Comisioanele şi dobânzile aferente creditului băncii finanţatoare",null,null,null,null,null,null,null,null,null,null,null,null,null,null,null,null,null,null,null,null,null,null,null,null,null,null,null,null,null,null,null,null,null,null,null,null,null,1]
[null,null,null,null,"5.2.2. Cota aferentă ISC pentru controlul calităţii lucrărilor de construcţii"]
[null,null,null,null,"5.2.3. Cota aferentă ISC pentru controlul statului în amenajarea teritoriului, urbanism şi pentru autorizarea lucrărilor de construcţii"]
[null,null,null,null,"5.2.4. Cota aferentă Casei Sociale a Constructorilor - CSC"]
[null,null,null,null,"5.2.5. Taxe pentru acorduri, avize conforme şi autorizaţia de construire/desfiinţare"]
["5.3",null,null,null," Cheltuieli diverse si neprevazute"]
["5.4",null,null,null,"Cheltuieli pentru informare și publicitate",null,null,null,null,null,null,null,null,null,null,null,null,null,null,null,null,null,null,null,null,null,null,null,null,null,null,null,null,null,null,null,null,null,null,null,null,null,null,null,null,null,null,null,null,null,null,0]
[null,null,null,null,"TOTAL DEVIZ CAPITOLUL 5",null,null,null,null,null,null,null,null,null,null,null,null,null,null,null,null,null,null,null,null,null,null,null,null,null,null,null,null,null,null,null,null,null,null,null,null,null,{"$f":"AQ637+AQ640+AQ646","v":0},null,null,null,null,null,null,null,null,{"$f":"AZ647+AZ646+AZ640+AZ637","v":0}]
[null,null,null,null,"VALOARE TVA aferentă cheltuielilor eligibile şi neeligibile"]
[null,null,null,null,"TOTAL DEVIZ CAPITOLUL 5 ( inclusiv TVA)",null,null,null,null,null,null,null,null,null,null,null,null,null,null,null,null,null,null,null,null,null,null,null,null,null,null,null,null,null,null,null,null,null,null,null,null,null,{"$f":"AQ648+AZ648+AQ649+AZ649","v":0}]
[]
["Notă: Pentru a adăuga o nouă anexă accesaţi foaia (sheet) corespunzătoare sau click aici"]
[]
[]
["MINISTERUL AGRICULTURII ŞI DEZVOLTĂRII RURALE",null,null,null,null,null,null,null,null,null,null,null,null,null,null,null,null,null,null,null,null,null,null,null,null,null,null,null,null,null,"SECTIUNE SPECIFICA MASURA M7/6A"]
["AGENŢIA PENTRU FINANŢAREA INVESTIŢIILOR RURALE"]
["D. ALTE INFORMAȚII :"]
["Programarea proiectului:"]
["Numar luni de implementare"]
[]
["E. LISTA DOCUMENTELOR ANEXATE PROIECTELOR AFERENTE MĂSURII 7/6A ",null,null,null,null,null,null,null,null,null,null,null,null,null,null,null,null,null,null,null,null,null,null,null,null,null,null,null,null,null,null,null,null,null,null,null,null,null,null,null,null,null,null,null,null,null,null,null,null,null,null,null,null,null,null,"OPIS"]
[null,null,null,null,null,null,null,null,null,null,null,null,null,null,null,null,null,null,null,null,null,null,null,null,null,null,null,null,null,null,null,null,null,null,null,null,null,null,null,null,null,null,null,null,null,null,null,null,null,null,null,null,null,null,null,"documente"]
["A se anexa documentele în ordinea de mai jos:"]
["Lista documente",null,null,null,null,null,null,null,null,null,null,null,null,null,null,null,null,null,null,null,null,null,null,null,null,null,null,null,null,null,"Obligatoriu pentru toate proiectele",null,null,null,null,"Obligatoriu, dacă proiectul impune",null,null,null,null,null,null,"PAGINA de   la - până la",null,null,null,null,null,null,null,"Obligatoriu pentru toate proiectele",null,null,null,null,"Obligatoriu, dacă proiectul impune"]
["ETAPA:",null,null,null,null,null,null,null,null,null,null,null,null,null,null,null,null,null,null,null,null,null,null,null,null,null,null,null,null,null,"DEPUNERE",null,null,null,null,null,null,null,null,null,null,null,null,null,null,null,null,null,null,null,"CONTRACTARE"]
["1. STUDIU DE FEZABILITATE (pentru proiectele care prevad investiții în achiziția de\nechipamente și utilaje cu montaj) sau MEMORIUL JUSTIFICATIV (pentru proiectele care prevad doar achiziții simple) "]
["2. ACORDUL DE COOPERARE A PARTENERIATULUI"]
["3.1 Pentru societățile comerciale - SITUAŢIILE FINANCIARE (bilanţ – formularul 10, contul de profit şi pierderi - formularul 20, formularele 30 și 40), precedente anului depunerii proiectului înregistrate la Administraţia Financiară în care rezultatul operaţional (rezultatul de exploatare din contul de profit și pierdere - formularul 20) să fie pozitiv (inclusiv 0). În cazul în care solicitantul este înfiinţat cu cel puţin doi ani financiari înainte de anul depunerii cererii de finanţare se vor depune ultimele doua situaţii financiare. Excepţie fac intreprinderile inființate în anul depunerii cererii de finanţare.                                                                                                                                     Totuși, în situația în care societatea a înregistrat rezultat operational negativ în anul 2020 (sau 2021, după caz), ani economici financiari afectați de situația epidemiologică generată de COVID-19, se vor depune situațiile financiare pentru anul 2019, pentru care rezultatul din exploatare din contul de profit și pierdere – formularul 20) trebuie să fie pozitiv (inclusiv 0). \nsau"]
["3.2 Pentru persoanele fizice autorizate, întreprinderi familiale și întreprinderi individuale -DECLARAŢIE unică privind impozitul pe venit și contribuțiile sociale datorate de persoanele fizice din care să rezulte veniturile realizate din România în anul precedent depunerii proiectului, înregistrată la Administrația Financiară și din care să rezulte că nu a înregistrat pierdere fiscală anuală (pierdere netă anuală) sau pierderi fiscal/nete din anii precedenți, în anul precedent depunerii proiectului. Derclarația unică trebuie să fie întocmită de către solicitant PFA, II, IF, identificat cu cod unic de înregistrare (CUI), înființat în baza OUG nr. 44/2008, cu modificările și completările ulterioare.\nÎn cazul în care solicitantul este înființat cu cel puțin 2 ani financiari înainte de anul depuneriii cererii de finanțare, se vor depune ultimele două Declarații unice. Totuși, în situația în care societatea a înregistrat pierdere fiscală anuală (pierdere netă anuală) în anul 2020 (sau 2021, după caz), ani economici financiari afectați de situația epidemiologică generată de COVID-19, se va analiza Declarația unică pentru anul 2019, din care să rezulte că nu a înregistrat pierdere fiscal anuală (pieredere netă anuală) sau pierderi fiscal/nete din anii precedenți.     "]
["sau \n\n4.3.2 DECLARAŢIE privind veniturile realizate din Romania în anul precedent depunerii proiectului, înregistrată la Administraţia Financiară (formularul 200), însoțită de Anexele la formular în care rezultatul brut (veniturile să fie cel puţin egale cu cheltuielile) obținut în anul precedent depunerii proiectului să fie pozitiv (inclusiv 0)\n\nPentru întreprinderi familiale și întreprinderi individuale și persoane fizice autorizate: Declarație specială privind veniturile realizate în anul precedent depunerii proiectului înregistrată la Administrația Financiară documentul va fi depus de fiecare membru al  parteneriatului. "]
["3.3 DECLARAȚIA DE INACTIVITATE înregistrată la Administrația Financiară, în cazul solicitanților care nu au desfășurat activitate anterior depunerii proiectului. "]
["4. DOCUMENTE SOLICITATE PENTRU IMOBILUL (CLĂDIRILE ŞI/SAU TERENURILE) PE CARE SUNT/VOR FI REALIZATE INVESTIŢIILE "]
["4.1 Pentru proiectele care presupun achiziția de utilaje/ echipamente cu montaj, se va prezenta înscrisul care să certifice, după caz: \n\na) Dreptul de proprietate privată \nActele doveditoare ale dreptului de proprietate privată, reprezentate de înscrisurile constatatoare ale unui act juridic civil, jurisdicțional sau administrativ cu efect constitutiv translativ sau declarativ de proprietate, precum: - Actele juridice translative de proprietate, precum contractele de vânzare-cumpărare, donație, schimb, etc; - Actele juridice declarative de proprietate, precum împărțeala judiciară sau tranzacția; - Actele jurisdicționale declarative, precum hotărârile judecătorești cu putere de resjudecata, de partaj, de constatare a uzucapiunii imobiliare, etc. - Actele jurisdicționale, precum ordonanțele de adjudecare; \n\nb) Dreptul de concesiune - Contract de concesiune care acoperă o perioadă de cel puțin 10 ani începând cu anul depunerii cererii de finanţare, corespunzătoare asigurării sustenabilității investiției şi care oferă dreptul titularului de a executa montajul echipamentelor/utilajelor care sunt prevăzute prin proiect, în copie. În cazul contractului de concesiune pentru cladiri, acesta va fi însoțit de o adresă emisă de concedent care să specifice dacă pentru clădirea concesionată există solicitări privind retrocedarea. În cazul contractului de concesiune pentru terenuri, acesta va fi însoțit de o adresă emisă de concedent care să specifice: - suprafaţa concesionată la zi - dacă pentru suprafaţa concesionată există solicitări privind retrocedarea sau diminuarea şi dacă da, să se menţioneze care este suprafaţa supusă acestui proces; - situaţia privind respectarea clauzelor contractuale, dacă este în graficul de realizare a investiţiilor prevăzute în contract, dacă concesionarul şi-a respectat graficul de plată a redevenţei şi alte clauze. \n\nc) Dreptul de superficie contract de superficie care acoperă o perioadă de cel puțin 10 ani începând cu anul depunerii cererii de finanţare, corespunzătoare asigurării sustenabilității investiției şi care oferă dreptul titularului de a executa montajul echipamentelor/utilajelor prevăzute prin proiect, în copie.\n"]
["4.2 Pentru proiectele care propun doar dotare, achiziție de mașini și/sau utilaje fără montaj sau al căror montaj nu necesită lucrari de construcții și/sau lucrări de intervenții asupra instalațiilor existente (electricitate, apă, canalizare, gaze, ventilație, etc.), se vor prezenta înscrisuri valabile pentru o perioadă de cel puțin 10 ani începând cu anul depunerii cererii de finanţare care să certifice, după caz: \n\na) dreptul de proprietate privată, \nb) dreptul de concesiune, \nc) dreptul de superficie, \nd) dreptul de uzufruct; \ne) dreptul de folosinţă cu titlu gratuit; \nf) împrumutul de folosință (comodat) \ng) dreptul de închiriere/locațiune. \n\nDe ex.: contract de cesiune, contract de concesiune, contract de locațiune/închiriere, contract de comodat. Definițiile drepturilor reale/ de creanță și ale tipurilor de contracte din cadrul acestui criteriu trebuie interpretate în accepţiunea Codului Civil în vigoare la data lansării prezentului ghid.\n\nÎnscrisurile menționate la punctul 3.2 se vor depune respectand una dintre cele 2 condiţii (situaţii) de mai jos: \n\nA. vor fi însoțite de: \n-Documente cadastrale şi documente privind înscrierea imobilelor în evidențele de cadastru și carte funciară (extras de carte funciară pentru informare din care să rezulte inscrierea dreptului în cartea funciară, precum și încheierea de carte funciară emisă de OCPI), în termen de valabilitate la data depunerii (emis cu maxim 30 de zile înaintea depunerii proiectului) \nSAU \n\nB. vor fi incheiate în formă autentică de către un notar public sau emise de o autoritate publica sau dobandite printr-o hotarare judecatoreasca. \n\n"]
["5. DECLARAŢIE PRIVIND ÎNCADRAREA ÎNTREPRINDERII ÎN CATEGORIA MICROÎNTREPRINDERILOR Aceasta trebuie să fie semnată de persoana autorizată să reprezinte întreprinderea (se va depune de fiecare membru al parteneriatului). "]
["6.  DECLARAŢIE PE PROPRIA RĂSPUNDERE a solicitantului privind respectarea regulii de cumul a ajutoarelor de minimis (se va depune de fiecare membru al parteneriatului) "]
[" 7.1.DOCUMENT DE LA BANCĂ/TREZORERIE cu datele de identificare ale acesteia şi ale contului aferent proiectului FEADR (denumirea, adresa instituţiei financiare, codul IBAN al contului în care se deruleaza operaţiunile cu AFIR);"]
["8.1 CERTIFICATE CARE SĂ ATESTE LIPSA DATORIILOR RESTANTE FISCALE ale tuturor membrilor parteneriatului şi sociale emise de Direcţia Generală a Finanţelor Publice şi de primăriile pe raza carora îşi au sediul social şi puncte de lucru (numai în cazul în care solicitantul/ membrul parteneriatului este proprietar asupra imobilelor) si, dacă este cazul, graficul de reeşalonare a datoriilor către bugetul consolidat\n- Certificatele trebuie să menţioneze clar lipsa datoriilor prin menţiunea „nu are datorii fiscale şi sociale sau locale” sau bararea rubricii în care ar trebui să fie menţionate.\n- Solicitantul va prezenta decizia de rambursare aprobată a sumelor negative solicitate la rambursare prin deconturile de TVA şi/sau alte documente\naprobate pentru soluţionarea cererilor de restituire, decizie/documente care au fost aprobate ulterior eliberării certificatului de atestare fiscală, pentru\ncompensarea obligaţiilor fiscale de la Sect. A.\n"]
["8. 2 CAZIERUL JUDICIAR AL LIDERULUI DE PROIECT\nExtrasul cazierului judiciar se solicită și se eliberează în conformitate cu prevederile Legii nr. 290/2004 privind cazierul judiciar, republicată, cu modificările şi completările ulterioare."]
["9.1 DOCUMENT EMIS DE DSVSA JUDEŢEANĂ PENTRU PROIECT, conform Protocolului de colaborare dintre AFIR şi ANSVSA publicat pe pagina de internet www.afir.info, după caz.                                                     "]
["9.2 DOCUMENT EMIS DE DSP JUDEŢEANĂ PENTRU PROIECT, conform\nProtocolului de colaborare dintre AFIR şi MS publicat pe pagina de internet\nwww.afir.info, după caz.\nDocumentele acestui punct vor fi emise cu cel mult un an înaintea depunerii Cererii de finanţare.Formatul documentelor poate fi vizualizat pe pagina de internet www.afir.info, secţiunea: Informaţii utile/ Protocoale de colaborare."]
["10. CERTIFICATUL DE ÎNREGISTRARE ELIBERAT DE OFICIUL REGISTRULUI COMERŢULUI conform legislaţiei în vigoare.– documentul va fi depus de fiecare membru al  parteneriatului. "]
["11. DOCUMENT EMIS DE ANPM, PENTRU PROIECT"]
["12.DECLARAȚIE PRIVIND PRELUCRAREA DATELOR CU CARACTER PERSONAL - documentul va fi depus de fiecare membru al  parteneriatului. "]
["13. DECLARAȚIE PE PROPRIA RĂSPUNDERE – NOTIFICARE GAL CU PRIVIRE LA PLĂȚILE AFIR "]
["14. CODUL RO - APIA"]
["15. Declaraţia pe propria răspundere a solicitantului cu privire la neîncadrarea în categoria \"firma în dificultate\", semnată de persoana autorizată să reprezinte întreprinderea, conform legii. Declaraţia va fi dată de toţi membri parteneriatului cu excepţia PFA-urilor, întreprinderilor individuale, întreprinderilor familiale şi a societăţilor cu mai puţin de 2 ani fiscali. "]
["16. Raport asupra utilizării programelor de finanţare nerambursabilă\nîntocmit de solicitant si membri parteneriatului, daca este cazul (va cuprinde obiective, tip de investiție, lista\ncheltuielilor eligibile, costurile și stadiul proiectului, perioada derulării contractului), pentru solicitantii care au mai beneficiat de finanțare nerambursabilă începând cu anul 2002, va fi depus de acei membri ai parteneriatului care au utilizat fonduri nerambursabile"]
["17. ALTE DOCUMENTE JUSTIFICATIVE (SE VOR SPECIFICA DUPĂ CAZ)\nAtenţie! Evaluarea cererii de finanţare din punct de vedere al eligibilităţii şi al verificării criteriilor de selecţie va include şi consultarea informaţilor referitoare la solicitant (si parteneri) şi la punctul de lucru, după caz, deţinute de instituţiile abilitate (ex: ONRC etc.) sau documentele relevante anexate de către solicitant: Oferte, Documente de identitate - copii, angajament al reprezentantului legal în relația cu AFIR că își asumă prezența în cadrul parteneriatului pentru întreaga perioadă de implementare și monitorizare a proiectului, etc. \n\nDocumentele justificative anexate Cererii de finanţare trebuie să fie valabile la data depunerii acestora, în conformitate cu legislaţia naţională în vigoare."]
[]
[]
[]
[]
[]
["F. DECLARAŢIE PE PROPRIA RĂSPUNDERE A LIDERULUI DE PROIECT"]
["Prin această declaraţie liderul de proiect"]
[]
["care solicită asistență financiară nerambursabilă prin programul FEADR pentru proiectul intitulat"]
[]
["prin reprezentant legal"]
[]
["cunoscând prevederile legii penale cu privire la falsul în declarații:"]
[null,null,null,"1. Declar că proiectul propus asistenței financiare nerambursabile FEADR nu beneficiază de altă finanțare din\nprograme de finanțare nerambursabilă."]
[null,null,null,"De asemenea mă angajez ca în cazul în care proiectul va fi selectat pentru finanțare FEADR, nu voi depune acest proiect la nici un alt program de finanțare nerambursabilă la care proiectul poate fi în întregime sau parțial eligibil pentru asistență."]
[null,null,null,"2. Declar că îndeplinesc condițiile de eligibilitate prevăzute în fișa sub-măsurii și Ghidul Solicitantului și mă\nangajez să le respect pe perioada de valabilitate a contractului de finanțare și monitorizare a investiției, inclusiv\ncriteriile de selecție pentru care proiectul a fost punctat."]
[null,null,null,"3. Declar că toate informațiile din prezenta cerere de finanțare și din documentele anexate sunt corecte și mă\nangajez să respect condițiile cerute în reglementările referitoare la prezentul program și pe cele legate de\nproiectul anexat și să furnizez periodic, la cerere, documentele justificative necesare."]
[null,null,null,"4. Declar pe propria raspundere că orice modificari aduse dreptului de proprietate sau de folosinta vor fi notificate AFIR în termen de trei zile de la data încheierii lor. De asemenea, ma angajez, ca pe perioada de valabilitate a contractului de finantare si monitorizare a investiţiei sa nu diminuez numărul de membri ai parteneriatului."]
["  ",null,null,"5. Declar că eu și organizația mea (asociaţie sau întreprindere) nu ne aflăm într-unul din următoarele cazuri:"]
[null,null,null," - Acuzat din cauza unei greșeli privind conduita profesională având ca soluție finală res judicata (împotriva căreia nici un apel nu este posibil)"]
[null,null,null," - Vinovat de grave deficiențe de conduită profesională dovedite prin orice mijloace pe care Agenția le poate justifica."]
[null,null,null," - Vinovat de faptul că nu am prezentat informaţiile cerute de Autoritatea Contractantă ca o condiţie de participare la licitaţie sau contractare"]
[null,null,null," - Încălcarea prevederilor contractuale prin care nu mi-am îndeplinit obligațiile contractuale în legătură cu un alt contract cu Agenția sau alte contracte finanțate din fonduri comunitare."]
[null,null,null," - Încercarea de a obține informații confidențiale sau de influențare a Agenției în timpul procesului de evaluare a proiectului și nu voi face presiuni la adresa evaluatorului."]
[6,null,null,null,null,"Declar că organizația pe care o reprezint ARE datorii către instituții de credit și/sau instituții financiare\nnebancare pentru care prezint graficul de rambursare."]
[null,null,null,null,null,"Declar că organizația pe care o reprezint NU are datorii către instituții de credit şi/sau instituții financiare\nnebancare."]
[7,null,null,null,null,"Declar că liderul de proiect și nici partenerii nu au în derulare sau finalizate alte proiecte identice finanţate prin FEADR în cadrul aceleiaşi submăsuri"]
[8,null,null,null,null,"Declar pe propria raspundere ca în cazul în care nu respect oricare din punctele prevazute în aceasta declaratie\nproiectul sa devina neeligibil în baza criteriului \"Eligibilitatea solicitantului\" sau contractul sa fie reziliat"]
[9,null,null,null,null,"Declar pe propria răspundere că:"]
[null,null,null,null,null,"Nu sunt înregistrat în scopuri TVA și că mă angajez să notific Agenției orice modificare a situatiei privind înregistrarea ca plătitor de TVA, în maximum 10 (zece) zile de la data înregistrării în scopuri TVA."]
[null,null,null,null,null,"Sunt înregistrat în scopuri de TVA (certificat de înregistrare fiscală în scopuri de TVA)."]
[10,null,null,null,null,"Declar pe propria răspundere că nu am înscrieri care privesc sancțiuni economico-financiare în cazierul\njudiciar al întreprinderii (după caz, conform prevederilor legale) și în cazierul judiciar ca persoană fizică\n(reprezentantul legal) pe care mă oblig să îl depun la încheierea contractului de finanţare ;"]
[11,null,null,null,null,"Declar pe propria raspundere că nu am fapte înscrise în cazierul fiscal."]
[12,null,null,null,null,"Declar pe propria răspundere că toate cheltuielile neeligibile vor fi suportate de solicitant și că acestea vor fi realizate până la finalizarea proiectului."]
[14,null,null,null,null,"Ma angajez ca în termen de maxim 90 zile calendaristice de la data primirii „Notificarii beneficiarului privind selectarea cererii de finantare si semnarea contractului de finantare”, să asigur şi să prezint documentele solicitate"]
[15,null,null,null,null,"Ma angajez ca în maxim 4 luni, respectiv 7 luni (după caz) de la data primirii \"Notificarii beneficiarului privind selectarea cererii de finanţare şi semnarea contractului de finanţare\" sa prezint documentul emis de ANPM pentru proiect"]
[16,null,null,null,null,"Declar ca organizatia pe care o reprezint este înregistrată în registrul debitorilor AFIR și mă angajez că datoria față de AFIR, inclusiv dobânzile și majorările de întârziere, va fi achitată integral până la semnarea contractului de finanțare."]
[18,null,null,null,null,"Sunt de acord ca AFIR să consulte și să prelucreze, prin operațiunile prevăzute de legislația în vigoare în vederea desfășurării activității specifice, datele mele cu caracter personal, furnizate AFIR."]
[]
["Semnătura reprezentant legal şi ştampila (după caz)",null,null,null,null,null,null,null,null,null,null,null,null,null,null,null,null,null,null,null,null,null,null,null,null,null,null,null,null,null,null,null,null,null,null,null,null,null,null,null,null," Data:"]
[]
[]
["F. DECLARAŢIE PE PROPRIA RĂSPUNDERE A MEMBRULUI 1 AL PARTENERIATULUI  (se va multiplica de cate ori va fi necesar pentru fiecare membru al parteneriatului)"]
["Prin această declaraţie membrul 1 al parteneriatului"]
[]
["care solicită asistență financiară nerambursabilă prin programul FEADR pentru proiectul intitulat"]
[]
["prin reprezentant legal"]
[]
["cunoscând prevederile legii penale cu privire la falsul în declarații:"]
[null,null,null,"1. Declar că proiectul propus asistenței financiare nerambursabile FEADR nu beneficiază de altă finanțare din\nprograme de finanțare nerambursabilă."]
[null,null,null,"De asemenea mă angajez ca în cazul în care proiectul va fi selectat pentru finanțare FEADR, nu voi depune acest proiect la nici un alt program de finanțare nerambursabilă la care proiectul poate fi în întregime sau parțial eligibil pentru asistență."]
[null,null,null,"2. Declar că îndeplinesc condițiile de eligibilitate prevăzute în fișa sub-măsurii și Ghidul Solicitantului și mă\nangajez să le respect pe perioada de valabilitate a contractului de finanțare și monitorizare a investiției, inclusiv\ncriteriile de selecție pentru care proiectul a fost punctat."]
[null,null,null,"3. Declar că toate informațiile din prezenta cerere de finanțare și din documentele anexate sunt corecte și mă\nangajez să respect condițiile cerute în reglementările referitoare la prezentul program și pe cele legate de\nproiectul anexat și să furnizez periodic, la cerere, documentele justificative necesare."]
[null,null,null,"4. Declar pe propria raspundere că orice modificari aduse dreptului de proprietate sau de folosinta vor fi notificate AFIR în termen de trei zile de la data încheierii lor. De asemenea, ma angajez, ca pe perioada de valabilitate a contractului de finantare si monitorizare a investiţiei sa nu diminuez numărul de membri ai parteneriatului."]
["  ",null,null,"5. Declar că eu și organizația mea (asociaţie sau întreprindere) nu ne aflăm într-unul din următoarele cazuri:"]
[null,null,null," - Acuzat din cauza unei greșeli privind conduita profesională având ca soluție finală res judicata (împotriva căreia nici un apel nu este posibil)"]
[null,null,null," - Vinovat de grave deficiențe de conduită profesională dovedite prin orice mijloace pe care Agenția le poate justifica."]
[null,null,null," - Vinovat de faptul că nu am prezentat informaţiile cerute de Autoritatea Contractantă ca o condiţie de participare la licitaţie sau contractare"]
[null,null,null," - Încălcarea prevederilor contractuale prin care nu mi-am îndeplinit obligațiile contractuale în legătură cu un alt contract cu Agenția sau alte contracte finanțate din fonduri comunitare."]
[null,null,null," - Încercarea de a obține informații confidențiale sau de influențare a Agenției în timpul procesului de evaluare a proiectului și nu voi face presiuni la adresa evaluatorului."]
[6,null,null,null,null,"Declar că organizația pe care o reprezint ARE datorii către instituții de credit și/sau instituții financiare\nnebancare pentru care prezint graficul de rambursare."]
[null,null,null,null,null,"Declar că organizația pe care o reprezint NU are datorii către instituții de credit şi/sau instituții financiare\nnebancare."]
[7,null,null,null,null,"Declar că liderul de proiect și nici partenerii nu au în derulare sau finalizate alte proiecte identice finanţate prin FEADR în cadrul aceleiaşi submăsuri"]
[8,null,null,null,null,"Declar pe propria raspundere ca în cazul în care nu respect oricare din punctele prevazute în aceasta declaratie\nproiectul sa devina neeligibil în baza criteriului \"Eligibilitatea solicitantului\" sau contractul sa fie reziliat"]
[9,null,null,null,null,"Declar pe propria răspundere că:"]
[null,null,null,null,null,"Nu sunt înregistrat în scopuri TVA și că mă angajez să notific Agenției orice modificare a situatiei privind înregistrarea ca plătitor de TVA, în maximum 10 (zece) zile de la data înregistrării în scopuri TVA."]
[null,null,null,null,null,"Sunt înregistrat în scopuri de TVA (certificat de înregistrare fiscală în scopuri de TVA)."]
[10,null,null,null,null,"Declar pe propria răspundere că nu am înscrieri care privesc sancțiuni economico-financiare în cazierul\njudiciar al întreprinderii (după caz, conform prevederilor legale) și în cazierul judiciar ca persoană fizică\n(reprezentantul legal) pe care mă oblig să îl depun la încheierea contractului de finanţare ;"]
[11,null,null,null,null,"Declar pe propria raspundere că nu am fapte înscrise în cazierul fiscal."]
[12,null,null,null,null,"Declar pe propria răspundere că toate cheltuielile neeligibile vor fi suportate de solicitant și că acestea vor fi realizate până la finalizarea proiectului."]
[14,null,null,null,null,"Ma angajez ca în termen de maxim 90 zile calendaristice de la data primirii „Notificarii beneficiarului privind selectarea cererii de finantare si semnarea contractului de finantare”, să asigur şi să prezint documentele solicitate"]
[15,null,null,null,null,"Ma angajez ca în maxim 4 luni, respectiv 7 luni (după caz) de la data primirii \"Notificarii beneficiarului privind selectarea cererii de finanţare şi semnarea contractului de finanţare\" sa prezint documentul emis de ANPM pentru proiect"]
[16,null,null,null,null,"Declar ca organizatia pe care o reprezint este înregistrată în registrul debitorilor AFIR și mă angajez că datoria față de AFIR, inclusiv dobânzile și majorările de întârziere, va fi achitată integral până la semnarea contractului de finanțare."]
[18,null,null,null,null,"Sunt de acord ca AFIR să consulte și să prelucreze, prin operațiunile prevăzute de legislația în vigoare în vederea desfășurării activității specifice, datele mele cu caracter personal, furnizate AFIR."]
[]
["Semnătura reprezentant legal şi ştampila (după caz)",null,null,null,null,null,null,null,null,null,null,null,null,null,null,null,null,null,null,null,null,null,null,null,null,null,null,null,null,null,null,null,null,null,null,null,null,null,null,null,null," Data:"]
[]
[]
[]
["Anexa INDICATORI DE MONITORIZARE"]
["Măsura M7/6A\nConsolidarea capitalului social\n"]
[]
["1. Cod RO"]
["2. Cod CAEN lider de proiect"]
["3. Tipul liderului de proiect",null,null,null,null,null,null,null,null,null,null,null,null,null,null,null,null,"Microîntreprinderi (PFA, IF, II)"]
[]
["4. Structura parteneriatului/ număr membri",null,null,null,null,null,null,null,null,null,null,null,null,null,null,null,null,"Microîntreprinderi (PFA, II, IF, SRL)",null,null,null,null,null,null,null,null,null,null,null,null,null,null,null,null,null,null,null,null,null,null,null,null,null,null,null,null,null,null,null,null,0]
[]
["5. Tipul de proiect propus",null,null,null,null,null,null,null,null,null,null,null,null,null,null,null,null,"Cooperare între micii operatori în domeniul turismului"]
[]
["6. Număr locuri de muncă ",null,null,null,null,null,null,null,null,null,null,null,null,null,null,null,null,"Nou create",null,null,null,null,null,null,null,null,null,null,null,"Bărbați"]
[null,null,null,null,null,null,null,null,null,null,null,null,null,null,null,null,null,null,null,null,null,null,null,null,null,null,null,null,null,"Femei"]
["7. Contribuie la Prioritatea 1?",null,null,null,null,null,null,null,null,null,null,null,null,null,null,null,null,"M01 - Transfer de cunoştinţe şi acţiuni de informare"]
[null,null,null,null,null,null,null,null,null,null,null,null,null,null,null,null,null,"M02 - Servicii de consiliere"]
[null,null,null,null,null,null,null,null,null,null,null,null,null,null,null,null,null,"M16 - Cooperare"]
["Indic. nr.1 - reprezinta codul de inregistrare al beneficiarului în Registrul Fermierului la APIA"]
["Indic. nr.2 - reprezinta codul CAEN pentru investitia vizata prin proiect"]
["Indic. nr. 3, 5 - se va bifa doar o singura categorie/ categoria majoritara"]
["Indic. nr. 6 - se va completa din momentul demararii M01, M02, respectiv M16"]
[" * Pentru indicatorii de tip numeric care nu fac obiectul investitiei sa va completa valoarea zero."]
[]
["Factori de risc"]
["I1. Numarul de membri ai parteneriatului",null,null,null,null,null,null,null,null,null,null,null,null,null,null,null,null,null,null,null,null,null,null,null,null,null,null,null,null,null,null,null,null,null,null,null,null,null,null,null,null,"Factor îndeplinit",null,null,null,null,null,null,null,null,null,"Punctaj"]
["•",null,2,null,null,null,null,null,null,null,null,null,null,null,null,null,null,null,null,null,null,null,null,null,null,null,null,null,null,null,null,null,null,null,null,null,null,null,null,null,null,null,null,null,null,null,null,null,null,null,null,5]
["•",null,"3 - 5",null,null,null,null,null,null,null,null,null,null,null,null,null,null,null,null,null,null,null,null,null,null,null,null,null,null,null,null,null,null,null,null,null,null,null,null,null,null,null,null,null,null,null,null,null,null,null,null,3]
["•",null," > 5",null,null,null,null,null,null,null,null,null,null,null,null,null,null,null,null,null,null,null,null,null,null,null,null,null,null,null,null,null,null,null,null,null,null,null,null,null,null,null,null,null,null,null,null,null,null,null,null,1]
[]
["I2. Domeniul de activitate al liderului de proiect",null,null,null,null,null,null,null,null,null,null,null,null,null,null,null,null,null,null,null,null,null,null,null,null,null,null,null,null,null,null,null,null,null,null,null,null,null,null,null,null,"Factor îndeplinit",null,null,null,null,null,null,null,null,null,"Punctaj"]
["•",null,"Alte categorii conform punctului A7.2 CF",null,null,null,null,null,null,null,null,null,null,null,null,null,null,null,null,null,null,null,null,null,null,null,null,null,null,null,null,null,null,null,null,null,null,null,null,null,null,null,null,null,null,null,null,null,null,null,null,5]
["•",null,"Microîntreprinderi si întreprinderi mici",null,null,null,null,null,null,null,null,null,null,null,null,null,null,null,null,null,null,null,null,null,null,null,null,null,null,null,null,null,null,null,null,null,null,null,null,null,null,null,null,null,null,null,null,null,null,null,null,3]
["•",null,"Fermier",null,null,null,null,null,null,null,null,null,null,null,null,null,null,null,null,null,null,null,null,null,null,null,null,null,null,null,null,null,null,null,null,null,null,null,null,null,null,null,null,null,null,null,null,null,null,null,null,1]
[]
["I3. Gradul de dotare al membrilor parteneriatului",null,null,null,null,null,null,null,null,null,null,null,null,null,null,null,null,null,null,null,null,null,null,null,null,null,null,null,null,null,null,null,null,null,null,null,null,null,null,null,null,"Factor îndeplinit",null,null,null,null,null,null,null,null,null,"Punctaj"]
["•",null,"Nu detine baze de productie specifice activitatii",null,null,null,null,null,null,null,null,null,null,null,null,null,null,null,null,null,null,null,null,null,null,null,null,null,null,null,null,null,null,null,null,null,null,null,null,null,null,null,null,null,null,null,null,null,null,null,null,5]
["•",null,"Propune achizitii pentru realizarea bazei de productie specifice",null,null,null,null,null,null,null,null,null,null,null,null,null,null,null,null,null,null,null,null,null,null,null,null,null,null,null,null,null,null,null,null,null,null,null,null,null,null,null,null,null,null,null,null,null,null,null,null,3]
["•",null,"Detine baze de productie specifice activitatii",null,null,null,null,null,null,null,null,null,null,null,null,null,null,null,null,null,null,null,null,null,null,null,null,null,null,null,null,null,null,null,null,null,null,null,null,null,null,null,null,null,null,null,null,null,null,null,null,1]
["TOTAL",null,null,null,null,null,null,null,null,null,null,null,null,null,null,null,null,null,null,null,null,null,null,null,null,null,null,null,null,null,null,null,null,null,null,null,null,null,null,null,null,null,null,null,null,null,null,null,null,null,null,0]
[]
[]
[]
["Codul unic de inregistrare APIA"]
["In cazul in care nu aveti un cod unic de inregistrare APIA, completati acest formular. "]
[]
["FORMULAR"]
["de înscriere în Registrul unic de identificare pentru solicitanţii de finanţare prin măsurile"]
["Programului naţional de dezvoltare rurală 2014 - 2020"]
[]
["Denumire solicitant:"]
[]
["Categorie Solicitant:"]
[]
["Sediul / Adresa"]
[]
["Ţara",null,null,null,null,"România",null,null,null,null,null,null,null,null,"Judeţul",null,null,null,null,null,null,null,null,null,null,null,null,null,null,null,null,null,null,"oraşul"]
[]
["comuna",null,null,null,null,null,null,null,null,null,null,null,null,null,null,null,null,null,null,null,null,"satul",null,null,null,null,null,null,null,null,null,null,null,null,null,null,null,null,null,"strada"]
[]
["nr.",null,null,null,null,null,null,null,"bl.",null,null,null,null,null,"et.",null,null,null,null,"ap.",null,null,null,null,null,"sectorul",null,null,null,null,null,null,null,null,null,null,null,null,"codul poştal"]
[]
["Număr de telefon",null,null,null,null,null,null,null,null,null,null,null,null,null,null,null,null,null,null,null,null,null,null,"Fax",null,null,null,null,null,null,null,null,null,null,null,null,null,null,"E-mail"]
[]
["Număr de înregistrare în registrul comerțului/Registrul asociațiilor și fundațiilor"]
[]
["CUI / CIF"]
[]
["Cod CAEN pentru activitatea principală"]
[]
["Cod CAEN pentru activitatea secundară pentru care se solicită înregistrarea în Registrul unic de identificare"]
[]
["Cod IBAN"]
[]
["deschis la Banca"]
[]
["Sucursala / Agenție"]
[]
["Prin reprezentant legal, doamna/domnul"]
[]
["cu CNP",null,null,null,null,null,null,null,null,null,null,null,null,null,null,"solicit înscrierea în Registrul unic de identificare -Agenţia de Plăţi şi Intervenţie pentru Agricultură."]
[]
["Am luat la cunoştinţă că orice modificare a informaţiilor de mai sus trebuie furnizată către APIA în termen de maximum 10 zile\nlucrătoare de la producerea acestora.\nDeclar pe propria răspundere că cele de mai sus sunt conforme cu realitatea.\nSunt de acord ca datele din cerere să fie introduse în baza de date a Sistemului Integrat de Administrare şi Control, procesate şi\nverificate în vederea înscrierii în Registrul unic de identificare şi transmise autorităţilor responsabile în vederea elaborării de studii\nstatistice şi de evaluări economice, în condiţiile Legii nr. 677-2001 pentru protecţia persoanelor cu privire la prelucrarea datelor cu\ncaracter personal şi libera circulaţie a acestor date, cu modificarile şi completările ulterioare."]
[]
["Reprezentant legal",null,null,null,null,null,null,null,null,null,null,null,null,null,null,null,null,null,null,null,null,null,null,null,null,null,null,null,null,null,null,null,null,null,null,null,null,null,null,null,null,null,null,"Data:"]
[]
["Numele şi prenumele"]
[]
[null,"Semnătura "]

{"sheet":"Anexa  1","index":1,"n_rows":50,"n_cols":52,"rows_kept":50,"cut":false,"hidden":false,"merged":[[48,0,48,3],[48,4,48,41],[48,42,48,50],[48,51,48,60],[49,0,49,41],[49,42,49,60],[46,0,46,3],[46,4,46,41],[47,0,47,3],[47,4,47,41],[47,42,47,50],[47,51,47,60],[44,4,44,41],[44,42,44,50],[44,51,44,60],[45,0,45,3],[45,4,45,41],[45,42,45,50],[45,51,45,60],[42,0,42,3],[42,4,42,41],[42,42,42,50],[42,51,42,60],[43,4,43,41],[43,42,43,50],[43,51,43,60],[40,0,40,3],[40,4,40,41],[40,42,40,50],[40,51,40,60],[41,0,41,3],[41,4,41,41],[41,42,41,50],[41,51,41,60],[38,0,38,3],[38,4,38,41],[38,42,38,50],[38,51,38,60],[39,0,39,3],[39,4,39,41],[39,42,39,50],[39,51,39,60],[36,4,36,41],[36,42,36,50],[36,51,36,60],[37,4,37,41],[37,42,37,50],[37,51,37,60],[34,0,34,3],[34,4,34,41],[34,42,34,50],[34,51,34,60],[35,0,35,3],[35,4,35,41],[35,42,35,50],[35,51,35,60],[32,0,32,3],[32,4,32,41],[32,42,32,50],[32,51,32,60],[33,0,33,3],[33,4,33,41],[33,42,33,50],[33,51,33,60],[30,0,30,3],[30,4,30,41],[30,42,30,50],[30,51,30,60],[31,0,31,3],[31,4,31,41],[31,42,31,50],[31,51,31,60],[28,0,28,3],[28,4,28,41],[28,42,28,50],[28,51,28,60],[29,0,29,3],[29,4,29,41],[29,42,29,50],[29,51,29,60],[26,0,26,3],[26,4,26,41],[26,42,26,50],[26,51,26,60],[27,0,27,3],[27,4,27,41],[27,42,27,50],[27,51,27,60],[24,0,24,3],[24,4,24,41],[24,42,24,50],[24,51,24,60],[25,0,25,3],[25,4,25,41],[25,42,25,50],[25,51,25,60],[22,4,22,41],[22,42,22,50],[22,51,22,60],[23,0,23,3],[23,4,23,41],[23,42,23,50],[23,51,23,60],[20,0,20,3],[20,4,20,41],[20,42,20,50],[20,51,20,60],[21,4,21,41],[21,42,21,50],[21,51,21,60],[18,4,18,41],[18,42,18,50],[18,51,18,60],[19,4,19,41],[19,42,19,50],[19,51,19,60],[16,4,16,41],[16,42,16,50],[16,51,16,60],[17,4,17,41],[17,42,17,50],[17,51,17,60],[14,0,14,3],[14,4,14,41],[14,42,14,50],[14,51,14,60],[15,0,15,3],[15,4,15,41],[15,42,15,50],[15,51,15,60],[12,0,12,3],[12,4,12,41],[12,42,12,50],[12,51,12,60],[13,0,13,3],[13,4,13,41],[13,42,13,50],[13,51,13,60],[10,0,10,3],[10,4,10,41],[10,42,10,50],[10,51,10,60],[11,0,11,3],[11,4,11,41],[11,42,11,50],[11,51,11,60],[5,7,5,60],[6,0,6,60],[7,0,7,60],[8,0,8,60],[9,0,9,3],[9,4,9,41],[9,42,9,50],[9,51,9,60],[1,7,1,41],[2,7,2,41],[2,42,3,60],[3,7,3,41],[4,7,4,41],[4,42,4,50],[4,51,4,60]]}
[]
[null,null,null,null,null,null,null,"MINISTERUL AGRICULTURII ŞI DEZVOLTĂRII RURALE"]
[null,null,null,null,null,null,null,null,null,null,null,null,null,null,null,null,null,null,null,null,null,null,null,null,null,null,null,null,null,null,null,null,null,null,null,null,null,null,null,null,null,null,"Anexa A1\nHG 907/2016"]
[null,null,null,null,null,null,null,"AGENŢIA PENTRU FINANŢAREA INVESTIŢIILOR RURALE"]
[]
[null,null,null,null,null,null,null,"Deviz financiar- Capitolul 7.3 - Cheltuieli pentru proiectare şi asistenţa tehnică - EURO - cu intensitatea de 100%"]
[]
[]
["(Titlu deviz)"]
["Nr.crt",null,null,null,"Specificaţie",null,null,null,null,null,null,null,null,null,null,null,null,null,null,null,null,null,null,null,null,null,null,null,null,null,null,null,null,null,null,null,null,null,null,null,null,null,"Valoare eligibilă",null,null,null,null,null,null,null,null,"Valoare\nneeligibilă"]
["7.3.1",null,null,null,"Cheltuieli pentru studii - total din care:",null,null,null,null,null,null,null,null,null,null,null,null,null,null,null,null,null,null,null,null,null,null,null,null,null,null,null,null,null,null,null,null,null,null,null,null,null,{"$f":"SUM(AQ12:AQ14)","v":0},null,null,null,null,null,null,null,null,{"$f":"SUM(AZ12:AZ14)","v":0}]
[null,null,null,null,"7.3.1.1 Studii de teren: studii geotehnice, geologice, hidrologice, hidrogeotehnice,\nfotogrammetrice, topografica şi de stabilitate ale terenului pe care se amplasează obiectivul de investiţie "]
[null,null,null,null,"7.3.1.2 Raport privind impactul asupra mediului"]
[null,null,null,null,"7.3.1.3 Studii de specialitate necesare în funcţie de specificul investiţiei"]
["7.3.2",null,null,null,"Documentaţii-suport şi cheltuieli pentru obţinerea de avize, acorduri şi\nautorizaţii",null,null,null,null,null,null,null,null,null,null,null,null,null,null,null,null,null,null,null,null,null,null,null,null,null,null,null,null,null,null,null,null,null,null,null,null,null,{"$f":"SUM(AQ16:AQ18)+SUM(AQ21:AQ24)","v":0},null,null,null,null,null,null,null,null,{"$f":"SUM(AZ16:AZ24)","v":0}]
[null,null,null,null,"1. obţinerea/prelungirea valabilităţii ceritificatului de urbanism"]
[null,null,null,null,"2. obţinerea/prelungirea valabilităţii autorizaţiei de construire/desfiinţare"]
[null,null,null,null,"3. obţinerea avizelor şi acordurilor pentru racorduri şi branşamente la reţele publice\nde alimentare cu apă, canalizare, alimentare cu gaze, alimentare cu agent termic,\nenergie electrică, telefonie"]
[null,null,null,null,"4. obţinerea certificatului de nomenclatură stradală şi adresă"]
[null,null,null,null,"5. întocmirea documentaţiei, obţinerea numărului cadastral provizoriu şi\nînregistrarea terenului în cartea funciară"]
[null,null,null,null,"6. obţinerea actului administrativ al autorităţii competente pentru protecţia mediului"]
[null,null,null,null,"7. obţinerea avizului de protecţie civilă"]
[null,null,null,null,"8. avizul de specialitate în cazul obiectivelor de patrimoniu"]
[null,null,null,null,"9. alte avize, acorduri şi autorizaţii"]
["7.3.3",null,null,null,"Cheltuieli pentru expertizarea tehnică a construcţiilor existente, a structurilor şi/sau, după caz, a proiectelor tehnice, inclusiv întocmirea de către expertul tehnic a raportului de expertiză tehnică",null,null,null,null,null,null,null,null,null,null,null,null,null,null,null,null,null,null,null,null,null,null,null,null,null,null,null,null,null,null,null,null,null,null,null,null,null,0,null,null,null,null,null,null,null,null,0]
["7.3.4",null,null,null,"Cheltuieli pentru certificarea performanţei energetice şi auditul energetic al clădirilor",null,null,null,null,null,null,null,null,null,null,null,null,null,null,null,null,null,null,null,null,null,null,null,null,null,null,null,null,null,null,null,null,null,null,null,null,null,0,null,null,null,null,null,null,null,null,0]
["7.3.5",null,null,null,"Cheltuieli pentru proiectare",null,null,null,null,null,null,null,null,null,null,null,null,null,null,null,null,null,null,null,null,null,null,null,null,null,null,null,null,null,null,null,null,null,null,null,null,null,{"$f":"AQ28+AQ29+AQ30+AQ31+AQ32+AQ33","v":0},null,null,null,null,null,null,null,null,{"$f":"AZ28+AZ29+AZ30+AZ31+AZ32+AZ33","v":0}]
[null,null,null,null,"7.3.5.1 Temă de proiectare"]
[null,null,null,null,"7.3.5.2 Studiu de prefezabilitate"]
[null,null,null,null,"7.3.5.3 Studiu de fezabilitate/documentaţie de avizare a lucrărilor de intervenţii şi deviz general"]
[null,null,null,null,"7.3.5.4 Documentaţiile tehnice necesare în vederea obţinerii avizelor/acordurilor/autorizaţiilor"]
[null,null,null,null,"7.3.5.5 Verificarea tehnică de calitate a proiectului tehnic şi a detaliilor de execuţie"]
[null,null,null,null,"7.3.5.6 Proiect tehnic şi detalii de execuţie"]
["7.3.6",null,null,null,"Cheltuieli aferente organizării şi derulării procedurilor de achiziţii publice",null,null,null,null,null,null,null,null,null,null,null,null,null,null,null,null,null,null,null,null,null,null,null,null,null,null,null,null,null,null,null,null,null,null,null,null,null,null,null,null,null,null,null,null,null,null,{"$f":"SUM(AZ35:AZ38)","v":0}]
[null,null,null,null,"1. Cheltuieli aferente întocmirii documentaţiei de atribuire şi multiplicării acesteia (exclusiv cele cumpărate de ofertanţi)"]
[null,null,null,null,"2. Cheltuieli cu onorariile, transportul, cazarea şi diurna membrilor desemnaţi în comisiile de evaluare"]
[null,null,null,null,"3. Anunţuri de intenţie, de participare şi de atribuire a contractelor, corespondenţă\nprin poştă, fax, poştă electronică în legătură cu procedurile de achiziţie publică"]
[null,null,null,null,"4. Cheltuieli aferente organizării şi derulării procedurilor de achiziţii publice"]
["7.3.7",null,null,null,"Cheltuieli pentru consultanţă",null,null,null,null,null,null,null,null,null,null,null,null,null,null,null,null,null,null,null,null,null,null,null,null,null,null,null,null,null,null,null,null,null,null,null,null,null,{"$f":"AQ40","v":0},null,null,null,null,null,null,null,null,{"$f":"AZ40+AZ41","v":0}]
[null,null,null,null,"7.3.7.1 Managementul de proiect pentru obiectivul de investiţii"]
[null,null,null,null,"7.3.7.2 Auditul financiar"]
["7.3.8",null,null,null,"Cheltuieli pentru asistenţă tehnică",null,null,null,null,null,null,null,null,null,null,null,null,null,null,null,null,null,null,null,null,null,null,null,null,null,null,null,null,null,null,null,null,null,null,null,null,null,{"$f":"AQ43+AQ46","v":0},null,null,null,null,null,null,null,null,{"$f":"AZ43+AZ46","v":0}]
[null,null,null,null,"7.3.8.1. Asistenţă tehnică din partea proiectantului",null,null,null,null,null,null,null,null,null,null,null,null,null,null,null,null,null,null,null,null,null,null,null,null,null,null,null,null,null,null,null,null,null,null,null,null,null,{"$f":"AQ44+AQ45","v":0},null,null,null,null,null,null,null,null,{"$f":"AZ44+AZ45","v":0}]
[null,null,null,null,"   7.3.8.1.1. pe perioada de execuţie a lucrărilor"]
[null,null,null,null,"   7.3.8.1.2. pentru participarea proiectantului la fazele incluse în programul de control al\nlucrărilor de execuţie, avizat de către Inspectoratul de Stat în Construcţii"]
[null,null,null,null,"7.3.8.2 Dirigenţie de şantier, asigurată de personal tehnic de specialitate, autorizat"]
["7.3.9.",null,null,null," Elaborare de planuri, studii, analize de piață"]
[null,null,null,null,"Total valoare fără TVA",null,null,null,null,null,null,null,null,null,null,null,null,null,null,null,null,null,null,null,null,null,null,null,null,null,null,null,null,null,null,null,null,null,null,null,null,null,{"$f":"AQ42+AQ39+AQ27+AQ26+AQ25+AQ15+AQ11","v":0},null,null,null,null,null,null,null,null,{"$f":"AZ42+AZ39+AZ34+AZ27+AZ26+AZ25+AZ15+AZ11","v":0}]
[null,null,null,null,"Valoare TVA (aferentă cheltuielilor eligibile şi neeligibile)"]
["TOTAL DEVIZ FINANCIAR 1 (inclusiv TVA)",null,null,null,null,null,null,null,null,null,null,null,null,null,null,null,null,null,null,null,null,null,null,null,null,null,null,null,null,null,null,null,null,null,null,null,null,null,null,null,null,null,{"$f":"AQ48+AZ48+AQ49+AZ49","v":0}]

{"sheet":"Anexa 2","index":2,"n_rows":30,"n_cols":52,"rows_kept":30,"cut":false,"hidden":false,"merged":[[29,0,29,41],[29,42,29,60],[31,0,31,43],[25,0,25,3],[25,4,25,41],[25,42,25,50],[25,51,25,60],[26,0,26,3],[26,4,26,41],[26,42,26,50],[26,51,26,60],[27,0,27,41],[27,42,27,50],[27,51,27,60],[24,0,24,3],[24,4,24,41],[24,42,24,50],[24,51,24,60],[28,0,28,41],[28,42,28,50],[28,51,28,60],[22,0,22,3],[22,4,22,41],[22,42,22,50],[22,51,22,60],[23,0,23,3],[23,4,23,41],[23,42,23,50],[23,51,23,60],[20,0,20,3],[20,4,20,41],[20,42,20,50],[20,51,20,60],[21,0,21,60],[18,0,18,60],[19,0,19,3],[19,4,19,41],[19,42,19,50],[19,51,19,60],[16,0,16,3],[16,4,16,41],[16,42,16,50],[16,51,16,60],[17,0,17,3],[17,4,17,41],[17,42,17,50],[17,51,17,60],[14,0,14,3],[14,4,14,41],[14,42,14,50],[14,51,14,60],[15,0,15,3],[15,4,15,41],[15,42,15,50],[15,51,15,60],[12,0,12,3],[12,4,12,41],[12,42,12,50],[12,51,12,60],[13,0,13,3],[13,4,13,41],[13,42,13,50],[13,51,13,60],[10,0,10,41],[10,42,10,50],[10,51,10,60],[11,0,11,41],[11,42,11,50],[11,51,11,60],[5,7,5,60],[6,0,6,60],[7,0,7,60],[8,0,8,60],[9,0,9,3],[9,4,9,41],[9,42,9,60],[1,7,1,41],[2,7,2,41],[2,42,3,60],[3,7,3,41],[4,7,4,41],[4,42,4,50],[4,51,4,60]]}
[]
[null,null,null,null,null,null,null,"MINISTERUL AGRICULTURII ŞI DEZVOLTĂRII RURALE"]
[null,null,null,null,null,null,null,null,null,null,null,null,null,null,null,null,null,null,null,null,null,null,null,null,null,null,null,null,null,null,null,null,null,null,null,null,null,null,null,null,null,null,"Anexa A2\nHG 907/2016"]
[null,null,null,null,null,null,null,"AGENŢIA PENTRU FINANŢAREA INVESTIŢIILOR RURALE"]
[null,null,null,null,null,null,null,null,null,null,null,null,null,null,null,null,null,null,null,null,null,null,null,null,null,null,null,null,null,null,null,null,null,null,null,null,null,null,null,null,null,null,null,null,null,null,null,null,null,null,null,"Nr.2"]
[null,null,null,null,null,null,null,"DEVIZ PE OBIECT"]
[]
[]
["(Descriere obiect de construcţie)"]
["Nr. crt.",null,null,null,"Denumire",null,null,null,null,null,null,null,null,null,null,null,null,null,null,null,null,null,null,null,null,null,null,null,null,null,null,null,null,null,null,null,null,null,null,null,null,null,"Valoarea pe categorii de lucrări, fară TVA - EURO"]
["Cap. 4 + Cheltuieli pentru investiţia de bază",null,null,null,null,null,null,null,null,null,null,null,null,null,null,null,null,null,null,null,null,null,null,null,null,null,null,null,null,null,null,null,null,null,null,null,null,null,null,null,null,null,"Valoare eligibilă",null,null,null,null,null,null,null,null,"Valoare\nneeligibilă"]
["   I - LUCRĂRI DE CONSTRUCŢII ŞI INSTALAŢII"]
["4.1",null,null,null,"Construcţii şi instalaţii"]
[null,null,null,null,"4.1.1 Terasamente, sistematizare pe verticală şi amenajări exterioare"]
[null,null,null,null,"4.1.2 Rezistenţă"]
[null,null,null,null,"4.1.3 Arhitectură"]
[null,null,null,null,"4.1.4 Instalaţii"]
[null,null,null,null,"TOTAL I ( fără TVA)",null,null,null,null,null,null,null,null,null,null,null,null,null,null,null,null,null,null,null,null,null,null,null,null,null,null,null,null,null,null,null,null,null,null,null,null,null,{"$f":"SUM(AQ14:AY17)","v":0},null,null,null,null,null,null,null,null,{"$f":"SUM(AZ14:BI17)","v":0}]
["   II - MONTAJ"]
["4.2",null,null,null,"Montaj utilaje şi echipamente tehnologice şi funcţionale"]
[null,null,null,null,"TOTAL II ( fără TVA)",null,null,null,null,null,null,null,null,null,null,null,null,null,null,null,null,null,null,null,null,null,null,null,null,null,null,null,null,null,null,null,null,null,null,null,null,null,{"$f":"SUM(AQ20)","v":0},null,null,null,null,null,null,null,null,{"$f":"SUM(AZ20)","v":0}]
["   III - PROCURARE"]
["4.3",null,null,null,"Utilaje, echipamente tehnologice şi funcţionale care necesită montaj"]
["4.4",null,null,null,"Utilaje, echipamente tehnologice şi funcţionale care nu necesită\nmontaj şi echipamente de transport"]
["4.5",null,null,null,"Dotări"]
["4.6",null,null,null,"Active necorporale"]
[null,null,null,null,"TOTAL III ( fără TVA)",null,null,null,null,null,null,null,null,null,null,null,null,null,null,null,null,null,null,null,null,null,null,null,null,null,null,null,null,null,null,null,null,null,null,null,null,null,{"$f":"SUM(AQ23:AY26)","v":0},null,null,null,null,null,null,null,null,{"$f":"SUM(AZ23:BI26)","v":0}]
["TOTAL ( TOTAL I + TOTAL II +TOTAL III) fără TVA",null,null,null,null,null,null,null,null,null,null,null,null,null,null,null,null,null,null,null,null,null,null,null,null,null,null,null,null,null,null,null,null,null,null,null,null,null,null,null,null,null,{"$f":"AQ27+AQ21+AQ18","v":0},null,null,null,null,null,null,null,null,{"$f":"AZ27+AZ21+AZ18","v":0}]
["TVA aferent cheltuielilor eligibile şi neeligibile"]
["TOTAL DEVIZ PE OBIECT (inclusiv TVA)",null,null,null,null,null,null,null,null,null,null,null,null,null,null,null,null,null,null,null,null,null,null,null,null,null,null,null,null,null,null,null,null,null,null,null,null,null,null,null,null,null,{"$f":"AQ28+AZ28+AQ29+AZ29","v":0}]

{"sheet":"Anexa 3","index":3,"n_rows":41,"n_cols":52,"rows_kept":41,"cut":false,"hidden":false,"merged":[[40,0,40,3],[40,4,40,41],[40,42,40,60],[42,0,42,44],[37,0,37,3],[37,4,37,41],[37,42,37,50],[37,51,37,60],[38,0,38,3],[38,4,38,41],[38,42,38,50],[38,51,38,60],[39,0,39,3],[39,4,39,41],[39,42,39,50],[39,51,39,60],[34,0,34,3],[34,4,34,41],[34,42,34,50],[34,51,34,60],[35,0,35,3],[35,4,35,41],[35,42,35,50],[35,51,35,60],[36,0,36,3],[36,4,36,41],[36,42,36,50],[36,51,36,60],[31,0,31,3],[31,4,31,41],[31,42,31,50],[31,51,31,60],[32,0,32,3],[32,4,32,41],[32,42,32,50],[32,51,32,60],[33,0,33,3],[33,4,33,41],[33,42,33,50],[33,51,33,60],[28,0,28,3],[28,4,28,41],[28,42,28,50],[28,51,28,60],[29,0,29,3],[29,4,29,41],[29,42,29,50],[29,51,29,60],[30,0,30,3],[30,4,30,41],[30,42,30,50],[30,51,30,60],[24,0,24,60],[25,0,25,3],[25,4,25,41],[25,42,25,50],[25,51,25,60],[26,0,26,60],[27,0,27,3],[27,4,27,41],[27,42,27,50],[27,51,27,60],[21,0,21,3],[21,4,21,41],[21,42,21,50],[21,51,21,60],[22,0,22,41],[22,42,22,60],[23,0,23,3],[23,4,23,41],[23,42,23,50],[23,51,23,60],[18,0,18,3],[18,4,18,41],[18,42,18,50],[18,51,18,60],[19,0,19,3],[19,4,19,41],[19,42,19,50],[19,51,19,60],[20,0,20,3],[20,4,20,41],[20,42,20,50],[20,51,20,60],[15,0,15,3],[15,4,15,41],[15,42,15,50],[15,51,15,60],[16,0,16,3],[16,4,16,41],[16,42,16,50],[16,51,16,60],[17,0,17,3],[17,4,17,41],[17,42,17,50],[17,51,17,60],[12,0,12,3],[12,4,12,41],[12,42,12,50],[12,51,12,60],[13,0,13,3],[13,4,13,41],[13,42,13,50],[13,51,13,60],[14,0,14,3],[14,4,14,41],[14,42,14,50],[14,51,14,60],[8,0,8,60],[9,0,9,60],[10,0,10,3],[10,4,10,41],[10,42,10,50],[10,51,10,60],[11,0,11,3],[11,4,11,41],[11,42,11,50],[11,51,11,60],[2,7,2,41],[2,42,3,60],[3,7,3,41],[4,7,4,41],[4,42,4,50],[4,51,4,60],[5,7,5,60],[6,0,6,60],[7,0,7,60]]}
[]
[]
[null,null,null,null,null,null,null,"MINISTERUL AGRICULTURII ŞI DEZVOLTĂRII RURALE",null,null,null,null,null,null,null,null,null,null,null,null,null,null,null,null,null,null,null,null,null,null,null,null,null,null,null,null,null,null,null,null,null,null,"Anexa A3\nHG 907/2016"]
[]
[null,null,null,null,null,null,null,"AGENŢIA PENTRU FINANŢAREA INVESTIŢIILOR RURALE",null,null,null,null,null,null,null,null,null,null,null,null,null,null,null,null,null,null,null,null,null,null,null,null,null,null,null,null,null,null,null,null,null,null,null,null,null,null,null,null,null,null,null,"Nr.2"]
[]
[]
[]
["(Titlu deviz)"]
["Deviz capitolul 2- Cheltuieli pentru asigurarea utilităţilor necesare obiectivului - EURO"]
["Nr.crt",null,null,null,"Specificaţie",null,null,null,null,null,null,null,null,null,null,null,null,null,null,null,null,null,null,null,null,null,null,null,null,null,null,null,null,null,null,null,null,null,null,null,null,null,"Valoare eligibilă",null,null,null,null,null,null,null,null,"Valoare\nneeligibilă"]
[1,null,null,null,"Alimentare cu apă"]
[2,null,null,null,"Canalizare"]
[3,null,null,null,"Alimentare cu gaze naturale"]
[4,null,null,null,"Alimentare cu agent termic"]
[5,null,null,null,"Alimentare cu energie electrică"]
[6,null,null,null,"Telecomunicaţii (telefonie, radio-tv,etc)"]
[7,null,null,null,"Drumuri de acces"]
[8,null,null,null,"Căi ferate industriale"]
[9,null,null,null,"Alte utilități"]
[null,null,null,null,"TOTAL DEVIZ CAPITOLUL 2",null,null,null,null,null,null,null,null,null,null,null,null,null,null,null,null,null,null,null,null,null,null,null,null,null,null,null,null,null,null,null,null,null,null,null,null,null,{"$f":"SUM(AQ12:AY20)","v":0},null,null,null,null,null,null,null,null,{"$f":"SUM(AZ12:BI20)","v":0}]
[null,null,null,null,"Valoare TVA aferentă cheltuielilor eligibile şi neeligibile"]
["TOTAL DEVIZ CAPITOLUL 2 (inclusiv TVA)",null,null,null,null,null,null,null,null,null,null,null,null,null,null,null,null,null,null,null,null,null,null,null,null,null,null,null,null,null,null,null,null,null,null,null,null,null,null,null,null,null,{"$f":"AQ21+AZ21+AQ22+AZ22","v":0}]
[]
[" Deviz capitolul 5 - Alte cheltuieli - EURO"]
["Nr.crt",null,null,null,"Specificaţie",null,null,null,null,null,null,null,null,null,null,null,null,null,null,null,null,null,null,null,null,null,null,null,null,null,null,null,null,null,null,null,null,null,null,null,null,null,"Valoare eligibilă",null,null,null,null,null,null,null,null,"Valoare\nneeligibilă"]
[]
["5.1 ",null,null,null,"Organizare de şantier",null,null,null,null,null,null,null,null,null,null,null,null,null,null,null,null,null,null,null,null,null,null,null,null,null,null,null,null,null,null,null,null,null,null,null,null,null,{"$f":"SUM(AQ29:AY30)","v":0},null,null,null,null,null,null,null,null,{"$f":"SUM(AZ29:BI30)","v":0}]
[null,null,null,null,"5.1.1 Lucrări de construcţii şi instalaţii aferente organizării de şantier"]
[null,null,null,null,"5.1.2 Cheltuieli conexe organizării de şantier"]
["5.2",null,null,null,"Comisioane, cote, taxe, costul creditului",null,null,null,null,null,null,null,null,null,null,null,null,null,null,null,null,null,null,null,null,null,null,null,null,null,null,null,null,null,null,null,null,null,null,null,null,null,{"$f":"SUM(AQ33:AY36)","v":0},null,null,null,null,null,null,null,null,{"$f":"SUM(AZ32:BI36)","v":0}]
[null,null,null,null,"5.2.1. Comisioanele şi dobânzile aferente creditului băncii finanţatoare",null,null,null,null,null,null,null,null,null,null,null,null,null,null,null,null,null,null,null,null,null,null,null,null,null,null,null,null,null,null,null,null,null,null,null,null,null,1]
[null,null,null,null,"5.2.2. Cota aferentă ISC pentru controlul calităţii lucrărilor de construcţii"]
[null,null,null,null,"5.2.3. Cota aferentă ISC pentru controlul statului în amenajarea teritoriului, urbanism şi pentru autorizarea lucrărilor de construcţii"]
[null,null,null,null,"5.2.4. Cota aferentă Casei Sociale a Constructorilor - CSC"]
[null,null,null,null,"5.2.5. Taxe pentru acorduri, avize conforme şi autorizaţia de construire/desfiinţare"]
["5.3",null,null,null," Cheltuieli diverse si neprevazute"]
["5.4",null,null,null,"Cheltuieli pentru informare și publicitate",null,null,null,null,null,null,null,null,null,null,null,null,null,null,null,null,null,null,null,null,null,null,null,null,null,null,null,null,null,null,null,null,null,null,null,null,null,null,null,null,null,null,null,null,null,null,0]
[null,null,null,null,"TOTAL DEVIZ CAPITOLUL 5",null,null,null,null,null,null,null,null,null,null,null,null,null,null,null,null,null,null,null,null,null,null,null,null,null,null,null,null,null,null,null,null,null,null,null,null,null,{"$f":"AQ28+AQ31+AQ37","v":0},null,null,null,null,null,null,null,null,{"$f":"AZ38+AZ37+AZ31+AZ28","v":0}]
[null,null,null,null,"VALOARE TVA aferentă cheltuielilor eligibile şi neeligibile"]
[null,null,null,null,"TOTAL DEVIZ CAPITOLUL 5 ( inclusiv TVA)",null,null,null,null,null,null,null,null,null,null,null,null,null,null,null,null,null,null,null,null,null,null,null,null,null,null,null,null,null,null,null,null,null,null,null,null,null,{"$f":"AQ39+AZ39+AQ40+AZ40","v":0}]